Ref No,Fund Type,Dept,Cost Centre Description    ,Description    ,Creditor Name    ,GL Code Net Amount,Payment date        
2,Revenue,CAHD,18-25 Year Olds,Permanent Residential,1 St Georges House,13021, 25-Sep-2018
3,Revenue,CAHD,CSC - UASC Housing Support,Grants to Voluntary Bodies,1625 Independent People,12956.25, 06-Sep-2018
4,Revenue,CAHD,CSC - LAC Housing Support Grants,Grants to Voluntary Bodies,1625 Independent People,6408.33, 06-Sep-2018
5,Revenue,CAHD,Supporting People Programme,Grants to Voluntary Bodies,1625 Independent People,9811.67, 04-Sep-2018
6,Revenue,CAHD,CSC - Section 17 SOUTH,Leaving Care,1625 Independent People,2011.68, 07-Sep-2018
7,Revenue,CAHD,Bed Purchasing - North,Permanent Residential,1St Floor Lingfield House,2677.24, 25-Sep-2018
8,Revenue,CAHD,Homecare - Central,Other Small Contracts,3 Trees Community Support Ltd,2257.84, 11-Sep-2018
9,Revenue,CAHD,Home Care - Elderly - South,Day Care / Social Activities,3 Trees Community Support Ltd,95.2, 11-Sep-2018
10,Revenue,CAHD,Home Care - Elderly - North,Day Care / Social Activities,3 Trees Community Support Ltd,385.56, 11-Sep-2018
11,Revenue,CAHD,Home Care - Elderly - North,Other Small Contracts,3 Trees Community Support Ltd,856.8, 11-Sep-2018
12,Revenue,CAHD,Home Care - Elderly - North,Supported Living,3 Trees Community Support Ltd,4932.17, 11-Sep-2018
13,Revenue,CAHD,Homecare - Central,Other Small Contracts,3 Trees Community Support Ltd,2234.46, 18-Sep-2018
14,Revenue,CAHD,Home Care - Elderly - South,Day Care / Social Activities,3 Trees Community Support Ltd,95.2, 18-Sep-2018
15,Revenue,CAHD,Home Care - Elderly - North,Day Care / Social Activities,3 Trees Community Support Ltd,890.12, 18-Sep-2018
16,Revenue,CAHD,Home Care - Elderly - North,Other Small Contracts,3 Trees Community Support Ltd,856.8, 18-Sep-2018
17,Revenue,CAHD,Home Care - Elderly - North,Supported Living,3 Trees Community Support Ltd,5170.21, 18-Sep-2018
18,Revenue,CAHD,Homecare - Central,Other Small Contracts,3 Trees Community Support Ltd,2244.48, 18-Sep-2018
19,Revenue,CAHD,Home Care - Elderly - North,Day Care / Social Activities,3 Trees Community Support Ltd,1047.2, 18-Sep-2018
20,Revenue,CAHD,Home Care - Elderly - North,Other Small Contracts,3 Trees Community Support Ltd,856.8, 18-Sep-2018
21,Revenue,CAHD,Home Care - Elderly - North,Supported Living,3 Trees Community Support Ltd,5349.38, 18-Sep-2018
22,Revenue,CAHD,Homecare - Central,Other Small Contracts,3 Trees Community Support Ltd,2217.76, 28-Sep-2018
23,Revenue,CAHD,Home Care - Elderly - South,Day Care / Social Activities,3 Trees Community Support Ltd,95.2, 28-Sep-2018
24,Revenue,CAHD,Home Care - Elderly - North,Day Care / Social Activities,3 Trees Community Support Ltd,1047.2, 28-Sep-2018
25,Revenue,CAHD,Home Care - Elderly - North,Other Small Contracts,3 Trees Community Support Ltd,856.8, 28-Sep-2018
26,Revenue,CAHD,Home Care - Elderly - North,Supported Living,3 Trees Community Support Ltd,5314.68, 28-Sep-2018
27,Revenue,CAHD,18-25 Year Olds,Permanent Residential,5Th Floor Harlech Court,14897.4, 25-Sep-2018
28,Revenue,CAHD,18-25 Year Olds,Permanent Residential,5Th Floor Harlech Court,17792.32, 25-Sep-2018
29,Revenue,CAHD,Bed Purchasing - North,Permanent Residential,5Th Floor Harlech Court,13492.04, 25-Sep-2018
30,Revenue,CAHD,18-25 Year Olds,Permanent Residential,5Th Floor Harlech Court,13505.44, 25-Sep-2018
31,Revenue,CAHD,Bed Purchasing - North,Permanent Residential,5Th Floor Harlech Court,14372.24, 25-Sep-2018
32,Revenue,CAHD,Jointly Funded H&SC Packages,Permanent Residential,5Th Floor Harlech Court,3556.48, 25-Sep-2018
33,Revenue,CAHD,18-25 Year Olds,Permanent Residential,5Th Floor Harlech Court,17021.4, 25-Sep-2018
34,Revenue,CAHD,Bed Purchasing - South,Permanent Residential,5Th Floor Harlech Court,16276.48, 25-Sep-2018
35,Revenue,CAHD,Bed Purchasing - South,Permanent Residential,5Th Floor Harlech Court,10175.32, 25-Sep-2018
36,Revenue,CAHD,Bed purchasing - S28A Under 65 - South,Permanent Residential,5Th Floor Harlech Court,10649.12, 25-Sep-2018
37,Revenue,CAHD,Bed Purchasing - South,Permanent Residential,5Th Floor Harlech Court,11168.36, 25-Sep-2018
38,Revenue,CAHD,Bed Purchasing - South,Permanent Residential,5Th Floor Harlech Court,7425.64, 25-Sep-2018
39,Revenue,CAHD,Jointly Funded H&SC Packages,Permanent Residential,5Th Floor Harlech Court,2743.16, 25-Sep-2018
40,Revenue,CAHD,Section 117 Placements MH Younger,Permanent Residential,Acorn Care Providers,6453.32, 25-Sep-2018
41,Revenue,CAHD,Training - Adult Services,Training Expenses,Acorn Health & Safety Limited,465, 06-Sep-2018
42,Revenue,CAHD,Training - Adult Services,Training Expenses,Acorn Health & Safety Limited,448.25, 06-Sep-2018
43,Revenue,CAHD,CSC - Professional Fees Foster Carers,Band 3 Foster Care,Adam & Amanda Gibbons,539.43, 07-Sep-2018
44,Revenue,CAHD,Home Care - Elderly - South,Other Small Contracts,Advantedge Commercial Finance Limited,520.8, 24-Sep-2018
45,Revenue,CAHD,CSC - Allowances,Membership Fees,After Adoption,4190, 21-Sep-2018
46,Revenue,CAHD,Home Care - Elderly - North,Day Care / Social Activities,Age Concern,563.42, 25-Sep-2018
47,Revenue,CAHD,Home Care - Elderly - South,Other Small Contracts,Agincare UK Limited,1753.3, 18-Sep-2018
48,Revenue,CAHD,Home Care - Elderly - North,Other Small Contracts,Agincare UK Limited,1201.5, 18-Sep-2018
49,Revenue,CAHD,Home Care - Elderly - South,Other Small Contracts,Agincare UK Limited,1828.95, 18-Sep-2018
50,Revenue,CAHD,Home Care - Elderly - North,Other Small Contracts,Agincare UK Limited,1197.05, 18-Sep-2018
51,Revenue,CAHD,Home Care - Elderly - South,Other Small Contracts,Agincare UK Limited,1704.35, 18-Sep-2018
52,Revenue,CAHD,Home Care - Elderly - North,Other Small Contracts,Agincare UK Limited,1232.65, 18-Sep-2018
53,Revenue,CAHD,Extra Care Housing,Private & Voluntary Home Care,Agincare UK Limited,27590, 04-Sep-2018
54,Revenue,CAHD,Extra Care Housing,Private & Voluntary Home Care,Agincare UK Limited,1777.61, 24-Sep-2018
55,Revenue,CAHD,Extra Care Housing,Private & Voluntary Home Care,Agincare UK Limited,1747.91, 24-Sep-2018
56,Revenue,CAHD,Extra Care Housing,Private & Voluntary Home Care,Agincare UK Limited,1200.63, 24-Sep-2018
57,Revenue,CAHD,Prison Assessments & Costs,Other Supplies & Services,Agincare UK Limited,4762.25, 04-Sep-2018
58,Revenue,CAHD,Prison Assessments & Costs,Other Supplies & Services,Agincare UK Limited,3359.38, 27-Sep-2018
59,Revenue,CAHD,Homelessness Contingency,Other Supplies & Services,Individual,1300, 14-Sep-2018
60,Revenue,CAHD,Home Care - Elderly - South,Other Small Contracts,AliMo Care Ltd,626.09, 07-Sep-2018
61,Revenue,CAHD,Home Care - Elderly - South,Other Small Contracts,AliMo Care Ltd,603.24, 28-Sep-2018
62,Revenue,CAHD,Bed Purchasing - Southmead Hospital,Permanent Nursing,Allambie Court,2266.04, 25-Sep-2018
63,Revenue,CAHD,Bed Purchasing - Southmead Hospital,Permanent Nursing,Allambie Court,2266.04, 25-Sep-2018
64,Revenue,CAHD,Bed Purchasing - Southmead Hospital,Permanent Nursing,Amerind Grove Nursing Home,2642.88, 25-Sep-2018
65,Revenue,CAHD,CSC - Section 17 0-25,Preventative Assistance,Angel Care Support Limited,3528, 27-Sep-2018
66,Revenue,CAHD,CSC - Section 17 0-25,Preventative Assistance,Angel Care Support Limited,1008, 27-Sep-2018
67,Revenue,CAHD,CAHC - Complaints & Advocacy Service,Complaints External Expenses,Annette Upshall,958, 19-Sep-2018
68,Revenue,CAHD,Childrens - Safeguarding Board,Training Expenses,Anthony Domaille,800, 18-Sep-2018
69,Revenue,CAHD,Independent Special Placements - Pre 16,Other Private Contractors,Arc Schools,18625, 04-Sep-2018
70,Revenue,CAHD,Bed Purchasing - North,Permanent Residential,Ark Care Homes Ltd,109441.4, 25-Sep-2018
71,Revenue,CAHD,Bed Purchasing - North,Fees & Charges Income - General,Ark Care Homes Ltd,1545.3, 25-Sep-2018
72,Revenue,CAHD,Bed Purchasing - North,Fees & Charges Income - General,Ark Care Homes Ltd,1840.29, 25-Sep-2018
73,Revenue,CAHD,Brimsham Green Youth Wing,Project Funding,Arnold Liddell Coaches,500, 24-Sep-2018
74,Revenue,CAHD,Mental Health and Emotional Wellbeing,Project Funding,Arterne CIC,923.03, 24-Sep-2018
75,Revenue,CAHD,Bed Purchasing - South,Permanent Nursing,Ash Grove House,5201.04, 25-Sep-2018
76,Revenue,CAHD,Bed Purchasing - South,Fees & Charges Income - General,Ash Grove House,1242.9, 25-Sep-2018
77,Revenue,CAHD,Jointly Funded H&SC Packages,Permanent Residential,Ash View House,1085.36, 25-Sep-2018
78,Revenue,CAHD,Bed Purchasing - South,Permanent Residential,Ash View House,5293.96, 25-Sep-2018
79,Revenue,CAHD,S117 Placements PCT,Permanent Residential,Ash View House,7379.2, 25-Sep-2018
80,Revenue,CAHD,18-25 Year Olds,Permanent Residential,Ash View House,6933.12, 25-Sep-2018
81,Revenue,CAHD,Section 117 Placements MH Younger,Permanent Residential,Ash View House,4808.72, 25-Sep-2018
82,Revenue,CAHD,Jointly Funded H&SC Packages,Permanent Residential,Ash View House,2060.92, 25-Sep-2018
83,Revenue,CAHD,Bed purchasing - Elderly S117 - South,Permanent Residential,Ash View House,6535.92, 25-Sep-2018
84,Revenue,CAHD,18-25 Year Olds,Permanent Residential,Ash View House,6460.48, 25-Sep-2018
85,Revenue,CAHD,Drug and Alcohol Programme,Rent,Ashville Asset Management Limited,1204.38, 28-Sep-2018
86,Revenue,CAHD,Drug and Alcohol Programme,Rent,Ashville Asset Management Limited,4550, 28-Sep-2018
87,Revenue,CAHD,Bed Purchasing - North,Permanent Residential,Aspects 2 Limited,7062.4, 25-Sep-2018
88,Revenue,CAHD,Home Care - Elderly - South,Adults - Family Support,Ategi Limited,857.68, 24-Sep-2018
89,Revenue,CAHD,Home Care - Elderly - South,Adults - Family Support,Ategi Limited,817.68, 21-Sep-2018
90,Revenue,CAHD,Home Care - Elderly - South,Adults - Family Support,Ategi Limited,644.4, 21-Sep-2018
91,Revenue,CAHD,Home Care - Elderly - South,Adults - Family Support,Ategi Limited,815.12, 28-Sep-2018
92,Revenue,CAHD,Shared Lives,Other Supplies & Services,Ategi Limited,61310, 28-Sep-2018
93,Revenue,CAHD,Bed Purchasing - South,Adults - Family Support,Ategi Limited,13490.12, 19-Sep-2018
94,Revenue,CAHD,Independent Special Placements - Pre 16,Other Private Contractors,Aurora Hedgeway School,12123.47, 04-Sep-2018
95,Revenue,CAHD,Bed Purchasing - South,Permanent Residential,Autism Specialised Care Homes,6354.36, 25-Sep-2018
96,Revenue,CAHD,CSC - Adoption Support Fund,Post Adoption,Individual,611, 07-Sep-2018
97,Revenue,CAHD,Bed Purchasing - South,Permanent Residential,Avery Homes Downend Limited,3800, 25-Sep-2018
98,Revenue,CAHD,Bed Purchasing - South,Permanent Residential,Avery Homes Downend Limited,3800, 25-Sep-2018
99,Revenue,CAHD,Bed Purchasing - Southmead Hospital,Fees & Charges Income - General,Avery Homes Downend Limited,700, 25-Sep-2018
100,Revenue,CAHD,Younger Adult Mental Health,Health Services (Third Party Payments),Avon & Wiltshire Mental Health,1693.33, 05-Sep-2018
101,Revenue,CAHD,Bed Purchasing - South,Permanent Nursing,Axbridge Court Nursing Home,5110.03, 25-Sep-2018
102,Revenue,CAHD,Early Years High Needs Support,Other Private Contractors,Baker Street Nursery & Pre-School,880.77, 27-Sep-2018
103,Revenue,CAHD,Purchase of RAC places,Other L.A.'s - General,Bath & North East Somerset Council,966.08, 11-Sep-2018
104,Revenue,CAHD,Purchase of RAC places,Other L.A.'s - General,Bath & North East Somerset Council,966.08, 05-Sep-2018
105,Revenue,CAHD,Purchase of RAC places,Other L.A.'s - General,Bath & North East Somerset Council,1417.6, 05-Sep-2018
106,Revenue,CAHD,Pensions - Non DSG,Annual Pension,Bath & North East Somerset Council,110979.62, 13-Sep-2018
107,Revenue,CAHD,Pathway 3 - (Complex Beds),Permanent Nursing,Beaufort Care Ltd,5441, 27-Sep-2018
108,Revenue,CAHD,Bed Purchasing - South,Respite Planned - Nursing,Beaufort Grange Care Home,1802.18, 25-Sep-2018
109,Revenue,CAHD,South Glos Users in South Glos Homes,Permanent Nursing,Beaufort Grange Care Home,632.64, 25-Sep-2018
110,Revenue,CAHD,South Glos Users in South Glos Homes,Permanent Nursing,Beaufort Grange Care Home,632.64, 25-Sep-2018
111,Revenue,CAHD,South Glos Users in South Glos Homes,Permanent Nursing,Beaufort Grange Care Home,632.64, 25-Sep-2018
112,Revenue,CAHD,South Glos Users in South Glos Homes,Permanent Nursing,Beaufort Grange Care Home,632.64, 25-Sep-2018
113,Revenue,CAHD,South Glos Users in South Glos Homes,Permanent Nursing,Beaufort Grange Care Home,632.64, 25-Sep-2018
114,Revenue,CAHD,South Glos Users in South Glos Homes,Permanent Nursing,Beaufort Grange Care Home,632.64, 25-Sep-2018
115,Revenue,CAHD,South Glos Users in South Glos Homes,Permanent Nursing,Beaufort Grange Care Home,632.64, 25-Sep-2018
116,Revenue,CAHD,South Glos Users in South Glos Homes,Permanent Nursing,Beaufort Grange Care Home,632.64, 25-Sep-2018
117,Revenue,CAHD,Bed Purchasing - Elderly S117- North,Permanent Nursing,Beaufort Grange Care Home,4762.72, 25-Sep-2018
118,Revenue,CAHD,South Glos Users in South Glos Homes,Permanent Nursing,Beaufort Grange Care Home,632.64, 25-Sep-2018
119,Revenue,CAHD,South Glos Users in South Glos Homes,Permanent Nursing,Beaufort Grange Care Home,632.64, 25-Sep-2018
120,Revenue,CAHD,South Glos Users in South Glos Homes,Permanent Nursing,Beaufort Grange Care Home,632.64, 25-Sep-2018
121,Revenue,CAHD,South Glos Users in South Glos Homes,Permanent Nursing,Beaufort Grange Care Home,632.64, 25-Sep-2018
122,Revenue,CAHD,South Glos Users in South Glos Homes,Permanent Nursing,Beaufort Grange Care Home,632.64, 25-Sep-2018
123,Revenue,CAHD,Bed Purchasing - Central,Respite Planned - Nursing,Beaufort Grange Care Home,1802.18, 25-Sep-2018
124,Revenue,CAHD,South Glos Users in South Glos Homes,Permanent Nursing,Beaufort Grange Care Home,632.64, 25-Sep-2018
125,Revenue,CAHD,South Glos Users in South Glos Homes,Permanent Nursing,Beaufort Grange Care Home,632.64, 25-Sep-2018
126,Revenue,CAHD,South Glos Users in South Glos Homes,Permanent Nursing,Beaufort Grange Care Home,632.64, 25-Sep-2018
127,Revenue,CAHD,South Glos Users in South Glos Homes,Permanent Nursing,Beaufort Grange Care Home,632.64, 25-Sep-2018
128,Revenue,CAHD,South Glos Users in South Glos Homes,Permanent Nursing,Beaufort Grange Care Home,632.64, 25-Sep-2018
129,Revenue,CAHD,South Glos Users in South Glos Homes,Permanent Nursing,Beaufort Grange Care Home,632.64, 25-Sep-2018
130,Revenue,CAHD,Bed Purchasing - North,Permanent Residential,Beaufort House,2489.8, 25-Sep-2018
131,Revenue,CAHD,Bed Purchasing - Southmead Hospital,Permanent Nursing,Beaufort House,2800, 25-Sep-2018
132,Revenue,CAHD,Bed Purchasing - Southmead Hospital,Permanent Residential,Beaufort House,2710.56, 25-Sep-2018
133,Revenue,CAHD,Bed Purchasing - North,Permanent Residential,Beaufort House,2511.12, 25-Sep-2018
134,Revenue,CAHD,Bed Purchasing - South,Permanent Residential,Beaufort House,2477.4, 25-Sep-2018
135,Revenue,CAHD,Bed Purchasing - South,Permanent Residential,Beaufort House,2383.84, 25-Sep-2018
136,Revenue,CAHD,Bed Purchasing - Central,Permanent Residential,Beaufort House,2800, 25-Sep-2018
137,Revenue,CAHD,Bed Purchasing - Southmead Hospital,Respite Planned - Residential,Beaufort House,2710.56, 25-Sep-2018
138,Revenue,CAHD,Bed Purchasing - Southmead Hospital,Permanent Residential,Beaufort House,2710.56, 25-Sep-2018
139,Revenue,CAHD,Bed Purchasing - North,Permanent Residential,Beaufort House,2636.64, 25-Sep-2018
140,Revenue,CAHD,Bed Purchasing - South,Permanent Residential,Beaufort House,2649.4, 25-Sep-2018
141,Revenue,CAHD,Bed Purchasing - Southmead Hospital,Permanent Residential,Beaufort House,766.81, 25-Sep-2018
142,Revenue,CAHD,South Glos Users in South Glos Homes,Permanent Nursing,Beech House,632.64, 25-Sep-2018
143,Revenue,CAHD,Bed Purchasing - South,Permanent Residential,Beech House,2890.28, 25-Sep-2018
144,Revenue,CAHD,South Glos Users in South Glos Homes,Permanent Nursing,Beech House,632.64, 25-Sep-2018
145,Revenue,CAHD,Bed Purchasing - Southmead Hospital,Permanent Residential,Beech House,4055.64, 25-Sep-2018
146,Revenue,CAHD,South Glos Users in South Glos Homes,Permanent Nursing,Beech House,632.64, 25-Sep-2018
147,Revenue,CAHD,South Glos Users in South Glos Homes,Permanent Nursing,Beech House,632.64, 25-Sep-2018
148,Revenue,CAHD,South Glos Users in South Glos Homes,Permanent Nursing,Beech House,632.64, 25-Sep-2018
149,Revenue,CAHD,Bed Purchasing - North,Permanent Nursing,Beech House,2761.24, 25-Sep-2018
150,Revenue,CAHD,South Glos Users in South Glos Homes,Permanent Nursing,Beech House,632.64, 25-Sep-2018
151,Revenue,CAHD,South Glos Users in South Glos Homes,Permanent Nursing,Beech House,632.64, 25-Sep-2018
152,Revenue,CAHD,Bed Purchasing - North,Permanent Nursing,Beech House,3088.64, 25-Sep-2018
153,Revenue,CAHD,South Glos Users in South Glos Homes,Permanent Nursing,Beech House,632.64, 25-Sep-2018
154,Revenue,CAHD,Bed Purchasing - North,Permanent Nursing,Beech House,3464.6, 25-Sep-2018
155,Revenue,CAHD,South Glos Users in South Glos Homes,Permanent Nursing,Beech House,632.64, 25-Sep-2018
156,Revenue,CAHD,Bed Purchasing - North,Permanent Residential,Beech House,2890.28, 25-Sep-2018
157,Revenue,CAHD,South Glos Users in South Glos Homes,Permanent Nursing,Beech House,632.64, 25-Sep-2018
158,Revenue,CAHD,South Glos Users in South Glos Homes,Permanent Nursing,Beech House,632.64, 25-Sep-2018
159,Revenue,CAHD,South Glos Users in South Glos Homes,Permanent Nursing,Beech House,632.64, 25-Sep-2018
160,Revenue,CAHD,South Glos Users in South Glos Homes,Permanent Nursing,Beech House,632.64, 25-Sep-2018
161,Revenue,CAHD,South Glos Users in South Glos Homes,Permanent Nursing,Beech House,632.64, 25-Sep-2018
162,Revenue,CAHD,South Glos Users in South Glos Homes,Permanent Nursing,Beech House,632.64, 25-Sep-2018
163,Revenue,CAHD,Bed Purchasing - North,Permanent Residential,Beech House,3974.12, 25-Sep-2018
164,Revenue,CAHD,Bed Purchasing - Southmead Hospital,Permanent Residential,Beech House,3749.92, 25-Sep-2018
165,Revenue,CAHD,South Glos Users in South Glos Homes,Permanent Nursing,Beech House,632.64, 25-Sep-2018
166,Revenue,CAHD,South Glos Users in South Glos Homes,Permanent Nursing,Beech House,632.64, 25-Sep-2018
167,Revenue,CAHD,South Glos Users in South Glos Homes,Permanent Nursing,Beech House,632.64, 25-Sep-2018
168,Revenue,CAHD,South Glos Users in South Glos Homes,Permanent Nursing,Beech House,632.64, 25-Sep-2018
169,Revenue,CAHD,Bed Purchasing - North,Permanent Nursing,Beech House,3362.72, 25-Sep-2018
170,Revenue,CAHD,South Glos Users in South Glos Homes,Permanent Nursing,Beech House,632.64, 25-Sep-2018
171,Revenue,CAHD,Bed Purchasing - North,Permanent Nursing,Beech House,3229.92, 25-Sep-2018
172,Revenue,CAHD,South Glos Users in South Glos Homes,Permanent Nursing,Beech House,632.64, 25-Sep-2018
173,Revenue,CAHD,South Glos Users in South Glos Homes,Permanent Nursing,Beech House,632.64, 25-Sep-2018
174,Revenue,CAHD,South Glos Users in South Glos Homes,Permanent Nursing,Beech House,632.64, 25-Sep-2018
175,Revenue,CAHD,Bed Purchasing - Southmead Hospital,Permanent Residential,Beech House,855.9, 25-Sep-2018
176,Revenue,CAHD,Statemented Support Payments to OLAs,Other L.A.'s - General,Beechen Cliff School,718.49, 26-Sep-2018
177,Revenue,CAHD,CSC - OT Equipment - Children,Daily Living Equipment,BES Rehab Limited,680, 04-Sep-2018
178,Revenue,CAHD,Bed purchasing - Elderly S117 - South,Permanent Residential,Bidna House,8113.68, 25-Sep-2018
179,Revenue,CAHD,Bed purchasing - Elderly S117 - South,Permanent Residential,Bidna House,3606.08, 25-Sep-2018
180,Revenue,CAHD,Bed Purchasing - Southmead Hospital,Permanent Nursing,Bloomfield Care Centre,4367.36, 25-Sep-2018
181,Revenue,CAHD,South Glos Users in South Glos Homes,Permanent Nursing,Blossom Field,632.64, 25-Sep-2018
182,Revenue,CAHD,Bed Purchasing - Elderly S117- North,Permanent Nursing,Blossom Field,3607, 25-Sep-2018
183,Revenue,CAHD,South Glos Users in South Glos Homes,Permanent Nursing,Blossom Field,632.64, 25-Sep-2018
184,Revenue,CAHD,South Glos Users in South Glos Homes,Permanent Nursing,Blossom Field,632.64, 25-Sep-2018
185,Revenue,CAHD,Bed Purchasing - North,Respite Planned - Nursing,Blossom Field,2833.83, 25-Sep-2018
186,Revenue,CAHD,South Glos Users in South Glos Homes,Permanent Nursing,Blossom Field,632.64, 25-Sep-2018
187,Revenue,CAHD,Bed Purchasing - North,Permanent Nursing,Blossom Field,3080, 25-Sep-2018
188,Revenue,CAHD,South Glos Users in South Glos Homes,Permanent Nursing,Blossom Field,632.64, 25-Sep-2018
189,Revenue,CAHD,South Glos Users in South Glos Homes,Permanent Nursing,Blossom Field,632.64, 25-Sep-2018
190,Revenue,CAHD,South Glos Users in South Glos Homes,Permanent Nursing,Blossom Field,632.64, 25-Sep-2018
191,Revenue,CAHD,South Glos Users in South Glos Homes,Permanent Nursing,Blossom Field,632.64, 25-Sep-2018
192,Revenue,CAHD,South Glos Users in South Glos Homes,Permanent Nursing,Blossom Field,632.64, 25-Sep-2018
193,Revenue,CAHD,South Glos Users in South Glos Homes,Permanent Nursing,Blossom Field,632.64, 25-Sep-2018
194,Revenue,CAHD,Bed Purchasing - South,Permanent Nursing,Blossom Field,4309.64, 25-Sep-2018
195,Revenue,CAHD,South Glos Users in South Glos Homes,Permanent Nursing,Blossom Field,632.64, 25-Sep-2018
196,Revenue,CAHD,Bed Purchasing - North,Permanent Nursing,Blossom Field,2708.64, 25-Sep-2018
197,Revenue,CAHD,South Glos Users in South Glos Homes,Permanent Nursing,Blossom Field,632.64, 25-Sep-2018
198,Revenue,CAHD,South Glos Users in South Glos Homes,Permanent Nursing,Blossom Field,632.64, 25-Sep-2018
199,Revenue,CAHD,Bed Purchasing - North,Permanent Nursing,Blossom Field,4687.4, 25-Sep-2018
200,Revenue,CAHD,South Glos Users in South Glos Homes,Permanent Nursing,Blossom Field,632.64, 25-Sep-2018
201,Revenue,CAHD,South Glos Users in South Glos Homes,Permanent Nursing,Blossom Field,632.64, 25-Sep-2018
202,Revenue,CAHD,South Glos Users in South Glos Homes,Permanent Nursing,Blossom Field,632.64, 25-Sep-2018
203,Revenue,CAHD,South Glos Users in South Glos Homes,Permanent Nursing,Blossom Field,632.64, 25-Sep-2018
204,Revenue,CAHD,Bed Purchasing - North,Permanent Nursing,Blossom Field,4259.2, 25-Sep-2018
205,Revenue,CAHD,South Glos Users in South Glos Homes,Permanent Nursing,Blossom Field,632.64, 25-Sep-2018
206,Revenue,CAHD,Bed Purchasing - North,Permanent Nursing,Blossom Field,3896.72, 25-Sep-2018
207,Revenue,CAHD,South Glos Users in South Glos Homes,Permanent Nursing,Blossom Field,632.64, 25-Sep-2018
208,Revenue,CAHD,South Glos Users in South Glos Homes,Permanent Nursing,Blossom Field,632.64, 25-Sep-2018
209,Revenue,CAHD,Bed Purchasing - North,Permanent Nursing,Blossom Field,3549.76, 25-Sep-2018
210,Revenue,CAHD,South Glos Users in South Glos Homes,Permanent Nursing,Blossom Field,632.64, 25-Sep-2018
211,Revenue,CAHD,South Glos Users in South Glos Homes,Permanent Nursing,Blossom Field,632.64, 25-Sep-2018
212,Revenue,CAHD,Bed Purchasing - North,Permanent Residential,Bluebells,3612.88, 25-Sep-2018
213,Revenue,CAHD,Home Care - Elderly - South,Other Small Contracts,Bluebird Care (South Gloucestershire),226.18, 18-Sep-2018
214,Revenue,CAHD,Home Care - Elderly - North,Other Small Contracts,Bluebird Care (South Gloucestershire),1805.5, 18-Sep-2018
215,Revenue,CAHD,Home Care - Elderly - South,Other Small Contracts,Bluebird Care (South Gloucestershire),215.66, 18-Sep-2018
216,Revenue,CAHD,Home Care - Elderly - North,Other Small Contracts,Bluebird Care (South Gloucestershire),1312.64, 18-Sep-2018
217,Revenue,CAHD,Home Care - Elderly - South,Other Small Contracts,Bluebird Care (South Gloucestershire),220.92, 21-Sep-2018
218,Revenue,CAHD,Home Care - Elderly - North,Other Small Contracts,Bluebird Care (South Gloucestershire),1359.6, 21-Sep-2018
219,Revenue,CAHD,Home Care - Elderly - South,Other Small Contracts,Bluebird Care (South Gloucestershire),210.4, 21-Sep-2018
220,Revenue,CAHD,Home Care - Elderly - North,Other Small Contracts,Bluebird Care (South Gloucestershire),1736.5, 21-Sep-2018
221,Revenue,CAHD,Home Care - Elderly - South,Other Small Contracts,Bluebird Care (South Gloucestershire),220.92, 21-Sep-2018
222,Revenue,CAHD,Home Care - Elderly - North,Other Small Contracts,Bluebird Care (South Gloucestershire),1794.83, 21-Sep-2018
223,Revenue,CAHD,Home Care - Elderly - South,Other Small Contracts,Bluebird Care (South Gloucestershire),231.44, 21-Sep-2018
224,Revenue,CAHD,Home Care - Elderly - North,Other Small Contracts,Bluebird Care (South Gloucestershire),1928.06, 21-Sep-2018
225,Revenue,CAHD,Homecare - Central,Other Small Contracts,Bluebird Care (South Gloucestershire),234.05, 21-Sep-2018
226,Revenue,CAHD,Home Care - Elderly - South,Other Small Contracts,Bluebird Care (South Gloucestershire),220.92, 21-Sep-2018
227,Revenue,CAHD,Home Care - Elderly - North,Other Small Contracts,Bluebird Care (South Gloucestershire),1890.92, 21-Sep-2018
228,Revenue,CAHD,Training - Adult Services,Training Expenses,Individual,1200, 20-Sep-2018
229,Revenue,CAHD,CSC - Vinney Green Secure Unit,"Provisions (Food, etc)",Booker Cash & Carry,501.32, 17-Sep-2018
230,Revenue,CAHD,CSC - Purchase/Sale of Placements,Other L.A.'s - General,Bournemouth Borough Council,9000, 27-Sep-2018
231,Revenue,CAHD,Bed purchasing - S28A Under 65 - South,Permanent Residential,Bradbury House,4946.4, 25-Sep-2018
232,Revenue,CAHD,18-25 Year Olds,Permanent Residential,Bradbury House,9684.64, 25-Sep-2018
233,Revenue,CAHD,Bed Purchasing - North,Permanent Residential,Bradbury House,3611.34, 25-Sep-2018
234,Revenue,CAHD,Bed Purchasing - North,Permanent Residential,Bradbury House,2751.32, 25-Sep-2018
235,Revenue,CAHD,Home Care - Elderly - North,Other Small Contracts,Bramble Home Care Limited,1080.66, 17-Sep-2018
236,Revenue,CAHD,Home Care - Elderly - North,Other Small Contracts,Bramble Home Care Limited,607.56, 18-Sep-2018
237,Revenue,CAHD,Home Care - Elderly - North,Other Small Contracts,Bramble Home Care Limited,847.84, 18-Sep-2018
238,Revenue,CAHD,CSC - Residential Placements,Permanent Residential,Branas ISAF Ltd,19928.57, 07-Sep-2018
239,Revenue,CAHD,CSC - Residential Placements,Permanent Residential,Branas ISAF Ltd,19928.57, 07-Sep-2018
240,Revenue,CAHD,Social Lettings Agency,Fees - General,Individual,11.41, 03-Sep-2018
241,Revenue,CAHD,Social Lettings Agency,Other Supplies & Services,Individual,746.54, 03-Sep-2018
242,Revenue,CAHD,Bed Purchasing - Southmead Hospital,Permanent Residential,Bridge House Care Home,2469.12, 25-Sep-2018
243,Revenue,CAHD,Bed Purchasing - North,Permanent Residential,Bridge House Care Home,2427.4, 25-Sep-2018
244,Revenue,CAHD,CSC - Vinney Green Secure Unit,Training Expenses,Bridgwater and Taunton College,2573, 21-Sep-2018
245,Revenue,CAHD,CSC - Vinney Green Secure Unit,Training Expenses,Bridgwater and Taunton College,2573, 21-Sep-2018
246,Revenue,CAHD,CSC - Vinney Green Secure Unit,Training Expenses,Bridgwater and Taunton College,2573, 21-Sep-2018
247,Revenue,CAHD,CSC - Vinney Green Secure Unit,Training Expenses,Bridgwater and Taunton College,2573, 21-Sep-2018
248,Revenue,CAHD,Bed Purchasing - North,Permanent Residential,Bridgwater Court,10521.12, 25-Sep-2018
249,Revenue,CAHD,Early Years Inclusion Fund,Other Public Bodies,Bright Sparks Pre School Ltd,3600, 13-Sep-2018
250,Revenue,CAHD,EARLY YEARS DISABILITY  ACCES FUND,Preventative Assistance,Bright Sparks Pre School Ltd,615, 20-Sep-2018
251,Revenue,CAHD,Early Years Inclusion Fund,Other Public Bodies,Bright Sparks Pre-School,4250, 13-Sep-2018
252,Revenue,CAHD,Early Years Inclusion Fund,Other Public Bodies,Bright Sparks Pre-School,1050, 28-Sep-2018
253,Revenue,CAHD,Statemented Support Academies,Schools Funding,Bristol & South Gloucestershire UTC,7298.24, 26-Sep-2018
254,Revenue,CAHD,Placements OLA Special Schools and RB,Other L.A.'s - General,Bristol City Council - Schools,2050.17, 27-Sep-2018
255,Revenue,CAHD,Placements OLA Special Schools and RB,Other L.A.'s - General,Bristol City Council - Schools,2578, 27-Sep-2018
256,Revenue,CAHD,Placements OLA Special Schools and RB,Other L.A.'s - General,Bristol City Council - Schools,1350.17, 27-Sep-2018
257,Revenue,CAHD,Statemented Support Payments to OLAs,Other L.A.'s - General,Bristol City Council - Schools,1378.83, 26-Sep-2018
258,Revenue,CAHD,Placements OLA Special Schools and RB,Other L.A.'s - General,Bristol City Council - Schools,2578, 27-Sep-2018
259,Revenue,CAHD,Placements OLA Special Schools and RB,Other L.A.'s - General,Bristol City Council - Schools,1305.58, 27-Sep-2018
260,Revenue,CAHD,Placements OLA Special Schools and RB,Other L.A.'s - General,Bristol City Council - Schools,3356.33, 27-Sep-2018
261,Revenue,CAHD,Statemented Support Payments to OLAs,Other L.A.'s - General,Bristol City Council - Schools,907.16, 26-Sep-2018
262,Revenue,CAHD,Placements OLA Special Schools and RB,Other L.A.'s - General,Bristol City Council - Schools,2578, 27-Sep-2018
263,Revenue,CAHD,Placements OLA Special Schools and RB,Other L.A.'s - General,Bristol City Council - Schools,1381, 27-Sep-2018
264,Revenue,CAHD,Placements OLA Special Schools and RB,Other L.A.'s - General,Bristol City Council - Schools,2050.17, 27-Sep-2018
265,Revenue,CAHD,Placements OLA Special Schools and RB,Other L.A.'s - General,Bristol City Council - Schools,914.33, 27-Sep-2018
266,Revenue,CAHD,Placements OLA Special Schools and RB,Other L.A.'s - General,Bristol City Council - Schools,1381, 27-Sep-2018
267,Revenue,CAHD,Placements OLA Special Schools and RB,Other L.A.'s - General,Bristol City Council - Schools,2050.17, 27-Sep-2018
268,Revenue,CAHD,Placements OLA Special Schools and RB,Other L.A.'s - General,Bristol City Council - Schools,2578, 27-Sep-2018
269,Revenue,CAHD,Placements OLA Special Schools and RB,Other L.A.'s - General,Bristol City Council - Schools,809, 27-Sep-2018
270,Revenue,CAHD,Placements OLA Special Schools and RB,Other L.A.'s - General,Bristol City Council - Schools,883.5, 27-Sep-2018
271,Revenue,CAHD,Placements OLA Special Schools and RB,Other L.A.'s - General,Bristol City Council - Schools,4107.54, 27-Sep-2018
272,Revenue,CAHD,Placements OLA Special Schools and RB,Other L.A.'s - General,Bristol City Council - Schools,1031.2, 27-Sep-2018
273,Revenue,CAHD,Placements OLA Special Schools and RB,Other L.A.'s - General,Bristol City Council - Schools,2578, 27-Sep-2018
274,Revenue,CAHD,Placements OLA Special Schools and RB,Other L.A.'s - General,Bristol City Council - Schools,809, 27-Sep-2018
275,Revenue,CAHD,Placements OLA Special Schools and RB,Other L.A.'s - General,Bristol City Council - Schools,2578, 27-Sep-2018
276,Revenue,CAHD,Placements OLA Special Schools and RB,Other L.A.'s - General,Bristol City Council - Schools,883.5, 27-Sep-2018
277,Revenue,CAHD,Placements OLA Special Schools and RB,Other L.A.'s - General,Bristol City Council - Schools,2062.4, 27-Sep-2018
278,Revenue,CAHD,Placements OLA Special Schools and RB,Other L.A.'s - General,Bristol City Council - Schools,2578, 27-Sep-2018
279,Revenue,CAHD,Placements OLA Special Schools and RB,Other L.A.'s - General,Bristol City Council - Schools,883.5, 27-Sep-2018
280,Revenue,CAHD,South Hub Offices,"Holidays, Outings & Visits",Bristol Clifton & West of England Zoological,960, 04-Sep-2018
281,Revenue,CAHD,Home Care - Elderly - South,Day Care / Social Activities,Bristol Houses UK Limited,724.8, 25-Sep-2018
282,Revenue,CAHD,Statemented Support Payments to OLAs,Other L.A.'s - General,Broadlands Academy,1331.66, 26-Sep-2018
283,Revenue,CAHD,South Glos Users in South Glos Homes,Permanent Nursing,Brunelcare,700.42, 19-Sep-2018
284,Revenue,CAHD,South Glos Users in South Glos Homes,Permanent Nursing,Brunelcare,700.42, 19-Sep-2018
285,Revenue,CAHD,South Glos Users in South Glos Homes,Permanent Nursing,Brunelcare,700.42, 19-Sep-2018
286,Revenue,CAHD,South Glos Users in South Glos Homes,Permanent Nursing,Brunelcare,700.42, 19-Sep-2018
287,Revenue,CAHD,South Glos Users in South Glos Homes,Permanent Nursing,Brunelcare,700.42, 19-Sep-2018
288,Revenue,CAHD,South Glos Users in South Glos Homes,Permanent Nursing,Brunelcare,700.42, 19-Sep-2018
289,Revenue,CAHD,South Glos Users in South Glos Homes,Permanent Nursing,Brunelcare,700.42, 19-Sep-2018
290,Revenue,CAHD,South Glos Users in South Glos Homes,Permanent Nursing,Brunelcare,700.42, 19-Sep-2018
291,Revenue,CAHD,South Glos Users in South Glos Homes,Permanent Nursing,Brunelcare,700.42, 19-Sep-2018
292,Revenue,CAHD,South Glos Users in South Glos Homes,Permanent Nursing,Brunelcare,700.42, 19-Sep-2018
293,Revenue,CAHD,South Glos Users in South Glos Homes,Permanent Nursing,Brunelcare,700.42, 19-Sep-2018
294,Revenue,CAHD,South Glos Users in South Glos Homes,Permanent Nursing,Brunelcare,700.42, 19-Sep-2018
295,Revenue,CAHD,South Glos Users in South Glos Homes,Permanent Nursing,Brunelcare,700.42, 19-Sep-2018
296,Revenue,CAHD,Bed purchasing - Elderly S117 - South,Permanent Nursing,Brunelcare,3583.11, 19-Sep-2018
297,Revenue,CAHD,Bed purchasing - Elderly S117 - South,Permanent Nursing,Brunelcare,3583.11, 19-Sep-2018
298,Revenue,CAHD,Bed purchasing - Elderly S117 - South,Permanent Nursing,Brunelcare,3583.11, 19-Sep-2018
299,Revenue,CAHD,Bed Purchasing - Elderly S117- North,Permanent Nursing,Brunelcare,3583.11, 19-Sep-2018
300,Revenue,CAHD,Bed Purchasing - Elderly S117- North,Permanent Nursing,Brunelcare,3583.11, 19-Sep-2018
301,Revenue,CAHD,Bed Purchasing - Southmead Hospital,Permanent Nursing,Brunelcare,2415.56, 19-Sep-2018
302,Revenue,CAHD,Bed Purchasing - Southmead Hospital,Permanent Nursing,Brunelcare,2971.53, 19-Sep-2018
303,Revenue,CAHD,Bed Purchasing - South,Permanent Nursing,Brunelcare,2615.89, 19-Sep-2018
304,Revenue,CAHD,Bed Purchasing - South,Permanent Nursing,Brunelcare,2769.19, 19-Sep-2018
305,Revenue,CAHD,Bed Purchasing - South,Permanent Nursing,Brunelcare,3002.53, 19-Sep-2018
306,Revenue,CAHD,Bed Purchasing - South,Permanent Nursing,Brunelcare,2616.75, 19-Sep-2018
307,Revenue,CAHD,Enhanced Dementia Beds,Respite Planned - Nursing,Brunelcare,969, 19-Sep-2018
308,Revenue,CAHD,Enhanced Dementia Beds,Respite Planned - Nursing,Brunelcare,3322.29, 19-Sep-2018
309,Revenue,CAHD,Bed Purchasing - South,Respite Planned - Nursing,Brunelcare,1964.94, 19-Sep-2018
310,Revenue,CAHD,Bed Purchasing - North,Permanent Nursing,Brunelcare,2929.99, 19-Sep-2018
311,Revenue,CAHD,Bed Purchasing - North,Permanent Nursing,Brunelcare,2884.46, 19-Sep-2018
312,Revenue,CAHD,Bed Purchasing - North,Permanent Nursing,Brunelcare,2767.3, 19-Sep-2018
313,Revenue,CAHD,Bed Purchasing - North,Permanent Nursing,Brunelcare,2971.53, 19-Sep-2018
314,Revenue,CAHD,Bed Purchasing - North,Permanent Nursing,Brunelcare,3583.11, 19-Sep-2018
315,Revenue,CAHD,Bed Purchasing - North,Respite Planned - Nursing,Brunelcare,690.89, 19-Sep-2018
316,Revenue,CAHD,Bed Purchasing - North,Respite Planned - Nursing,Brunelcare,924.67, 19-Sep-2018
317,Revenue,CAHD,Bed Purchasing - Central,Respite Planned - Nursing,Brunelcare,809.09, 19-Sep-2018
318,Revenue,CAHD,Bed purchasing - Elderly S117 - South,Permanent Nursing,Brunelcare,7975.32, 19-Sep-2018
319,Revenue,CAHD,Pathway 2 - (Interim Beds),Permanent Nursing,Brunelcare,17511, 14-Sep-2018
320,Revenue,CAHD,Home Care - Elderly - South,Day Care / Social Activities,Brunelcare,172.9, 06-Sep-2018
321,Revenue,CAHD,Home Care - Elderly - South,Other Small Contracts,Brunelcare,21871.85, 06-Sep-2018
322,Revenue,CAHD,Home Care - Elderly - North,Other Small Contracts,Brunelcare,2461.55, 06-Sep-2018
323,Revenue,CAHD,Home Care - Elderly - South,Day Care / Social Activities,Brunelcare,113.75, 20-Sep-2018
324,Revenue,CAHD,Home Care - Elderly - South,Other Small Contracts,Brunelcare,22463.35, 20-Sep-2018
325,Revenue,CAHD,Home Care - Elderly - North,Other Small Contracts,Brunelcare,2361.45, 20-Sep-2018
326,Revenue,CAHD,Homecare - Central,Other Small Contracts,Brunelcare,27.3, 03-Sep-2018
327,Revenue,CAHD,Home Care - Elderly - South,Other Small Contracts,Brunelcare,24761.1, 03-Sep-2018
328,Revenue,CAHD,Home Care - Elderly - North,Other Small Contracts,Brunelcare,1820, 03-Sep-2018
329,Revenue,CAHD,Homecare - Central,Other Small Contracts,Brunelcare,45.5, 06-Sep-2018
330,Revenue,CAHD,Home Care - Elderly - South,Other Small Contracts,Brunelcare,25152.4, 06-Sep-2018
331,Revenue,CAHD,Home Care - Elderly - North,Other Small Contracts,Brunelcare,1847.3, 06-Sep-2018
332,Revenue,CAHD,Home Care - Elderly - South,Other Small Contracts,Brunelcare,25461.8, 06-Sep-2018
333,Revenue,CAHD,Home Care - Elderly - North,Other Small Contracts,Brunelcare,1833.65, 06-Sep-2018
334,Revenue,CAHD,Home Care - Elderly - South,Other Small Contracts,Brunelcare,25470.9, 06-Sep-2018
335,Revenue,CAHD,Home Care - Elderly - North,Other Small Contracts,Brunelcare,1906.45, 06-Sep-2018
336,Revenue,CAHD,Pathway 1 - Re-Ablement Home Care,Other Small Contracts,Brunelcare,2775.5, 17-Sep-2018
337,Revenue,CAHD,Pathway 1 - Re-Ablement Home Care,Other Small Contracts,Brunelcare,2579.85, 25-Sep-2018
338,Revenue,CAHD,Pathway 1 - Re-Ablement Home Care,Other Small Contracts,Brunelcare,2402.4, 25-Sep-2018
339,Revenue,CAHD,Pathway 1 - Re-Ablement Home Care,Other Small Contracts,Brunelcare,70000, 28-Sep-2018
340,Revenue,CAHD,CSC - Vinney Green Secure Unit,Operational Equipment,Bunzl Lockhart Catering Equiptment,671.58, 14-Sep-2018
341,Revenue,CAHD,South Glos Users in all other LA Homes,Permanent Nursing,Bupa Care Services  Bridge House,870.36, 25-Sep-2018
342,Revenue,CAHD,Training Budget - Children`s Social Serv,Training Expenses,BW Training & Coaching Ltd,900, 24-Sep-2018
343,Revenue,CAHD,CSC - Vinney Green Secure Unit,R & M by Departments,BWS Standfast Fire & Security Systems,847, 07-Sep-2018
344,Revenue,CAHD,Academy Resource Base Funding,Other Public Bodies,Cabot Learning Federation,1137.95, 25-Sep-2018
345,Revenue,CAHD,Academy Resource Base Funding,Other Public Bodies,Cabot Learning Federation,1137.95, 25-Sep-2018
346,Revenue,CAHD,Academy Resource Base Funding,Other Public Bodies,Cabot Learning Federation,1648.03, 25-Sep-2018
347,Revenue,CAHD,Academy Resource Base Funding,Other Public Bodies,Cabot Learning Federation,1491.12, 25-Sep-2018
348,Revenue,CAHD,Academy Resource Base Funding,Other Public Bodies,Cabot Learning Federation,1491.12, 25-Sep-2018
349,Revenue,CAHD,Academy Resource Base Funding,Other Public Bodies,Cabot Learning Federation,1491.12, 25-Sep-2018
350,Revenue,CAHD,Academy Resource Base Funding,Other Public Bodies,Cabot Learning Federation,1491.12, 25-Sep-2018
351,Revenue,CAHD,Academy Resource Base Funding,Other Public Bodies,Cabot Learning Federation,1648.03, 25-Sep-2018
352,Revenue,CAHD,Academy Resource Base Funding,Other Public Bodies,Cabot Learning Federation,863.26, 25-Sep-2018
353,Revenue,CAHD,Academy Resource Base Funding,Other Public Bodies,Cabot Learning Federation,1137.95, 25-Sep-2018
354,Revenue,CAHD,Statemented Support Payments to OLAs,Other L.A.'s - General,Cabot Learning Federation,518.03, 26-Sep-2018
355,Revenue,CAHD,Statemented Support Academies,Schools Funding,Cabot Learning Federation,706.7, 26-Sep-2018
356,Revenue,CAHD,Statemented Support Academies,Schools Funding,Cabot Learning Federation,753.87, 26-Sep-2018
357,Revenue,CAHD,Statemented Support Academies,Schools Funding,Cabot Learning Federation,659.53, 26-Sep-2018
358,Revenue,CAHD,Statemented Support Academies,Schools Funding,Cabot Learning Federation,706.7, 26-Sep-2018
359,Revenue,CAHD,Statemented Support Academies,Schools Funding,Cabot Learning Federation,518.03, 26-Sep-2018
360,Revenue,CAHD,Statemented Support Academies,Schools Funding,Cabot Learning Federation,836.41, 26-Sep-2018
361,Revenue,CAHD,Statemented Support Academies,Schools Funding,Cabot Learning Federation,576.99, 26-Sep-2018
362,Revenue,CAHD,Statemented Support Academies,Schools Funding,Cabot Learning Federation,753.87, 26-Sep-2018
363,Revenue,CAHD,Statemented Support Academies,Schools Funding,Cabot Learning Federation,954.33, 26-Sep-2018
364,Revenue,CAHD,Statemented Support Academies,Schools Funding,Cabot Learning Federation,706.7, 26-Sep-2018
365,Revenue,CAHD,Statemented Support Academies,Schools Funding,Cabot Learning Federation,553.41, 26-Sep-2018
366,Revenue,CAHD,Statemented Support Academies,Schools Funding,Cabot Learning Federation,694.91, 26-Sep-2018
367,Revenue,CAHD,Statemented Support Academies,Schools Funding,Cabot Learning Federation,883.58, 26-Sep-2018
368,Revenue,CAHD,Statemented Support Academies,Schools Funding,Cabot Learning Federation,694.91, 26-Sep-2018
369,Revenue,CAHD,Statemented Support Academies,Schools Funding,Cabot Learning Federation,1084.03, 26-Sep-2018
370,Revenue,CAHD,Statemented Support Academies,Schools Funding,Cabot Learning Federation,954.33, 26-Sep-2018
371,Revenue,CAHD,Statemented Support Payments to OLAs,Other L.A.'s - General,Cabot Learning Federation,600.58, 26-Sep-2018
372,Revenue,CAHD,Statemented Support Academies,Schools Funding,Cabot Learning Federation,859.99, 26-Sep-2018
373,Revenue,CAHD,Statemented Support Academies,Schools Funding,Cabot Learning Federation,600.58, 26-Sep-2018
374,Revenue,CAHD,Statemented Support Academies,Schools Funding,Cabot Learning Federation,871.78, 26-Sep-2018
375,Revenue,CAHD,Statemented Support Academies,Schools Funding,Cabot Learning Federation,1048.66, 26-Sep-2018
376,Revenue,CAHD,Statemented Support Academies,Schools Funding,Cabot Learning Federation,506.24, 26-Sep-2018
377,Revenue,CAHD,Statemented Support Academies,Schools Funding,Cabot Learning Federation,1048.66, 26-Sep-2018
378,Revenue,CAHD,Mental Health and Emotional Wellbeing,Other Small Contracts,Cabot Learning Federation,6000, 03-Sep-2018
379,Revenue,CAHD,Statemented Support Payments to OLAs,Other L.A.'s - General,Cabot Learning Federation,600.58, 26-Sep-2018
380,Revenue,CAHD,Statemented Support Payments to OLAs,Other L.A.'s - General,Cabot Learning Federation,1072.24, 26-Sep-2018
381,Revenue,CAHD,Statemented Support Payments to OLAs,Other L.A.'s - General,Cabot Learning Federation,588.78, 26-Sep-2018
382,Revenue,CAHD,Statemented Support Academies,Schools Funding,Cabot Learning Federation,918.95, 26-Sep-2018
383,Revenue,CAHD,CSC - Residential Placements,Permanent Residential,Cambian Asperger Syndrome Services Limited,44342.16, 03-Sep-2018
384,Revenue,CAHD,CSC - Residential Placements,Permanent Residential,Cambian Whinfell School Limited,17739.75, 07-Sep-2018
385,Revenue,CAHD,18-25 Year Olds,Respite Planned - Residential,Cambian Whinfell School Limited,5516.76, 20-Sep-2018
386,Revenue,CAHD,18-25 Year Olds,Respite Planned - Residential,Cambian Whinfell School Limited,2298.65, 21-Sep-2018
387,Revenue,CAHD,Post 16 High Needs Placements,Other Private Contractors,Cambian Whinfell School Limited,26930.15, 21-Sep-2018
388,Revenue,CAHD,Post 16 High Needs Placements,Other Private Contractors,Cambian Whinfell School Limited,27747.77, 21-Sep-2018
389,Revenue,CAHD,Post 16 High Needs Placements,Other Private Contractors,Cambian Whinfell School Limited,28734.89, 21-Sep-2018
390,Revenue,CAHD,Post 16 High Needs Placements,Other Private Contractors,Cambian Whinfell School Limited,37806.37, 21-Sep-2018
391,Revenue,CAHD,Home Care - Elderly - North,Day Care / Social Activities,Camphill Communities Thornbury Limited,971.56, 07-Sep-2018
392,Revenue,CAHD,Home Care - Elderly - North,Other Small Contracts,Camphill Communities Thornbury Limited,163.44, 07-Sep-2018
393,Revenue,CAHD,Home Care - Elderly - North,Supported Living,Camphill Communities Thornbury Limited,635.6, 07-Sep-2018
394,Revenue,CAHD,Home Care - Elderly - North,Day Care / Social Activities,Camphill Communities Thornbury Limited,948.86, 18-Sep-2018
395,Revenue,CAHD,Home Care - Elderly - North,Supported Living,Camphill Communities Thornbury Limited,998.8, 18-Sep-2018
396,Revenue,CAHD,Home Care - Elderly - North,Day Care / Social Activities,Camphill Communities Thornbury Limited,735.48, 21-Sep-2018
397,Revenue,CAHD,Home Care - Elderly - North,Supported Living,Camphill Communities Thornbury Limited,635.6, 21-Sep-2018
398,Revenue,CAHD,Home Care - Elderly - North,Day Care / Social Activities,Camphill Communities Thornbury Limited,903.46, 28-Sep-2018
399,Revenue,CAHD,Home Care - Elderly - North,Other Small Contracts,Camphill Communities Thornbury Limited,163.44, 28-Sep-2018
400,Revenue,CAHD,Home Care - Elderly - North,Supported Living,Camphill Communities Thornbury Limited,576.58, 28-Sep-2018
401,Revenue,CAHD,Bed Purchasing - Elderly S117- North,Permanent Residential,Canjayor,2468.44, 25-Sep-2018
402,Revenue,CAHD,Woodleaze,Cleaning & Domestic Services,Cannon Hygiene Limited,1065, 19-Sep-2018
403,Revenue,CAHD,Home Care - Elderly - South,Other Small Contracts,Care 1st Homecare,1384.71, 21-Sep-2018
404,Revenue,CAHD,Home Care - Elderly - North,Other Small Contracts,Care 1st Homecare,3601.13, 21-Sep-2018
405,Revenue,CAHD,Younger MH non-res purchasing,Other Small Contracts,Care 1st Homecare,127.96, 21-Sep-2018
406,Revenue,CAHD,Home Care - Elderly - South,Other Small Contracts,Care 1st Homecare,1288.74, 21-Sep-2018
407,Revenue,CAHD,Home Care - Elderly - North,Other Small Contracts,Care 1st Homecare,3707.24, 21-Sep-2018
408,Revenue,CAHD,Younger MH non-res purchasing,Other Small Contracts,Care 1st Homecare,137.1, 21-Sep-2018
409,Revenue,CAHD,Home Care - Elderly - South,Other Small Contracts,Care 1st Homecare,1279.6, 21-Sep-2018
410,Revenue,CAHD,Home Care - Elderly - North,Other Small Contracts,Care 1st Homecare,1665.62, 21-Sep-2018
411,Revenue,CAHD,Younger MH non-res purchasing,Other Small Contracts,Care 1st Homecare,127.96, 21-Sep-2018
412,Revenue,CAHD,Home Care - Elderly - South,Other Small Contracts,Care 1st Homecare,1329.87, 21-Sep-2018
413,Revenue,CAHD,Home Care - Elderly - North,Other Small Contracts,Care 1st Homecare,3728.39, 21-Sep-2018
414,Revenue,CAHD,Younger MH non-res purchasing,Other Small Contracts,Care 1st Homecare,127.96, 21-Sep-2018
415,Revenue,CAHD,Home Care - Elderly - South,Other Small Contracts,Care 1st Homecare,1293.31, 21-Sep-2018
416,Revenue,CAHD,Home Care - Elderly - North,Other Small Contracts,Care 1st Homecare,2912.79, 21-Sep-2018
417,Revenue,CAHD,Younger MH non-res purchasing,Other Small Contracts,Care 1st Homecare,127.96, 21-Sep-2018
418,Revenue,CAHD,Home Care - Elderly - South,Other Small Contracts,Care 1st Homecare,1316.16, 21-Sep-2018
419,Revenue,CAHD,Home Care - Elderly - North,Other Small Contracts,Care 1st Homecare,3596.56, 21-Sep-2018
420,Revenue,CAHD,Younger MH non-res purchasing,Other Small Contracts,Care 1st Homecare,127.96, 21-Sep-2018
421,Revenue,CAHD,18-25 Year Olds,Other Small Contracts,Care Horizons Limited,131.88, 05-Sep-2018
422,Revenue,CAHD,Home Care - Elderly - South,Other Small Contracts,Care Horizons Limited,697.08, 05-Sep-2018
423,Revenue,CAHD,Home Care - Elderly - North,Day Care / Social Activities,Care Horizons Limited,390.93, 05-Sep-2018
424,Revenue,CAHD,Home Care - Elderly - North,Other Small Contracts,Care Horizons Limited,207.24, 05-Sep-2018
425,Revenue,CAHD,Younger MH non-res purchasing,Other Small Contracts,Care Horizons Limited,226.08, 05-Sep-2018
426,Revenue,CAHD,18-25 Year Olds,Other Small Contracts,Care Horizons Limited,56.52, 18-Sep-2018
427,Revenue,CAHD,Home Care - Elderly - South,Other Small Contracts,Care Horizons Limited,485.13, 18-Sep-2018
428,Revenue,CAHD,Home Care - Elderly - North,Day Care / Social Activities,Care Horizons Limited,315.57, 18-Sep-2018
429,Revenue,CAHD,Home Care - Elderly - North,Other Small Contracts,Care Horizons Limited,287.31, 18-Sep-2018
430,Revenue,CAHD,Younger MH non-res purchasing,Other Small Contracts,Care Horizons Limited,188.4, 18-Sep-2018
431,Revenue,CAHD,Home Care - Elderly - South,Other Small Contracts,Care Horizons Limited,518.1, 18-Sep-2018
432,Revenue,CAHD,Home Care - Elderly - North,Day Care / Social Activities,Care Horizons Limited,367.38, 18-Sep-2018
433,Revenue,CAHD,Home Care - Elderly - North,Other Small Contracts,Care Horizons Limited,75.36, 18-Sep-2018
434,Revenue,CAHD,Younger MH non-res purchasing,Other Small Contracts,Care Horizons Limited,226.08, 18-Sep-2018
435,Revenue,CAHD,Home Care - Elderly - South,Other Small Contracts,Care Horizons Limited,828.96, 25-Sep-2018
436,Revenue,CAHD,Home Care - Elderly - North,Other Small Contracts,Care Horizons Limited,75.36, 25-Sep-2018
437,Revenue,CAHD,Younger MH non-res purchasing,Other Small Contracts,Care Horizons Limited,226.08, 25-Sep-2018
438,Revenue,CAHD,Home Care - Elderly - North,Other Small Contracts,Caring Comes 1st Ltd,610.5, 21-Sep-2018
439,Revenue,CAHD,Home Care - Elderly - South,Other Small Contracts,Caring Comes 1st Ltd,628.32, 17-Sep-2018
440,Revenue,CAHD,Home Care - Elderly - South,Other Small Contracts,Caring Comes 1st Ltd,673.2, 24-Sep-2018
441,Revenue,CAHD,Home Care - Elderly - South,Other Small Contracts,Caring Comes 1st Ltd,673.2, 21-Sep-2018
442,Revenue,CAHD,Home Care - Elderly - South,Other Small Contracts,Caring Comes 1st Ltd,942.48, 21-Sep-2018
443,Revenue,CAHD,Home Care - Elderly - South,Other Small Contracts,Caring Comes 1st Ltd,673.2, 10-Sep-2018
444,Revenue,CAHD,Home Care - Elderly - South,Other Small Contracts,Caring Comes 1st Ltd,942.48, 24-Sep-2018
445,Revenue,CAHD,Home Care - Elderly - South,Other Small Contracts,Caring Comes 1st Ltd,852.72, 21-Sep-2018
446,Revenue,CAHD,Home Care - Elderly - South,Other Small Contracts,Caring Comes 1st Ltd,605.88, 17-Sep-2018
447,Revenue,CAHD,Home Care - Elderly - South,Other Small Contracts,Caring Comes 1st Ltd,1256.64, 24-Sep-2018
448,Revenue,CAHD,Home Care - Elderly - South,Other Small Contracts,Caring Comes 1st Ltd,942.48, 28-Sep-2018
449,Revenue,CAHD,Home Care - Elderly - North,Supported Living,Cartrefi Cymru Co-operative Ltd,7015.68, 11-Sep-2018
450,Revenue,CAHD,Home Care - Elderly - North,Supported Living,Cartrefi Cymru Co-operative Ltd,56125.44, 11-Sep-2018
451,Revenue,CAHD,Statemented Support Academies,Schools Funding,Castle School Education Trust,659.53, 26-Sep-2018
452,Revenue,CAHD,Statemented Support Academies,Schools Funding,Castle School Education Trust,635.95, 26-Sep-2018
453,Revenue,CAHD,Statemented Support Academies,Schools Funding,Castle School Education Trust,706.7, 26-Sep-2018
454,Revenue,CAHD,Statemented Support Academies,Schools Funding,Castle School Education Trust,918.95, 26-Sep-2018
455,Revenue,CAHD,Statemented Support Academies,Schools Funding,Castle School Education Trust,1072.24, 26-Sep-2018
456,Revenue,CAHD,Statemented Support Academies,Schools Funding,Castle School Education Trust,683.12, 26-Sep-2018
457,Revenue,CAHD,Statemented Support Academies,Schools Funding,Castle School Education Trust,1001.49, 26-Sep-2018
458,Revenue,CAHD,Statemented Support Academies,Schools Funding,Castle School Education Trust,1602.87, 26-Sep-2018
459,Revenue,CAHD,Statemented Support Academies,Schools Funding,Castle School Education Trust,1001.49, 26-Sep-2018
460,Revenue,CAHD,Statemented Support Academies,Schools Funding,Castle School Education Trust,1142.99, 26-Sep-2018
461,Revenue,CAHD,Statemented Support Academies,Schools Funding,Castle School Education Trust,1260.91, 26-Sep-2018
462,Revenue,CAHD,Statemented Support Academies,Schools Funding,Castle School Education Trust,647.74, 26-Sep-2018
463,Revenue,CAHD,Statemented Support Academies,Schools Funding,Castle School Education Trust,730.28, 26-Sep-2018
464,Revenue,CAHD,Statemented Support Academies,Schools Funding,Castle School Education Trust,541.62, 26-Sep-2018
465,Revenue,CAHD,Statemented Support Academies,Schools Funding,Castle School Education Trust,1095.83, 26-Sep-2018
466,Revenue,CAHD,Statemented Support Academies,Schools Funding,Castle School Education Trust,718.49, 26-Sep-2018
467,Revenue,CAHD,Statemented Support Academies,Schools Funding,Castle School Education Trust,765.66, 26-Sep-2018
468,Revenue,CAHD,Statemented Support Academies,Schools Funding,Castle School Education Trust,966.12, 26-Sep-2018
469,Revenue,CAHD,Statemented Support Academies,Schools Funding,Castle School Education Trust,848.2, 26-Sep-2018
470,Revenue,CAHD,Statemented Support Academies,Schools Funding,Castle School Education Trust,989.7, 26-Sep-2018
471,Revenue,CAHD,Statemented Support Academies,Schools Funding,Castle School Education Trust,1378.83, 26-Sep-2018
472,Revenue,CAHD,Statemented Support Academies,Schools Funding,Castle School Education Trust,1201.95, 26-Sep-2018
473,Revenue,CAHD,Statemented Support Academies,Schools Funding,Castle School Education Trust,659.53, 26-Sep-2018
474,Revenue,CAHD,Statemented Support Academies,Schools Funding,Castle School Education Trust,718.49, 26-Sep-2018
475,Revenue,CAHD,Statemented Support Academies,Schools Funding,Castle School Education Trust,1284.49, 26-Sep-2018
476,Revenue,CAHD,Academy Resource Base Funding,Other Public Bodies,Castle School Education Trust,1137.95, 25-Sep-2018
477,Revenue,CAHD,Academy Resource Base Funding,Other Public Bodies,Castle School Education Trust,1648.03, 25-Sep-2018
478,Revenue,CAHD,Academy Resource Base Funding,Other Public Bodies,Castle School Education Trust,2118.9, 25-Sep-2018
479,Revenue,CAHD,Academy Resource Base Funding,Other Public Bodies,Castle School Education Trust,1648.03, 25-Sep-2018
480,Revenue,CAHD,Academy Resource Base Funding,Other Public Bodies,Castle School Education Trust,1648.03, 25-Sep-2018
481,Revenue,CAHD,Academy Resource Base Funding,Other Public Bodies,Castle School Education Trust,1648.03, 25-Sep-2018
482,Revenue,CAHD,Statemented Support Academies,Schools Funding,Castle School Education Trust,612.37, 26-Sep-2018
483,Revenue,CAHD,Statemented Support Academies,Schools Funding,Castle School Education Trust,1626.45, 26-Sep-2018
484,Revenue,CAHD,Statemented Support Academies,Schools Funding,Castle School Education Trust,812.83, 26-Sep-2018
485,Revenue,CAHD,Statemented Support Academies,Schools Funding,Castle School Education Trust,989.7, 26-Sep-2018
486,Revenue,CAHD,Statemented Support Academies,Schools Funding,Castle School Education Trust,1048.66, 26-Sep-2018
487,Revenue,CAHD,Statemented Support Academies,Schools Funding,Castle School Education Trust,1331.66, 26-Sep-2018
488,Revenue,CAHD,Statemented Support Academies,Schools Funding,Castle School Education Trust,1697.2, 26-Sep-2018
489,Revenue,CAHD,Statemented Support Academies,Schools Funding,Castle School Education Trust,1166.58, 26-Sep-2018
490,Revenue,CAHD,Statemented Support Academies,Schools Funding,Castle School Education Trust,918.95, 26-Sep-2018
491,Revenue,CAHD,CSC - Legal Fees,Legal Fees,Cater Walsh Reporting Limited,562.75, 12-Sep-2018
492,Revenue,CAHD,Home Care - Elderly - North,Day Care / Social Activities,Causeway House,1389.44, 25-Sep-2018
493,Revenue,CAHD,Home Care - Elderly - North,Day Care / Social Activities,Causeway House,1202.8, 25-Sep-2018
494,Revenue,CAHD,Home Care - Elderly - South,Day Care / Social Activities,Causeway House,5130.52, 25-Sep-2018
495,Revenue,CAHD,18-25 Year Olds,Day Care / Social Activities,Causeway House,4311.6, 25-Sep-2018
496,Revenue,CAHD,Home Care - Elderly - North,Day Care / Social Activities,Causeway House,4393.52, 25-Sep-2018
497,Revenue,CAHD,Home Care - Elderly - North,Day Care / Social Activities,Causeway House,3800.76, 25-Sep-2018
498,Revenue,CAHD,Home Care - Elderly - North,Day Care / Social Activities,Causeway House,2029.16, 25-Sep-2018
499,Revenue,CAHD,Home Care - Elderly - North,Day Care / Social Activities,Causeway House,3150.88, 25-Sep-2018
500,Revenue,CAHD,Home Care - Elderly - North,Day Care / Social Activities,Causeway House,4694.24, 25-Sep-2018
501,Revenue,CAHD,Home Care - Elderly - North,Day Care / Social Activities,Causeway House,3566.88, 25-Sep-2018
502,Revenue,CAHD,Home Care - Elderly - North,Day Care / Social Activities,Causeway House,3075.56, 25-Sep-2018
503,Revenue,CAHD,Home Care - Elderly - North,Day Care / Social Activities,Causeway House,555.12, 25-Sep-2018
504,Revenue,CAHD,CSC - Purchase/Sale of Placements,Other Third Party Costs,Individual,9000, 03-Sep-2018
505,Revenue,CAHD,Bed Purchasing - Elderly S117- North,Permanent Nursing,Cedar Care Homes Limited,4434.68, 25-Sep-2018
506,Revenue,CAHD,Tenancy Start Up Scheme,Other Supplies & Services,Centrick Property,2380, 24-Sep-2018
507,Revenue,CAHD,Bed Purchasing - Elderly S117- North,Permanent Residential,Challenge House,2511.12, 25-Sep-2018
508,Revenue,CAHD,Bed Purchasing - Southmead Hospital,Respite Emergency - Residential,Challenge House,2315.16, 25-Sep-2018
509,Revenue,CAHD,Bed Purchasing - North,Permanent Residential,Challenge House,2180.68, 25-Sep-2018
510,Revenue,CAHD,Bed Purchasing - North,Permanent Residential,Challenge House,12733.38, 25-Sep-2018
511,Revenue,CAHD,Bed Purchasing - North,Permanent Residential,Challenge House,2315.16, 25-Sep-2018
512,Revenue,CAHD,Bed Purchasing - North,Fees & Charges Income - General,Challenge House,3215.19, 25-Sep-2018
513,Revenue,CAHD,Bed Purchasing - North,Permanent Residential,Challenge House,2039.72, 25-Sep-2018
514,Revenue,CAHD,Bed Purchasing - North,Permanent Nursing,Challenge House,3057, 25-Sep-2018
515,Revenue,CAHD,Bed Purchasing - Elderly S117- North,Permanent Nursing,Challenge House,2339.64, 25-Sep-2018
516,Revenue,CAHD,Bed Purchasing - Southmead Hospital,Permanent Residential,Challenge House,2343.72, 25-Sep-2018
517,Revenue,CAHD,Bed Purchasing - North,Permanent Residential,Challenge House,2683.84, 25-Sep-2018
518,Revenue,CAHD,Bed Purchasing - Southmead Hospital,Permanent Nursing,Challenge House,32035.64, 25-Sep-2018
519,Revenue,CAHD,Bed Purchasing - Southmead Hospital,Permanent Nursing,Challenge House,25542.72, 25-Sep-2018
520,Revenue,CAHD,Bed Purchasing - Southmead Hospital,Permanent Nursing,Challenge House,13811.16, 25-Sep-2018
521,Revenue,CAHD,Bed Purchasing - Southmead Hospital,Permanent Nursing,Challenge House,2511.12, 25-Sep-2018
522,Revenue,CAHD,Bed Purchasing - Southmead Hospital,Fees & Charges Income - General,Challenge House,1861.51, 25-Sep-2018
523,Revenue,CAHD,Bed Purchasing - Southmead Hospital,Fees & Charges Income - General,Challenge House,1451.31, 25-Sep-2018
524,Revenue,CAHD,Bed Purchasing - Southmead Hospital,Fees & Charges Income - General,Challenge House,5428.87, 25-Sep-2018
525,Revenue,CAHD,Bed Purchasing - Southmead Hospital,Fees & Charges Income - General,Challenge House,3388.86, 25-Sep-2018
526,Revenue,CAHD,Bed Purchasing - North,Permanent Nursing,Challenge House,2339.64, 25-Sep-2018
527,Revenue,CAHD,Bed Purchasing - Southmead Hospital,Permanent Nursing,Challenge House,3057, 25-Sep-2018
528,Revenue,CAHD,Bed Purchasing - Southmead Hospital,Respite Planned - Residential,Chandos House,800, 25-Sep-2018
529,Revenue,CAHD,Bed Purchasing - Southmead Hospital,Respite Planned - Residential,Chandos House,3985.71, 25-Sep-2018
530,Revenue,CAHD,Bed Purchasing - South,Permanent Nursing,Charnwood House Nursing Home,12235.6, 25-Sep-2018
531,Revenue,CAHD,Home Care - Elderly - South,Other Small Contracts,Cherish Able Care Limited,6706.85, 07-Sep-2018
532,Revenue,CAHD,Home Care - Elderly - North,Other Small Contracts,Cherish Able Care Limited,2741.52, 07-Sep-2018
533,Revenue,CAHD,Home Care - Elderly - South,Other Small Contracts,Cherish Able Care Limited,7118.15, 14-Sep-2018
534,Revenue,CAHD,Home Care - Elderly - North,Other Small Contracts,Cherish Able Care Limited,2765, 14-Sep-2018
535,Revenue,CAHD,Home Care - Elderly - South,Other Small Contracts,Cherish Able Care Limited,7186.7, 21-Sep-2018
536,Revenue,CAHD,Home Care - Elderly - North,Other Small Contracts,Cherish Able Care Limited,2702.88, 21-Sep-2018
537,Revenue,CAHD,Home Care - Elderly - South,Other Small Contracts,Cherish Able Care Limited,6999.33, 28-Sep-2018
538,Revenue,CAHD,Home Care - Elderly - North,Other Small Contracts,Cherish Able Care Limited,2443.29, 28-Sep-2018
539,Revenue,CAHD,Home Care - Elderly - South,Other Small Contracts,Cherry Orchards,5886.72, 21-Sep-2018
540,Revenue,CAHD,18-25 Year Olds,Other Small Contracts,Cherry Orchards,8010.24, 07-Sep-2018
541,Revenue,CAHD,18-25 Year Olds,Other Small Contracts,Cherry Orchards,8010.24, 06-Sep-2018
542,Revenue,CAHD,Bed purchasing - S28A Under 65 - South,Permanent Residential,Chescombe Lodge,9535.6, 25-Sep-2018
543,Revenue,CAHD,CSC - Agency Fostering,Foster Parent Allowances,Child Care Bureau Limited,3801.3, 28-Sep-2018
544,Revenue,CAHD,CSC - LAC Placements,Client Transport,Childrens Contact Services Ltd,4756.7, 13-Sep-2018
545,Revenue,CAHD,CSC - LAC Placements,Client Transport,Childrens Contact Services Ltd,4715.64, 13-Sep-2018
546,Revenue,CAHD,CSC - LAC Placements,Client Transport,Childrens Contact Services Ltd,4333.09, 13-Sep-2018
547,Revenue,CAHD,CSC - LAC Placements,Client Transport,Childrens Contact Services Ltd,4134.83, 14-Sep-2018
548,Revenue,CAHD,CSC - LAC Placements,Client Transport,Childrens Contact Services Ltd,4455.4, 13-Sep-2018
549,Revenue,CAHD,CSC - LAC Placements,Client Transport,Childrens Contact Services Ltd,4250.4, 13-Sep-2018
550,Revenue,CAHD,CSC - LAC Placements,Client Transport,Childrens Contact Services Ltd,4795.15, 13-Sep-2018
551,Revenue,CAHD,CSC - LAC Placements,Client Transport,Childrens Contact Services Ltd,4850.4, 13-Sep-2018
552,Revenue,CAHD,18-25 Year Olds,Other Small Contracts,Cintre,57.12, 11-Sep-2018
553,Revenue,CAHD,Home Care - Elderly - South,Other Small Contracts,Cintre,266.56, 11-Sep-2018
554,Revenue,CAHD,Home Care - Elderly - North,Other Small Contracts,Cintre,542.64, 11-Sep-2018
555,Revenue,CAHD,18-25 Year Olds,Other Small Contracts,Cintre,57.12, 11-Sep-2018
556,Revenue,CAHD,Home Care - Elderly - South,Other Small Contracts,Cintre,285.6, 11-Sep-2018
557,Revenue,CAHD,Home Care - Elderly - North,Other Small Contracts,Cintre,380.8, 11-Sep-2018
558,Revenue,CAHD,18-25 Year Olds,Other Small Contracts,Cintre,104.72, 18-Sep-2018
559,Revenue,CAHD,Home Care - Elderly - South,Other Small Contracts,Cintre,395.08, 18-Sep-2018
560,Revenue,CAHD,Home Care - Elderly - North,Other Small Contracts,Cintre,466.48, 18-Sep-2018
561,Revenue,CAHD,18-25 Year Olds,Other Small Contracts,Cintre,104.72, 25-Sep-2018
562,Revenue,CAHD,Home Care - Elderly - South,Other Small Contracts,Cintre,376.04, 25-Sep-2018
563,Revenue,CAHD,Home Care - Elderly - North,Other Small Contracts,Cintre,561.68, 25-Sep-2018
564,Revenue,CAHD,MH Purchasing - Younger,Permanent Residential,Claro Homes,2803.6, 25-Sep-2018
565,Revenue,CAHD,Section 117 Placements MH Younger,Permanent Residential,Claro Homes,3471.28, 25-Sep-2018
566,Revenue,CAHD,Bed Purchasing - Southmead Hospital,Respite Planned - Nursing,Claro Homes,3240.44, 25-Sep-2018
567,Revenue,CAHD,Bed Purchasing - South,Permanent Residential,Cleeve Lodge,3600, 25-Sep-2018
568,Revenue,CAHD,Bed Purchasing - South,Permanent Residential,Cleeve Lodge,1277.76, 25-Sep-2018
569,Revenue,CAHD,Bed Purchasing - Southmead Hospital,Permanent Residential,Cleeve Lodge,2853.2, 25-Sep-2018
570,Revenue,CAHD,Bed Purchasing - South,Permanent Residential,Cleeve Lodge,3014.16, 25-Sep-2018
571,Revenue,CAHD,Bed Purchasing - South,Respite Planned - Residential,Cleeve Lodge,642.86, 25-Sep-2018
572,Revenue,CAHD,Bed Purchasing - South,Respite Planned - Residential,Cleeve Lodge,514.29, 25-Sep-2018
573,Revenue,CAHD,Bed Purchasing - South,Permanent Residential,Cleeve Lodge,3220.04, 25-Sep-2018
574,Revenue,CAHD,Bed Purchasing - South,Permanent Residential,Cleeve Lodge,2787.08, 25-Sep-2018
575,Revenue,CAHD,Bed Purchasing - South,Permanent Residential,Cleeve Lodge,2573.84, 25-Sep-2018
576,Revenue,CAHD,Bed Purchasing - South,Permanent Residential,Cleeve Lodge,2955.12, 25-Sep-2018
577,Revenue,CAHD,Home Care - Elderly - North,Other Small Contracts,Clover Health and Home Care Ltd,1440.04, 04-Sep-2018
578,Revenue,CAHD,Home Care - Elderly - North,Other Small Contracts,Clover Health and Home Care Ltd,1419.32, 17-Sep-2018
579,Revenue,CAHD,Home Care - Elderly - North,Other Small Contracts,Clover Health and Home Care Ltd,1595.44, 03-Sep-2018
580,Revenue,CAHD,Home Care - Elderly - North,Other Small Contracts,Clover Health and Home Care Ltd,1579.9, 03-Sep-2018
581,Revenue,CAHD,Home Care - Elderly - North,Other Small Contracts,Clover Health and Home Care Ltd,1585.08, 17-Sep-2018
582,Revenue,CAHD,Bed Purchasing - South,Permanent Residential,Collingwood Residential Home,6835.71, 25-Sep-2018
583,Revenue,CAHD,Bed Purchasing - South,Permanent Residential,Collingwood Residential Home,2900, 25-Sep-2018
584,Revenue,CAHD,Bed Purchasing - South,Fees & Charges Income - General,Collingwood Residential Home,533.92, 25-Sep-2018
585,Revenue,CAHD,Bed Purchasing - South,Permanent Residential,Collingwood Residential Home,2760, 25-Sep-2018
586,Revenue,CAHD,Bed Purchasing - South,Permanent Residential,Collingwood Residential Home,2188.76, 25-Sep-2018
587,Revenue,CAHD,Bed Purchasing - Southmead Hospital,Permanent Residential,Collingwood Residential Home,2477.4, 25-Sep-2018
588,Revenue,CAHD,Bed Purchasing - South,Permanent Residential,Collingwood Residential Home,2364.08, 25-Sep-2018
589,Revenue,CAHD,Bed Purchasing - Southmead Hospital,Permanent Residential,Collingwood Residential Home,3000, 25-Sep-2018
590,Revenue,CAHD,Bed Purchasing - South,Permanent Residential,Collingwood Residential Home,2547.52, 25-Sep-2018
591,Revenue,CAHD,Bed Purchasing - South,Permanent Residential,Collingwood Residential Home,2445.6, 25-Sep-2018
592,Revenue,CAHD,Home Care - Elderly - North,Other Small Contracts,Complimenting Care and Training Services (CCTS) Lt,12193.45, 20-Sep-2018
593,Revenue,CAHD,Home Care - Elderly - North,Other Small Contracts,Complimenting Care and Training Services (CCTS) Lt,12746.65, 12-Sep-2018
594,Revenue,CAHD,Home Care - Elderly - North,Other Small Contracts,Complimenting Care and Training Services (CCTS) Lt,12640.62, 07-Sep-2018
595,Revenue,CAHD,Home Care - Elderly - North,Other Small Contracts,Complimenting Care and Training Services (CCTS) Lt,12682.11, 14-Sep-2018
596,Revenue,CAHD,Home Care - Elderly - North,Other Small Contracts,Complimenting Care and Training Services (CCTS) Lt,12244.16, 21-Sep-2018
597,Revenue,CAHD,Bed and Breakfast,Bed & Breakfast,Connolly & Callaghan Limited,581, 14-Sep-2018
598,Revenue,CAHD,Younger MH non-res purchasing,Supported Living,Connolly & Callaghan Limited,420, 07-Sep-2018
599,Revenue,CAHD,CSC - Emergency Duty Team,Bed & Breakfast,Connolly & Callaghan Limited,525, 18-Sep-2018
600,Revenue,CAHD,Bed and Breakfast,Bed & Breakfast,Connolly & Callaghan Limited,455, 06-Sep-2018
601,Revenue,CAHD,Bed and Breakfast,Bed & Breakfast,Connolly & Callaghan Limited,791, 06-Sep-2018
602,Revenue,CAHD,Bed and Breakfast,Bed & Breakfast,Connolly & Callaghan Limited,539, 06-Sep-2018
603,Revenue,CAHD,Bed and Breakfast,Bed & Breakfast,Connolly & Callaghan Limited,546, 06-Sep-2018
604,Revenue,CAHD,Bed and Breakfast,Bed & Breakfast,Connolly & Callaghan Limited,581, 06-Sep-2018
605,Revenue,CAHD,Bed and Breakfast,Bed & Breakfast,Connolly & Callaghan Limited,581, 06-Sep-2018
606,Revenue,CAHD,Bed and Breakfast,Bed & Breakfast,Connolly & Callaghan Limited,534, 19-Sep-2018
607,Revenue,CAHD,Bed and Breakfast,Bed & Breakfast,Connolly & Callaghan Limited,420, 06-Sep-2018
608,Revenue,CAHD,Bed and Breakfast,Bed & Breakfast,Connolly & Callaghan Limited,455, 06-Sep-2018
609,Revenue,CAHD,Bed and Breakfast,Bed & Breakfast,Connolly & Callaghan Limited,497, 11-Sep-2018
610,Revenue,CAHD,Younger MH non-res purchasing,Supported Living,Connolly & Callaghan Limited,420, 07-Sep-2018
611,Revenue,CAHD,Bed and Breakfast,Bed & Breakfast,Connolly & Callaghan Limited,570, 10-Sep-2018
612,Revenue,CAHD,Bed and Breakfast,Bed & Breakfast,Connolly & Callaghan Limited,455, 11-Sep-2018
613,Revenue,CAHD,Bed and Breakfast,Bed & Breakfast,Connolly & Callaghan Limited,791, 11-Sep-2018
614,Revenue,CAHD,Bed and Breakfast,Bed & Breakfast,Connolly & Callaghan Limited,546, 14-Sep-2018
615,Revenue,CAHD,Bed and Breakfast,Bed & Breakfast,Connolly & Callaghan Limited,581, 17-Sep-2018
616,Revenue,CAHD,Bed and Breakfast,Bed & Breakfast,Connolly & Callaghan Limited,581, 12-Sep-2018
617,Revenue,CAHD,Bed and Breakfast,Bed & Breakfast,Connolly & Callaghan Limited,798, 12-Sep-2018
618,Revenue,CAHD,Bed and Breakfast,Bed & Breakfast,Connolly & Callaghan Limited,623, 12-Sep-2018
619,Revenue,CAHD,Bed and Breakfast,Bed & Breakfast,Connolly & Callaghan Limited,475, 12-Sep-2018
620,Revenue,CAHD,Bed and Breakfast,Bed & Breakfast,Connolly & Callaghan Limited,455, 11-Sep-2018
621,Revenue,CAHD,Bed and Breakfast,Bed & Breakfast,Connolly & Callaghan Limited,497, 11-Sep-2018
622,Revenue,CAHD,Younger MH non-res purchasing,Supported Living,Connolly & Callaghan Limited,420, 17-Sep-2018
623,Revenue,CAHD,Younger MH non-res purchasing,Supported Living,Connolly & Callaghan Limited,420, 13-Sep-2018
624,Revenue,CAHD,Bed and Breakfast,Bed & Breakfast,Connolly & Callaghan Limited,455, 21-Sep-2018
625,Revenue,CAHD,Bed and Breakfast,Bed & Breakfast,Connolly & Callaghan Limited,791, 21-Sep-2018
626,Revenue,CAHD,Bed and Breakfast,Bed & Breakfast,Connolly & Callaghan Limited,546, 21-Sep-2018
627,Revenue,CAHD,Bed and Breakfast,Bed & Breakfast,Connolly & Callaghan Limited,581, 21-Sep-2018
628,Revenue,CAHD,Bed and Breakfast,Bed & Breakfast,Connolly & Callaghan Limited,798, 21-Sep-2018
629,Revenue,CAHD,Bed and Breakfast,Bed & Breakfast,Connolly & Callaghan Limited,665, 21-Sep-2018
630,Revenue,CAHD,Bed and Breakfast,Bed & Breakfast,Connolly & Callaghan Limited,497, 21-Sep-2018
631,Revenue,CAHD,Bed and Breakfast,Bed & Breakfast,Connolly & Callaghan Limited,455, 21-Sep-2018
632,Revenue,CAHD,Bed and Breakfast,Bed & Breakfast,Connolly & Callaghan Limited,497, 21-Sep-2018
633,Revenue,CAHD,Bed and Breakfast,Bed & Breakfast,Connolly & Callaghan Limited,581, 28-Sep-2018
634,Revenue,CAHD,Bed and Breakfast,Bed & Breakfast,Connolly & Callaghan Limited,455, 28-Sep-2018
635,Revenue,CAHD,Bed and Breakfast,Bed & Breakfast,Connolly & Callaghan Limited,791, 28-Sep-2018
636,Revenue,CAHD,Bed and Breakfast,Bed & Breakfast,Connolly & Callaghan Limited,546, 28-Sep-2018
637,Revenue,CAHD,Bed and Breakfast,Bed & Breakfast,Connolly & Callaghan Limited,581, 28-Sep-2018
638,Revenue,CAHD,Bed and Breakfast,Bed & Breakfast,Connolly & Callaghan Limited,658, 28-Sep-2018
639,Revenue,CAHD,Bed and Breakfast,Bed & Breakfast,Connolly & Callaghan Limited,475, 28-Sep-2018
640,Revenue,CAHD,Bed and Breakfast,Bed & Breakfast,Connolly & Callaghan Limited,497, 28-Sep-2018
641,Revenue,CAHD,Bed and Breakfast,Bed & Breakfast,Connolly & Callaghan Limited,455, 28-Sep-2018
642,Revenue,CAHD,Bed and Breakfast,Bed & Breakfast,Connolly & Callaghan Limited,497, 28-Sep-2018
643,Revenue,CAHD,Younger MH non-res purchasing,Supported Living,Connolly & Callaghan Limited,420, 28-Sep-2018
644,Revenue,CAHD,CSC - Vinney Green Secure Unit,Other Supplies & Services,Coram Voice,1948.5, 19-Sep-2018
645,Revenue,CAHD,CSC - Fostering Carer Support,Care Mgt/Asesmnt Staff Pay,Core Assets Expert Services Ltd T/A Carter Brown,866.58, 07-Sep-2018
646,Revenue,CAHD,Independent Special Placements - Post 16,Other Private Contractors,Cotswold Chine School,46897.5, 04-Sep-2018
647,Revenue,CAHD,Independent Special Placements - Pre 16,Other Private Contractors,Cotswold Chine School,65149.5, 04-Sep-2018
648,Revenue,CAHD,Independent Special Placements - Pre 16,Other Private Contractors,Cotswold Chine School,22815, 04-Sep-2018
649,Revenue,CAHD,Independent Special Placements - Pre 16,Other Private Contractors,Cotswold Chine School,23955.75, 04-Sep-2018
650,Revenue,CAHD,Bed Purchasing - Southmead Hospital,Permanent Nursing,Cranhill Nursing Home,3566.52, 25-Sep-2018
651,Revenue,CAHD,Bed Purchasing - North,Permanent Residential,Cream Iii Ltd,8441.4, 25-Sep-2018
652,Revenue,CAHD,Bed purchasing - S28A Under 65 - South,Permanent Residential,Creedy Court,10349.56, 25-Sep-2018
653,Revenue,CAHD,Bed purchasing - S28A Under 65 - South,Permanent Residential,Creedy Court,8696.2, 25-Sep-2018
654,Revenue,CAHD,Bed Purchasing - North,Permanent Residential,Creedy Court,13724.6, 25-Sep-2018
655,Revenue,CAHD,EARLY YEARS DISABILITY  ACCES FUND,Preventative Assistance,Crossways Pre-School,615, 10-Sep-2018
656,Revenue,CAHD,Bed Purchasing - South,Permanent Residential,Daneswood,11981.24, 25-Sep-2018
657,Revenue,CAHD,Home Care - Elderly - South,Day Care / Social Activities,Daneswood,1380.32, 25-Sep-2018
658,Revenue,CAHD,Bed Purchasing - North,Permanent Residential,Daneswood,10023.44, 25-Sep-2018
659,Revenue,CAHD,CSC - Legal Fees,Legal Fees,Daniel Woodman & Co Limited,1096.2, 07-Sep-2018
660,Revenue,CAHD,Bed Purchasing - Elderly S117- North,Permanent Nursing,Danshell Healthcare Group,10617.44, 25-Sep-2018
661,Revenue,CAHD,Jointly Funded H&SC Packages,Permanent Nursing,Danshell Healthcare Group,1575.48, 25-Sep-2018
662,Revenue,CAHD,Learning Difficulties PSL,Other Supplies & Services,Individual,2267.91, 21-Sep-2018
663,Revenue,CAHD,CSC - Adoption Support Fund,Post Adoption,Individual,281.17, 19-Sep-2018
664,Revenue,CAHD,CSC - Adoption Support Fund,Post Adoption,Individual,281.16, 19-Sep-2018
665,Revenue,CAHD,CSC - Adoption Support Fund,Post Adoption,Individual,281.17, 19-Sep-2018
666,Revenue,CAHD,CSC - Adoption Support Fund,Post Adoption,Individual,354, 14-Sep-2018
667,Revenue,CAHD,CSC - Adoption Support Fund,Post Adoption,Individual,354, 14-Sep-2018
668,Revenue,CAHD,South Glos Users in South Glos Homes,Permanent Nursing,Deerhurst Nursing Home,632.64, 25-Sep-2018
669,Revenue,CAHD,Bed Purchasing - Southmead Hospital,Permanent Nursing,Deerhurst Nursing Home,3716.08, 25-Sep-2018
670,Revenue,CAHD,South Glos Users in South Glos Homes,Permanent Nursing,Deerhurst Nursing Home,632.64, 25-Sep-2018
671,Revenue,CAHD,Bed Purchasing - South,Permanent Nursing,Deerhurst Nursing Home,3417.64, 25-Sep-2018
672,Revenue,CAHD,South Glos Users in South Glos Homes,Permanent Nursing,Deerhurst Nursing Home,632.64, 25-Sep-2018
673,Revenue,CAHD,South Glos Users in South Glos Homes,Permanent Nursing,Deerhurst Nursing Home,632.64, 25-Sep-2018
674,Revenue,CAHD,South Glos Users in South Glos Homes,Permanent Nursing,Deerhurst Nursing Home,632.64, 25-Sep-2018
675,Revenue,CAHD,Bed Purchasing - North,Fees & Charges Income - General,Deerhurst Nursing Home,4531.63, 25-Sep-2018
676,Revenue,CAHD,Bed Purchasing - South,Permanent Nursing,Deerhurst Nursing Home,2963.08, 25-Sep-2018
677,Revenue,CAHD,South Glos Users in South Glos Homes,Permanent Nursing,Deerhurst Nursing Home,632.64, 25-Sep-2018
678,Revenue,CAHD,South Glos Users in South Glos Homes,Permanent Nursing,Deerhurst Nursing Home,632.64, 25-Sep-2018
679,Revenue,CAHD,South Glos Users in South Glos Homes,Permanent Nursing,Deerhurst Nursing Home,632.64, 25-Sep-2018
680,Revenue,CAHD,South Glos Users in South Glos Homes,Permanent Nursing,Deerhurst Nursing Home,632.64, 25-Sep-2018
681,Revenue,CAHD,South Glos Users in South Glos Homes,Permanent Nursing,Deerhurst Nursing Home,632.64, 25-Sep-2018
682,Revenue,CAHD,South Glos Users in South Glos Homes,Permanent Nursing,Deerhurst Nursing Home,632.64, 25-Sep-2018
683,Revenue,CAHD,South Glos Users in South Glos Homes,Permanent Nursing,Deerhurst Nursing Home,632.64, 25-Sep-2018
684,Revenue,CAHD,Bed Purchasing - Southmead Hospital,Permanent Nursing,Deerhurst Nursing Home,3872.2, 25-Sep-2018
685,Revenue,CAHD,Bed Purchasing - North,Permanent Nursing,Deerhurst Nursing Home,3513.12, 25-Sep-2018
686,Revenue,CAHD,South Glos Users in South Glos Homes,Permanent Nursing,Deerhurst Nursing Home,632.64, 25-Sep-2018
687,Revenue,CAHD,South Glos Users in South Glos Homes,Permanent Nursing,Deerhurst Nursing Home,632.64, 25-Sep-2018
688,Revenue,CAHD,Home Care - Elderly - North,Day Care / Social Activities,Deerhurst Nursing Home,544, 25-Sep-2018
689,Revenue,CAHD,Bed Purchasing - Elderly S117- North,Permanent Nursing,Deerhurst Nursing Home,3872.2, 25-Sep-2018
690,Revenue,CAHD,South Glos Users in South Glos Homes,Permanent Nursing,Deerhurst Nursing Home,632.64, 25-Sep-2018
691,Revenue,CAHD,South Glos Users in South Glos Homes,Permanent Nursing,Deerhurst Nursing Home,632.64, 25-Sep-2018
692,Revenue,CAHD,South Glos Users in South Glos Homes,Permanent Nursing,Deerhurst Nursing Home,632.64, 25-Sep-2018
693,Revenue,CAHD,Bed Purchasing - Central,Respite Planned - Residential,Deerhurst Nursing Home,809.09, 25-Sep-2018
694,Revenue,CAHD,South Glos Users in South Glos Homes,Permanent Nursing,Deerhurst Nursing Home,632.64, 25-Sep-2018
695,Revenue,CAHD,Bed Purchasing - South,Permanent Nursing,Deerhurst Nursing Home,3872.2, 25-Sep-2018
696,Revenue,CAHD,South Glos Users in South Glos Homes,Permanent Nursing,Deerhurst Nursing Home,632.64, 25-Sep-2018
697,Revenue,CAHD,Bed purchasing - Elderly S117 - South,Permanent Nursing,Deerhurst Nursing Home,3872.2, 25-Sep-2018
698,Revenue,CAHD,Bed purchasing - Elderly S117 - South,Permanent Nursing,Deerhurst Nursing Home,2963.08, 25-Sep-2018
699,Revenue,CAHD,South Glos Users in South Glos Homes,Permanent Nursing,Deerhurst Nursing Home,632.64, 25-Sep-2018
700,Revenue,CAHD,Bed Purchasing - South,Permanent Nursing,Deerhurst Nursing Home,3800, 25-Sep-2018
701,Revenue,CAHD,South Glos Users in South Glos Homes,Permanent Nursing,Deerhurst Nursing Home,632.64, 25-Sep-2018
702,Revenue,CAHD,South Glos Users in South Glos Homes,Permanent Nursing,Deerhurst Nursing Home,632.64, 25-Sep-2018
703,Revenue,CAHD,South Glos Users in South Glos Homes,Permanent Nursing,Deerhurst Nursing Home,632.64, 25-Sep-2018
704,Revenue,CAHD,South Glos Users in South Glos Homes,Permanent Nursing,Deerhurst Nursing Home,632.64, 25-Sep-2018
705,Revenue,CAHD,Home Care - Elderly - South,Day Care / Social Activities,Deerhurst Nursing Home,680, 25-Sep-2018
706,Revenue,CAHD,South Glos Users in South Glos Homes,Permanent Nursing,Deerhurst Nursing Home,632.64, 25-Sep-2018
707,Revenue,CAHD,South Glos Users in South Glos Homes,Permanent Nursing,Deerhurst Nursing Home,632.64, 25-Sep-2018
708,Revenue,CAHD,South Glos Users in South Glos Homes,Permanent Nursing,Deerhurst Nursing Home,632.64, 25-Sep-2018
709,Revenue,CAHD,South Glos Users in South Glos Homes,Permanent Nursing,Deerhurst Nursing Home,632.64, 25-Sep-2018
710,Revenue,CAHD,Bed Purchasing - South,Permanent Residential,Deerhurst Nursing Home,3800, 25-Sep-2018
711,Revenue,CAHD,Bed Purchasing - South,Permanent Nursing,Deerhurst Nursing Home,3872.2, 25-Sep-2018
712,Revenue,CAHD,South Glos Users in South Glos Homes,Permanent Nursing,Deerhurst Nursing Home,632.64, 25-Sep-2018
713,Revenue,CAHD,Bed Purchasing - North,Permanent Nursing,Deerhurst Nursing Home,2963.08, 25-Sep-2018
714,Revenue,CAHD,South Glos Users in South Glos Homes,Permanent Nursing,Deerhurst Nursing Home,632.64, 25-Sep-2018
715,Revenue,CAHD,Bed Purchasing - Southmead Hospital,Permanent Nursing,Deerhurst Nursing Home,2769, 25-Sep-2018
716,Revenue,CAHD,South Glos Users in South Glos Homes,Permanent Nursing,Deerhurst Nursing Home,632.64, 25-Sep-2018
717,Revenue,CAHD,Bed Purchasing - South,Permanent Nursing,Deerhurst Nursing Home,2963.76, 25-Sep-2018
718,Revenue,CAHD,Bed Purchasing - South,Permanent Nursing,Deerhurst Nursing Home,2670.16, 25-Sep-2018
719,Revenue,CAHD,South Glos Users in South Glos Homes,Permanent Nursing,Deerhurst Nursing Home,632.64, 25-Sep-2018
720,Revenue,CAHD,South Glos Users in South Glos Homes,Permanent Nursing,Deerhurst Nursing Home,632.64, 25-Sep-2018
721,Revenue,CAHD,Bed Purchasing - South,Permanent Nursing,Deerhurst Nursing Home,16499.77, 25-Sep-2018
722,Revenue,CAHD,Bed Purchasing - South,Permanent Nursing,Deerhurst Nursing Home,3915.2, 25-Sep-2018
723,Revenue,CAHD,Bed Purchasing - South,Fees & Charges Income - General,Deerhurst Nursing Home,4629.02, 25-Sep-2018
724,Revenue,CAHD,South Glos Users in South Glos Homes,Permanent Nursing,Deerhurst Nursing Home,632.64, 25-Sep-2018
725,Revenue,CAHD,South Glos Users in South Glos Homes,Permanent Nursing,Deerhurst Nursing Home,632.64, 25-Sep-2018
726,Revenue,CAHD,South Glos Users in South Glos Homes,Permanent Nursing,Deerhurst Nursing Home,632.64, 25-Sep-2018
727,Revenue,CAHD,Post 16 High Needs Placements,Other Private Contractors,Derwen College,17183.37, 17-Sep-2018
728,Revenue,CAHD,Home Care - Elderly - South,Supported Living,Design House,2599.08, 25-Sep-2018
729,Revenue,CAHD,Home Care - Elderly - South,Supported Living,Design House,2991.52, 25-Sep-2018
730,Revenue,CAHD,Home Care - Elderly - South,Supported Living,Design House,3059.64, 25-Sep-2018
731,Revenue,CAHD,Home Care - Elderly - South,Supported Living,Design House,2923.4, 25-Sep-2018
732,Revenue,CAHD,Home Care - Elderly - South,Day Care / Social Activities,Design House,501.92, 25-Sep-2018
733,Revenue,CAHD,Home Care - Elderly - North,Day Care / Social Activities,Design House,2383.88, 25-Sep-2018
734,Revenue,CAHD,Home Care - Elderly - South,Day Care / Social Activities,Design House,1499.56, 25-Sep-2018
735,Revenue,CAHD,Home Care - Elderly - South,Supported Living,Design House,2577, 25-Sep-2018
736,Revenue,CAHD,Home Care - Elderly - South,Supported Living,Design House,2577, 25-Sep-2018
737,Revenue,CAHD,Home Care - Elderly - South,Supported Living,Design House,2099.16, 25-Sep-2018
738,Revenue,CAHD,Home Care - Elderly - South,Day Care / Social Activities,Design House,501.92, 25-Sep-2018
739,Revenue,CAHD,Home Care - Elderly - South,Supported Living,Design House,1852.24, 25-Sep-2018
740,Revenue,CAHD,Home Care - Elderly - South,Supported Living,Design House,2457.84, 25-Sep-2018
741,Revenue,CAHD,Home Care - Elderly - South,Supported Living,Design House,4206.6, 25-Sep-2018
742,Revenue,CAHD,Home Care - Elderly - South,Supported Living,Design House,2982.96, 25-Sep-2018
743,Revenue,CAHD,Home Care - Elderly - South,Day Care / Social Activities,Design House,1470.8, 25-Sep-2018
744,Revenue,CAHD,Home Care - Elderly - South,Supported Living,Design House,2832.52, 25-Sep-2018
745,Revenue,CAHD,Home Care - Elderly - South,Supported Living,Design House,2483.44, 25-Sep-2018
746,Revenue,CAHD,Home Care - Elderly - South,Supported Living,Design House,2204.8, 25-Sep-2018
747,Revenue,CAHD,Home Care - Elderly - South,Supported Living,Design House,2204.8, 25-Sep-2018
748,Revenue,CAHD,Home Care - Elderly - South,Other Small Contracts,Dhek Bhal,431.76, 11-Sep-2018
749,Revenue,CAHD,Home Care - Elderly - North,Other Small Contracts,Dhek Bhal,128.5, 11-Sep-2018
750,Revenue,CAHD,Home Care - Elderly - South,Other Small Contracts,Dhek Bhal,406.06, 21-Sep-2018
751,Revenue,CAHD,Home Care - Elderly - North,Other Small Contracts,Dhek Bhal,123.36, 21-Sep-2018
752,Revenue,CAHD,Home Care - Elderly - South,Day Care / Social Activities,Dhek Bhal,708.49, 21-Sep-2018
753,Revenue,CAHD,Early Years Team,Software Purchase,Digital hearing Care,3849, 21-Sep-2018
754,Revenue,CAHD,Home Care - Elderly - South,Supported Living,Dimensions  Suite 2,1858.68, 25-Sep-2018
755,Revenue,CAHD,Home Care - Elderly - South,Supported Living,Dimensions  Suite 2,1857.88, 25-Sep-2018
756,Revenue,CAHD,Home Care - Elderly - South,Supported Living,Dimensions  Suite 2,1857.88, 25-Sep-2018
757,Revenue,CAHD,Home Care - Elderly - South,Supported Living,Dimensions  Suite 2,1857.88, 25-Sep-2018
758,Revenue,CAHD,Home Care - Elderly - North,Supported Living,Dimensions  Suite 2,1857.88, 25-Sep-2018
759,Revenue,CAHD,Bed Purchasing - South,Permanent Residential,Dimensions  Suite 2,5498.8, 25-Sep-2018
760,Revenue,CAHD,Bed Purchasing - South,Permanent Residential,Dimensions  Suite 2,2740.36, 25-Sep-2018
761,Revenue,CAHD,Community Support - North,Preventative Assistance,Dobbins Industrial Cleaning Limited,1640, 28-Sep-2018
762,Revenue,CAHD,Community Support - South,Preventative Assistance,Dobbins Industrial Cleaning Limited,910, 05-Sep-2018
763,Revenue,CAHD,Homecare - Central,Other Small Contracts,DoCare Limited,65.04, 18-Sep-2018
764,Revenue,CAHD,Home Care - Elderly - South,Day Care / Social Activities,DoCare Limited,73.78, 18-Sep-2018
765,Revenue,CAHD,Home Care - Elderly - South,Other Small Contracts,DoCare Limited,970.85, 18-Sep-2018
766,Revenue,CAHD,Home Care - Elderly - North,Other Small Contracts,DoCare Limited,5722.87, 18-Sep-2018
767,Revenue,CAHD,Homecare - Central,Other Small Contracts,DoCare Limited,65.04, 18-Sep-2018
768,Revenue,CAHD,Home Care - Elderly - South,Day Care / Social Activities,DoCare Limited,63.24, 18-Sep-2018
769,Revenue,CAHD,Home Care - Elderly - South,Other Small Contracts,DoCare Limited,976.2, 18-Sep-2018
770,Revenue,CAHD,Home Care - Elderly - North,Other Small Contracts,DoCare Limited,5608.34, 18-Sep-2018
771,Revenue,CAHD,Homecare - Central,Other Small Contracts,DoCare Limited,124.66, 18-Sep-2018
772,Revenue,CAHD,Home Care - Elderly - South,Day Care / Social Activities,DoCare Limited,73.78, 18-Sep-2018
773,Revenue,CAHD,Home Care - Elderly - South,Other Small Contracts,DoCare Limited,976.72, 18-Sep-2018
774,Revenue,CAHD,Home Care - Elderly - North,Other Small Contracts,DoCare Limited,5570.86, 18-Sep-2018
775,Revenue,CAHD,Homecare - Central,Other Small Contracts,DoCare Limited,65.04, 21-Sep-2018
776,Revenue,CAHD,Home Care - Elderly - South,Day Care / Social Activities,DoCare Limited,73.78, 21-Sep-2018
777,Revenue,CAHD,Home Care - Elderly - South,Other Small Contracts,DoCare Limited,976.72, 21-Sep-2018
778,Revenue,CAHD,Home Care - Elderly - North,Other Small Contracts,DoCare Limited,5550.34, 21-Sep-2018
779,Revenue,CAHD,Homecare - Central,Other Small Contracts,DoCare Limited,346.88, 28-Sep-2018
780,Revenue,CAHD,Home Care - Elderly - South,Day Care / Social Activities,DoCare Limited,73.78, 28-Sep-2018
781,Revenue,CAHD,Home Care - Elderly - South,Other Small Contracts,DoCare Limited,1127.44, 28-Sep-2018
782,Revenue,CAHD,Home Care - Elderly - North,Other Small Contracts,DoCare Limited,5086.68, 28-Sep-2018
783,Revenue,CAHD,Statemented Support Academies,Schools Funding,Downend School,1119.41, 26-Sep-2018
784,Revenue,CAHD,Statemented Support Academies,Schools Funding,Downend School,541.62, 26-Sep-2018
785,Revenue,CAHD,Statemented Support Academies,Schools Funding,Downend School,1166.58, 26-Sep-2018
786,Revenue,CAHD,Statemented Support Academies,Schools Funding,Downend School,565.2, 26-Sep-2018
787,Revenue,CAHD,Statemented Support Academies,Schools Funding,Downend School,1154.78, 26-Sep-2018
788,Revenue,CAHD,Statemented Support Academies,Schools Funding,Downend School,942.53, 26-Sep-2018
789,Revenue,CAHD,Statemented Support Academies,Schools Funding,Downend School,671.33, 26-Sep-2018
790,Revenue,CAHD,Statemented Support Academies,Schools Funding,Downend School,612.37, 26-Sep-2018
791,Revenue,CAHD,Statemented Support Academies,Schools Funding,Downend School,694.91, 26-Sep-2018
792,Revenue,CAHD,Statemented Support Academies,Schools Funding,Downend School,600.58, 26-Sep-2018
793,Revenue,CAHD,Statemented Support Academies,Schools Funding,Downend School,553.41, 26-Sep-2018
794,Revenue,CAHD,Statemented Support Academies,Schools Funding,Downend School,1850.49, 26-Sep-2018
795,Revenue,CAHD,Statemented Support Academies,Schools Funding,Downend School,553.41, 26-Sep-2018
796,Revenue,CAHD,Social Lettings Agency,Other Supplies & Services,Individual,605.64, 24-Sep-2018
797,Revenue,CAHD,Bed Purchasing - North,Permanent Nursing,Drakes Court,2332.4, 25-Sep-2018
798,Revenue,CAHD,South Glos Users in South Glos Homes,Permanent Nursing,Drakes Court,632.64, 25-Sep-2018
799,Revenue,CAHD,Bed Purchasing - Southmead Hospital,Permanent Nursing,Drakes Court,2832.84, 25-Sep-2018
800,Revenue,CAHD,Bed Purchasing - Southmead Hospital,Permanent Nursing,Drakes Court,2017.24, 25-Sep-2018
801,Revenue,CAHD,South Glos Users in South Glos Homes,Permanent Nursing,Drakes Court,632.64, 25-Sep-2018
802,Revenue,CAHD,Bed Purchasing - South,Permanent Nursing,Drakes Court,2832.84, 25-Sep-2018
803,Revenue,CAHD,South Glos Users in South Glos Homes,Permanent Nursing,Drakes Court,632.64, 25-Sep-2018
804,Revenue,CAHD,South Glos Users in South Glos Homes,Permanent Nursing,Drakes Court,632.64, 25-Sep-2018
805,Revenue,CAHD,Bed Purchasing - Southmead Hospital,Permanent Nursing,Drakes Court,2832.84, 25-Sep-2018
806,Revenue,CAHD,South Glos Users in South Glos Homes,Permanent Nursing,Drakes Court,632.64, 25-Sep-2018
807,Revenue,CAHD,South Glos Users in South Glos Homes,Permanent Nursing,Drakes Court,632.64, 25-Sep-2018
808,Revenue,CAHD,Bed Purchasing - North,Permanent Nursing,Drakes Court,2017.24, 25-Sep-2018
809,Revenue,CAHD,Bed Purchasing - Southmead Hospital,Permanent Nursing,Drakes Court,2017.24, 25-Sep-2018
810,Revenue,CAHD,South Glos Users in South Glos Homes,Permanent Nursing,Drakes Court,632.64, 25-Sep-2018
811,Revenue,CAHD,South Glos Users in South Glos Homes,Permanent Nursing,Drakes Court,632.64, 25-Sep-2018
812,Revenue,CAHD,South Glos Users in South Glos Homes,Permanent Nursing,Drakes Court,632.64, 25-Sep-2018
813,Revenue,CAHD,South Glos Users in South Glos Homes,Permanent Nursing,Drakes Court,632.64, 25-Sep-2018
814,Revenue,CAHD,Bed Purchasing - North,Permanent Residential,Drakes Court,1956.04, 25-Sep-2018
815,Revenue,CAHD,Bed Purchasing - Central,Permanent Residential,Drakes Court,2780, 25-Sep-2018
816,Revenue,CAHD,Bed Purchasing - North,Permanent Nursing,Drakes Court,2683.84, 25-Sep-2018
817,Revenue,CAHD,South Glos Users in South Glos Homes,Permanent Nursing,Drakes Court,632.64, 25-Sep-2018
818,Revenue,CAHD,South Glos Users in South Glos Homes,Permanent Nursing,Drakes Court,632.64, 25-Sep-2018
819,Revenue,CAHD,South Glos Users in South Glos Homes,Permanent Nursing,Drakes Court,632.64, 25-Sep-2018
820,Revenue,CAHD,South Glos Users in South Glos Homes,Permanent Nursing,Drakes Court,632.64, 25-Sep-2018
821,Revenue,CAHD,MH Purchasing - Younger,Permanent Residential,Dunraven House,2316.16, 25-Sep-2018
822,Revenue,CAHD,Bed and Breakfast,Bed & Breakfast,Individual,476, 03-Sep-2018
823,Revenue,CAHD,Bed and Breakfast,Bed & Breakfast,Individual,567, 03-Sep-2018
824,Revenue,CAHD,Bed and Breakfast,Bed & Breakfast,Individual,476, 11-Sep-2018
825,Revenue,CAHD,Bed and Breakfast,Bed & Breakfast,Individual,567, 11-Sep-2018
826,Revenue,CAHD,Bed and Breakfast,Bed & Breakfast,Individual,532, 21-Sep-2018
827,Revenue,CAHD,Bed and Breakfast,Bed & Breakfast,Individual,464, 21-Sep-2018
828,Revenue,CAHD,Bed and Breakfast,Bed & Breakfast,Individual,432, 28-Sep-2018
829,Revenue,CAHD,Bed and Breakfast,Bed & Breakfast,Individual,532, 28-Sep-2018
830,Revenue,CAHD,Bed Purchasing - North,Permanent Residential,East Court,2698.8, 25-Sep-2018
831,Revenue,CAHD,Family and Young People Support South,Long Service Awards,Edenred (UK Group) Limited,497, 28-Sep-2018
832,Revenue,CAHD,CAH Assistant Directors,Long Service Awards,Edenred (UK Group) Limited,481, 28-Sep-2018
833,Revenue,CAHD,Bed Purchasing - South,Permanent Residential,Edgecumbe Lodge,2600, 25-Sep-2018
834,Revenue,CAHD,Bed Purchasing - South,Permanent Residential,Edgecumbe Lodge,1764.29, 25-Sep-2018
835,Revenue,CAHD,Bed Purchasing - Southmead Hospital,Permanent Residential,Edgecumbe Lodge,2148.68, 25-Sep-2018
836,Revenue,CAHD,Bed Purchasing - Elderly S117- North,Permanent Residential,Edgecumbe Lodge,2656, 25-Sep-2018
837,Revenue,CAHD,Bed Purchasing - Southmead Hospital,Permanent Residential,Edgecumbe Lodge,2600, 25-Sep-2018
838,Revenue,CAHD,Bed Purchasing - South,Permanent Residential,Edgecumbe Lodge,2220, 25-Sep-2018
839,Revenue,CAHD,Bed Purchasing - Central,Respite Emergency - Residential,Edgecumbe Lodge,650, 25-Sep-2018
840,Revenue,CAHD,Bed Purchasing - Central,Respite Emergency - Residential,Edgecumbe Lodge,557.14, 25-Sep-2018
841,Revenue,CAHD,Bed Purchasing - South,Permanent Residential,Edgecumbe Lodge,2220, 25-Sep-2018
842,Revenue,CAHD,Bed Purchasing - South,Permanent Residential,Edgecumbe Lodge,2445.6, 25-Sep-2018
843,Revenue,CAHD,Bed Purchasing - Southmead Hospital,Permanent Residential,Edgecumbe Lodge,2477.4, 25-Sep-2018
844,Revenue,CAHD,Bed Purchasing - North,Permanent Residential,Edgecumbe Lodge,2197.2, 25-Sep-2018
845,Revenue,CAHD,Tenancy Start Up Scheme,Other Supplies & Services,Edgehill Developments,1300, 11-Sep-2018
846,Revenue,CAHD,Bed Purchasing - Southmead Hospital,Permanent Residential,Edgemont House Ltd,2600, 25-Sep-2018
847,Revenue,CAHD,Bed Purchasing - Southmead Hospital,Permanent Residential,Edgemont House Ltd,1948.72, 25-Sep-2018
848,Revenue,CAHD,Bed Purchasing - South,Permanent Residential,Edgemont House Ltd,2649.4, 25-Sep-2018
849,Revenue,CAHD,South Glos Users in South Glos Homes,Permanent Nursing,Edgemont View Nursing Home,632.64, 25-Sep-2018
850,Revenue,CAHD,Bed Purchasing - South,Permanent Nursing,Edgemont View Nursing Home,2598.45, 25-Sep-2018
851,Revenue,CAHD,South Glos Users in South Glos Homes,Permanent Nursing,Edgemont View Nursing Home,632.64, 25-Sep-2018
852,Revenue,CAHD,Bed Purchasing - South,Permanent Nursing,Edgemont View Nursing Home,866.15, 25-Sep-2018
853,Revenue,CAHD,South Glos Users in South Glos Homes,Permanent Nursing,Edgemont View Nursing Home,632.64, 25-Sep-2018
854,Revenue,CAHD,South Glos Users in South Glos Homes,Permanent Nursing,Edgemont View Nursing Home,632.64, 25-Sep-2018
855,Revenue,CAHD,South Glos Users in South Glos Homes,Permanent Nursing,Edgemont View Nursing Home,632.64, 25-Sep-2018
856,Revenue,CAHD,South Glos Users in South Glos Homes,Permanent Nursing,Edgemont View Nursing Home,632.64, 25-Sep-2018
857,Revenue,CAHD,South Glos Users in South Glos Homes,Permanent Nursing,Edgemont View Nursing Home,632.64, 25-Sep-2018
858,Revenue,CAHD,South Glos Users in South Glos Homes,Permanent Nursing,Edgemont View Nursing Home,632.64, 25-Sep-2018
859,Revenue,CAHD,South Glos Users in South Glos Homes,Permanent Nursing,Edgemont View Nursing Home,632.64, 25-Sep-2018
860,Revenue,CAHD,Bed Purchasing - South,Permanent Nursing,Edgemont View Nursing Home,2934.72, 25-Sep-2018
861,Revenue,CAHD,South Glos Users in South Glos Homes,Permanent Nursing,Edgemont View Nursing Home,632.64, 25-Sep-2018
862,Revenue,CAHD,South Glos Users in South Glos Homes,Permanent Nursing,Edgemont View Nursing Home,632.64, 25-Sep-2018
863,Revenue,CAHD,South Glos Users in South Glos Homes,Permanent Nursing,Edgemont View Nursing Home,632.64, 25-Sep-2018
864,Revenue,CAHD,South Glos Users in South Glos Homes,Permanent Nursing,Edgemont View Nursing Home,632.64, 25-Sep-2018
865,Revenue,CAHD,South Glos Users in South Glos Homes,Permanent Nursing,Edgemont View Nursing Home,632.64, 25-Sep-2018
866,Revenue,CAHD,South Glos Users in South Glos Homes,Permanent Nursing,Edgemont View Nursing Home,632.64, 25-Sep-2018
867,Revenue,CAHD,Bed Purchasing - South,Permanent Nursing,Edgemont View Nursing Home,2934.72, 25-Sep-2018
868,Revenue,CAHD,South Glos Users in South Glos Homes,Permanent Nursing,Edgemont View Nursing Home,632.64, 25-Sep-2018
869,Revenue,CAHD,Bed Purchasing - South,Permanent Nursing,Edgemont View Nursing Home,2310.44, 25-Sep-2018
870,Revenue,CAHD,South Glos Users in South Glos Homes,Permanent Nursing,Edgemont View Nursing Home,632.64, 25-Sep-2018
871,Revenue,CAHD,South Glos Users in South Glos Homes,Permanent Nursing,Edgemont View Nursing Home,632.64, 25-Sep-2018
872,Revenue,CAHD,South Glos Users in South Glos Homes,Permanent Nursing,Edgemont View Nursing Home,632.64, 25-Sep-2018
873,Revenue,CAHD,CSC - Special Guardianship Orders,Other Supplies & Services,Individual,1000, 07-Sep-2018
874,Revenue,CAHD,Home Care - Elderly - South,Other Small Contracts,Elite Home Care Ltd,6825.03, 06-Sep-2018
875,Revenue,CAHD,Home Care - Elderly - North,Other Small Contracts,Elite Home Care Ltd,1060.27, 06-Sep-2018
876,Revenue,CAHD,Home Care - Elderly - South,Other Small Contracts,Elite Home Care Ltd,6318.82, 11-Sep-2018
877,Revenue,CAHD,Home Care - Elderly - North,Other Small Contracts,Elite Home Care Ltd,824.14, 11-Sep-2018
878,Revenue,CAHD,Home Care - Elderly - South,Day Care / Social Activities,Elite Home Care Ltd,171.31, 18-Sep-2018
879,Revenue,CAHD,Home Care - Elderly - South,Other Small Contracts,Elite Home Care Ltd,6142.11, 18-Sep-2018
880,Revenue,CAHD,Home Care - Elderly - North,Other Small Contracts,Elite Home Care Ltd,1055.64, 18-Sep-2018
881,Revenue,CAHD,Home Care - Elderly - South,Day Care / Social Activities,Elite Home Care Ltd,180.57, 25-Sep-2018
882,Revenue,CAHD,Home Care - Elderly - South,Other Small Contracts,Elite Home Care Ltd,5461, 25-Sep-2018
883,Revenue,CAHD,Home Care - Elderly - North,Other Small Contracts,Elite Home Care Ltd,731.54, 25-Sep-2018
884,Revenue,CAHD,Bed Purchasing - South,Permanent Nursing,Ellenborough House,2934.72, 25-Sep-2018
885,Revenue,CAHD,Special ISB,Other Public Bodies,Enable Trust,627.78, 25-Sep-2018
886,Revenue,CAHD,Special ISB,Other Public Bodies,Enable Trust,1137.95, 25-Sep-2018
887,Revenue,CAHD,Special ISB,Other Public Bodies,Enable Trust,1137.95, 25-Sep-2018
888,Revenue,CAHD,Special ISB,Other Public Bodies,Enable Trust,1137.95, 25-Sep-2018
889,Revenue,CAHD,Special ISB,Other Public Bodies,Enable Trust,1137.95, 25-Sep-2018
890,Revenue,CAHD,Special ISB,Other Public Bodies,Enable Trust,1137.95, 25-Sep-2018
891,Revenue,CAHD,Special ISB,Other Public Bodies,Enable Trust,627.78, 25-Sep-2018
892,Revenue,CAHD,Special ISB,Other Public Bodies,Enable Trust,863.26, 25-Sep-2018
893,Revenue,CAHD,Special ISB,Other Public Bodies,Enable Trust,1491.12, 25-Sep-2018
894,Revenue,CAHD,Special ISB,Other Public Bodies,Enable Trust,2118.9, 25-Sep-2018
895,Revenue,CAHD,Special ISB,Other Public Bodies,Enable Trust,1491.12, 25-Sep-2018
896,Revenue,CAHD,Special ISB,Other Public Bodies,Enable Trust,1137.95, 25-Sep-2018
897,Revenue,CAHD,Special ISB,Other Public Bodies,Enable Trust,863.26, 25-Sep-2018
898,Revenue,CAHD,Special ISB,Other Public Bodies,Enable Trust,1137.95, 25-Sep-2018
899,Revenue,CAHD,Special ISB,Other Public Bodies,Enable Trust,1137.95, 25-Sep-2018
900,Revenue,CAHD,Special ISB,Other Public Bodies,Enable Trust,627.78, 25-Sep-2018
901,Revenue,CAHD,Special ISB,Other Public Bodies,Enable Trust,1491.12, 25-Sep-2018
902,Revenue,CAHD,Special ISB,Other Public Bodies,Enable Trust,1137.95, 25-Sep-2018
903,Revenue,CAHD,Special ISB,Other Public Bodies,Enable Trust,1137.95, 25-Sep-2018
904,Revenue,CAHD,Special ISB,Other Public Bodies,Enable Trust,863.26, 25-Sep-2018
905,Revenue,CAHD,Special ISB,Other Public Bodies,Enable Trust,627.78, 25-Sep-2018
906,Revenue,CAHD,Special ISB,Other Public Bodies,Enable Trust,1137.95, 25-Sep-2018
907,Revenue,CAHD,Special ISB,Other Public Bodies,Enable Trust,1137.95, 25-Sep-2018
908,Revenue,CAHD,Special ISB,Other Public Bodies,Enable Trust,863.26, 25-Sep-2018
909,Revenue,CAHD,Special ISB,Other Public Bodies,Enable Trust,1491.12, 25-Sep-2018
910,Revenue,CAHD,Special ISB,Other Public Bodies,Enable Trust,1137.95, 25-Sep-2018
911,Revenue,CAHD,Special ISB,Other Public Bodies,Enable Trust,1137.95, 25-Sep-2018
912,Revenue,CAHD,Special ISB,Other Public Bodies,Enable Trust,863.26, 25-Sep-2018
913,Revenue,CAHD,Special ISB,Other Public Bodies,Enable Trust,1491.12, 25-Sep-2018
914,Revenue,CAHD,Special ISB,Other Public Bodies,Enable Trust,1491.12, 25-Sep-2018
915,Revenue,CAHD,Special ISB,Other Public Bodies,Enable Trust,863.26, 25-Sep-2018
916,Revenue,CAHD,Special ISB,Other Public Bodies,Enable Trust,863.26, 25-Sep-2018
917,Revenue,CAHD,Special ISB,Other Public Bodies,Enable Trust,1137.95, 25-Sep-2018
918,Revenue,CAHD,Special ISB,Other Public Bodies,Enable Trust,863.26, 25-Sep-2018
919,Revenue,CAHD,Special ISB,Other Public Bodies,Enable Trust,863.26, 25-Sep-2018
920,Revenue,CAHD,Special ISB,Other Public Bodies,Enable Trust,1137.95, 25-Sep-2018
921,Revenue,CAHD,Special ISB,Other Public Bodies,Enable Trust,1137.95, 25-Sep-2018
922,Revenue,CAHD,Special ISB,Other Public Bodies,Enable Trust,1137.95, 25-Sep-2018
923,Revenue,CAHD,Special ISB,Other Public Bodies,Enable Trust,1491.12, 25-Sep-2018
924,Revenue,CAHD,Special ISB,Other Public Bodies,Enable Trust,1137.95, 25-Sep-2018
925,Revenue,CAHD,Special ISB,Other Public Bodies,Enable Trust,863.26, 25-Sep-2018
926,Revenue,CAHD,Special ISB,Other Public Bodies,Enable Trust,1491.12, 25-Sep-2018
927,Revenue,CAHD,Special ISB,Other Public Bodies,Enable Trust,1491.12, 25-Sep-2018
928,Revenue,CAHD,Special ISB,Other Public Bodies,Enable Trust,863.26, 25-Sep-2018
929,Revenue,CAHD,Special ISB,Other Public Bodies,Enable Trust,1137.95, 25-Sep-2018
930,Revenue,CAHD,Special ISB,Other Public Bodies,Enable Trust,1491.12, 25-Sep-2018
931,Revenue,CAHD,Special ISB,Other Public Bodies,Enable Trust,1137.95, 25-Sep-2018
932,Revenue,CAHD,Special ISB,Other Public Bodies,Enable Trust,863.26, 25-Sep-2018
933,Revenue,CAHD,Special ISB,Other Public Bodies,Enable Trust,1137.95, 25-Sep-2018
934,Revenue,CAHD,Special ISB,Other Public Bodies,Enable Trust,1491.12, 25-Sep-2018
935,Revenue,CAHD,Special ISB,Other Public Bodies,Enable Trust,1491.12, 25-Sep-2018
936,Revenue,CAHD,Special ISB,Other Public Bodies,Enable Trust,863.26, 25-Sep-2018
937,Revenue,CAHD,Special ISB,Other Public Bodies,Enable Trust,1648.03, 25-Sep-2018
938,Revenue,CAHD,Special ISB,Other Public Bodies,Enable Trust,1137.95, 25-Sep-2018
939,Revenue,CAHD,Special ISB,Other Public Bodies,Enable Trust,863.26, 25-Sep-2018
940,Revenue,CAHD,Special ISB,Other Public Bodies,Enable Trust,1137.95, 25-Sep-2018
941,Revenue,CAHD,Special ISB,Other Public Bodies,Enable Trust,1137.95, 25-Sep-2018
942,Revenue,CAHD,Special ISB,Other Public Bodies,Enable Trust,1137.95, 25-Sep-2018
943,Revenue,CAHD,Special ISB,Other Public Bodies,Enable Trust,1137.95, 25-Sep-2018
944,Revenue,CAHD,Special ISB,Other Public Bodies,Enable Trust,1137.95, 25-Sep-2018
945,Revenue,CAHD,Special ISB,Other Public Bodies,Enable Trust,863.26, 25-Sep-2018
946,Revenue,CAHD,Special ISB,Other Public Bodies,Enable Trust,682.77, 25-Sep-2018
947,Revenue,CAHD,Special ISB,Other Public Bodies,Enable Trust,1137.95, 25-Sep-2018
948,Revenue,CAHD,Special ISB,Other Public Bodies,Enable Trust,1648.03, 25-Sep-2018
949,Revenue,CAHD,Special ISB,Other Public Bodies,Enable Trust,1648.03, 25-Sep-2018
950,Revenue,CAHD,Special ISB,Other Public Bodies,Enable Trust,1491.12, 25-Sep-2018
951,Revenue,CAHD,Special ISB,Other Public Bodies,Enable Trust,1648.03, 25-Sep-2018
952,Revenue,CAHD,Special ISB,Other Public Bodies,Enable Trust,863.26, 25-Sep-2018
953,Revenue,CAHD,Special ISB,Other Public Bodies,Enable Trust,2432.79, 25-Sep-2018
954,Revenue,CAHD,Special ISB,Other Public Bodies,Enable Trust,863.26, 25-Sep-2018
955,Revenue,CAHD,Special ISB,Other Public Bodies,Enable Trust,1648.03, 25-Sep-2018
956,Revenue,CAHD,Special ISB,Other Public Bodies,Enable Trust,1459.68, 25-Sep-2018
957,Revenue,CAHD,Special ISB,Other Public Bodies,Enable Trust,863.26, 25-Sep-2018
958,Revenue,CAHD,Special ISB,Other Public Bodies,Enable Trust,1137.95, 25-Sep-2018
959,Revenue,CAHD,Special ISB,Other Public Bodies,Enable Trust,1648.03, 25-Sep-2018
960,Revenue,CAHD,Special ISB,Other Public Bodies,Enable Trust,1137.95, 25-Sep-2018
961,Revenue,CAHD,Special ISB,Other Public Bodies,Enable Trust,2118.9, 25-Sep-2018
962,Revenue,CAHD,Special ISB,Other Public Bodies,Enable Trust,1137.95, 25-Sep-2018
963,Revenue,CAHD,Special ISB,Other Public Bodies,Enable Trust,1648.03, 25-Sep-2018
964,Revenue,CAHD,Special ISB,Other Public Bodies,Enable Trust,1648.03, 25-Sep-2018
965,Revenue,CAHD,Special ISB,Other Public Bodies,Enable Trust,1137.95, 25-Sep-2018
966,Revenue,CAHD,Special ISB,Other Public Bodies,Enable Trust,863.26, 25-Sep-2018
967,Revenue,CAHD,Special ISB,Other Public Bodies,Enable Trust,863.26, 25-Sep-2018
968,Revenue,CAHD,Special ISB,Other Public Bodies,Enable Trust,1648.03, 25-Sep-2018
969,Revenue,CAHD,Special ISB,Other Public Bodies,Enable Trust,863.26, 25-Sep-2018
970,Revenue,CAHD,Special ISB,Other Public Bodies,Enable Trust,1137.95, 25-Sep-2018
971,Revenue,CAHD,Special ISB,Other Public Bodies,Enable Trust,1137.95, 25-Sep-2018
972,Revenue,CAHD,Special ISB,Other Public Bodies,Enable Trust,863.26, 25-Sep-2018
973,Revenue,CAHD,Special ISB,Other Public Bodies,Enable Trust,1137.95, 25-Sep-2018
974,Revenue,CAHD,Special ISB,Other Public Bodies,Enable Trust,1648.03, 25-Sep-2018
975,Revenue,CAHD,Special ISB,Other Public Bodies,Enable Trust,1137.95, 25-Sep-2018
976,Revenue,CAHD,Special ISB,Other Public Bodies,Enable Trust,1137.95, 25-Sep-2018
977,Revenue,CAHD,Special ISB,Other Public Bodies,Enable Trust,1648.03, 25-Sep-2018
978,Revenue,CAHD,Special ISB,Other Public Bodies,Enable Trust,2118.9, 25-Sep-2018
979,Revenue,CAHD,Special ISB,Other Public Bodies,Enable Trust,1271.34, 25-Sep-2018
980,Revenue,CAHD,Special ISB,Other Public Bodies,Enable Trust,863.26, 25-Sep-2018
981,Revenue,CAHD,Special ISB,Other Public Bodies,Enable Trust,1648.03, 25-Sep-2018
982,Revenue,CAHD,Special ISB,Other Public Bodies,Enable Trust,863.26, 25-Sep-2018
983,Revenue,CAHD,Special ISB,Other Public Bodies,Enable Trust,863.26, 25-Sep-2018
984,Revenue,CAHD,Special ISB,Other Public Bodies,Enable Trust,863.26, 25-Sep-2018
985,Revenue,CAHD,Special ISB,Other Public Bodies,Enable Trust,2118.9, 25-Sep-2018
986,Revenue,CAHD,Special ISB,Other Public Bodies,Enable Trust,2118.9, 25-Sep-2018
987,Revenue,CAHD,Special ISB,Other Public Bodies,Enable Trust,1137.95, 25-Sep-2018
988,Revenue,CAHD,Special ISB,Other Public Bodies,Enable Trust,1137.95, 25-Sep-2018
989,Revenue,CAHD,Special ISB,Other Public Bodies,Enable Trust,1137.95, 25-Sep-2018
990,Revenue,CAHD,Special ISB,Other Public Bodies,Enable Trust,863.26, 25-Sep-2018
991,Revenue,CAHD,Special ISB,Other Public Bodies,Enable Trust,1137.95, 25-Sep-2018
992,Revenue,CAHD,Special ISB,Other Public Bodies,Enable Trust,1137.95, 25-Sep-2018
993,Revenue,CAHD,Special ISB,Other Public Bodies,Enable Trust,863.26, 25-Sep-2018
994,Revenue,CAHD,Special ISB,Other Public Bodies,Enable Trust,863.26, 25-Sep-2018
995,Revenue,CAHD,Special ISB,Other Public Bodies,Enable Trust,863.26, 25-Sep-2018
996,Revenue,CAHD,Special ISB,Other Public Bodies,Enable Trust,1137.95, 25-Sep-2018
997,Revenue,CAHD,Special ISB,Other Public Bodies,Enable Trust,1137.95, 25-Sep-2018
998,Revenue,CAHD,Special ISB,Other Public Bodies,Enable Trust,1137.95, 25-Sep-2018
999,Revenue,CAHD,Special ISB,Other Public Bodies,Enable Trust,1137.95, 25-Sep-2018
1000,Revenue,CAHD,Special ISB,Other Public Bodies,Enable Trust,1137.95, 25-Sep-2018
1001,Revenue,CAHD,Special ISB,Other Public Bodies,Enable Trust,1137.95, 25-Sep-2018
1002,Revenue,CAHD,Special ISB,Other Public Bodies,Enable Trust,863.26, 25-Sep-2018
1003,Revenue,CAHD,Special ISB,Other Public Bodies,Enable Trust,1648.03, 25-Sep-2018
1004,Revenue,CAHD,Special ISB,Other Public Bodies,Enable Trust,1648.03, 25-Sep-2018
1005,Revenue,CAHD,Special ISB,Other Public Bodies,Enable Trust,2118.9, 25-Sep-2018
1006,Revenue,CAHD,Special ISB,Other Public Bodies,Enable Trust,2432.79, 25-Sep-2018
1007,Revenue,CAHD,Special ISB,Other Public Bodies,Enable Trust,1137.95, 25-Sep-2018
1008,Revenue,CAHD,Special ISB,Other Public Bodies,Enable Trust,863.26, 25-Sep-2018
1009,Revenue,CAHD,Special ISB,Other Public Bodies,Enable Trust,1137.95, 25-Sep-2018
1010,Revenue,CAHD,Special ISB,Other Public Bodies,Enable Trust,1137.95, 25-Sep-2018
1011,Revenue,CAHD,Special ISB,Other Public Bodies,Enable Trust,863.26, 25-Sep-2018
1012,Revenue,CAHD,Special ISB,Other Public Bodies,Enable Trust,863.26, 25-Sep-2018
1013,Revenue,CAHD,Special ISB,Other Public Bodies,Enable Trust,863.26, 25-Sep-2018
1014,Revenue,CAHD,Special ISB,Other Public Bodies,Enable Trust,1137.95, 25-Sep-2018
1015,Revenue,CAHD,Special ISB,Other Public Bodies,Enable Trust,863.26, 25-Sep-2018
1016,Revenue,CAHD,Special ISB,Other Public Bodies,Enable Trust,1648.03, 25-Sep-2018
1017,Revenue,CAHD,Special ISB,Other Public Bodies,Enable Trust,100000, 25-Sep-2018
1018,Revenue,CAHD,Mental Health and Emotional Wellbeing,Other Small Contracts,Enable Trust,1000, 03-Sep-2018
1019,Revenue,CAHD,CSC - Agency Fostering,Foster Parent Allowances,Enhanced Foster Care Ltd,4500, 28-Sep-2018
1020,Revenue,CAHD,Independent Special Placements - Pre 16,Other Private Contractors,Exeter Royal Academy For Deaf Education,15858, 04-Sep-2018
1021,Revenue,CAHD,Independent Special Placements - Post 16,Other Private Contractors,Exeter Royal Academy For Deaf Education,26145, 04-Sep-2018
1022,Revenue,CAHD,Homeless - Private Sector Leasing,Prop.Serv. General Repairs,Express Property Services Limited,4623.74, 28-Sep-2018
1023,Revenue,CAHD,South Glos Users in South Glos Homes,Permanent Nursing,Fairview Court,632.64, 25-Sep-2018
1024,Revenue,CAHD,South Glos Users in South Glos Homes,Permanent Nursing,Fairview Court,632.64, 25-Sep-2018
1025,Revenue,CAHD,South Glos Users in South Glos Homes,Permanent Nursing,Fairview Court,632.64, 25-Sep-2018
1026,Revenue,CAHD,Bed Purchasing - Southmead Hospital,Permanent Nursing,Fairview Court,3721.08, 25-Sep-2018
1027,Revenue,CAHD,Bed Purchasing - Southmead Hospital,Permanent Nursing,Fairview Court,1461.85, 25-Sep-2018
1028,Revenue,CAHD,Bed Purchasing - Southmead Hospital,Permanent Nursing,Fairview Court,3464.6, 25-Sep-2018
1029,Revenue,CAHD,South Glos Users in South Glos Homes,Permanent Nursing,Fairview Court,632.64, 25-Sep-2018
1030,Revenue,CAHD,Bed Purchasing - Southmead Hospital,Permanent Nursing,Fairview Court,3423.84, 25-Sep-2018
1031,Revenue,CAHD,South Glos Users in South Glos Homes,Permanent Nursing,Fairview Court,632.64, 25-Sep-2018
1032,Revenue,CAHD,South Glos Users in South Glos Homes,Permanent Nursing,Fairview Court,632.64, 25-Sep-2018
1033,Revenue,CAHD,Bed purchasing - Elderly S117 - South,Permanent Nursing,Fairview Court,4076, 25-Sep-2018
1034,Revenue,CAHD,South Glos Users in South Glos Homes,Permanent Nursing,Fairview Court,632.64, 25-Sep-2018
1035,Revenue,CAHD,South Glos Users in South Glos Homes,Permanent Nursing,Fairview Court,632.64, 25-Sep-2018
1036,Revenue,CAHD,Bed Purchasing - South,Permanent Nursing,Fairview Court,3303.2, 25-Sep-2018
1037,Revenue,CAHD,South Glos Users in South Glos Homes,Permanent Nursing,Fairview Court,632.64, 25-Sep-2018
1038,Revenue,CAHD,Bed Purchasing - South,Permanent Nursing,Fairview Court,3721.08, 25-Sep-2018
1039,Revenue,CAHD,South Glos Users in South Glos Homes,Permanent Nursing,Fairview Court,632.64, 25-Sep-2018
1040,Revenue,CAHD,South Glos Users in South Glos Homes,Permanent Nursing,Fairview Court,632.64, 25-Sep-2018
1041,Revenue,CAHD,Bed Purchasing - Southmead Hospital,Permanent Nursing,Fairview Court,3464.6, 25-Sep-2018
1042,Revenue,CAHD,South Glos Users in South Glos Homes,Permanent Nursing,Fairview Court,632.64, 25-Sep-2018
1043,Revenue,CAHD,South Glos Users in South Glos Homes,Permanent Nursing,Fairview Court,632.64, 25-Sep-2018
1044,Revenue,CAHD,South Glos Users in South Glos Homes,Permanent Nursing,Fairview Court,632.64, 25-Sep-2018
1045,Revenue,CAHD,South Glos Users in South Glos Homes,Permanent Nursing,Fairview Court,3660.27, 25-Sep-2018
1046,Revenue,CAHD,South Glos Users in South Glos Homes,Permanent Nursing,Fairview Court,1772, 25-Sep-2018
1047,Revenue,CAHD,South Glos Users in South Glos Homes,Permanent Nursing,Fairview Court,632.64, 25-Sep-2018
1048,Revenue,CAHD,South Glos Users in South Glos Homes,Permanent Nursing,Fairview Court,632.64, 25-Sep-2018
1049,Revenue,CAHD,South Glos Users in South Glos Homes,Permanent Nursing,Fairview Court,632.64, 25-Sep-2018
1050,Revenue,CAHD,Bed Purchasing - Southmead Hospital,Permanent Nursing,Fairview Court,3400, 25-Sep-2018
1051,Revenue,CAHD,South Glos Users in South Glos Homes,Permanent Nursing,Fairview Court,632.64, 25-Sep-2018
1052,Revenue,CAHD,South Glos Users in South Glos Homes,Permanent Nursing,Fairview Court,632.64, 25-Sep-2018
1053,Revenue,CAHD,South Glos Users in South Glos Homes,Permanent Nursing,Fairview Court,632.64, 25-Sep-2018
1054,Revenue,CAHD,Bed Purchasing - North,Permanent Nursing,Fairview Court,3464.6, 25-Sep-2018
1055,Revenue,CAHD,South Glos Users in South Glos Homes,Permanent Nursing,Fairview Court,632.64, 25-Sep-2018
1056,Revenue,CAHD,South Glos Users in South Glos Homes,Permanent Nursing,Fairview Court,632.64, 25-Sep-2018
1057,Revenue,CAHD,Bed Purchasing - Southmead Hospital,Permanent Nursing,Fairview Court,3400, 25-Sep-2018
1058,Revenue,CAHD,South Glos Users in South Glos Homes,Permanent Nursing,Fairview Court,632.64, 25-Sep-2018
1059,Revenue,CAHD,South Glos Users in South Glos Homes,Permanent Nursing,Fairview Court,632.64, 25-Sep-2018
1060,Revenue,CAHD,Bed Purchasing - South,Permanent Nursing,Fairview Court,3057, 25-Sep-2018
1061,Revenue,CAHD,South Glos Users in South Glos Homes,Permanent Nursing,Fairview Court,632.64, 25-Sep-2018
1062,Revenue,CAHD,South Glos Users in South Glos Homes,Permanent Nursing,Fairview Court,632.64, 25-Sep-2018
1063,Revenue,CAHD,Bed Purchasing - South,Permanent Nursing,Fairview Court,3464.6, 25-Sep-2018
1064,Revenue,CAHD,South Glos Users in South Glos Homes,Permanent Nursing,Fairview Court,632.64, 25-Sep-2018
1065,Revenue,CAHD,Bed Purchasing - Southmead Hospital,Permanent Nursing,Fairview Court,3464.6, 25-Sep-2018
1066,Revenue,CAHD,South Glos Users in South Glos Homes,Permanent Nursing,Fairview Court,632.64, 25-Sep-2018
1067,Revenue,CAHD,South Glos Users in South Glos Homes,Permanent Nursing,Fairview Court,632.64, 25-Sep-2018
1068,Revenue,CAHD,South Glos Users in South Glos Homes,Permanent Nursing,Fairview Court,632.64, 25-Sep-2018
1069,Revenue,CAHD,Bed purchasing - Elderly S117 - South,Permanent Residential,Fairview House,2219.2, 25-Sep-2018
1070,Revenue,CAHD,Bed Purchasing - South,Permanent Residential,Fairview House,2219.2, 25-Sep-2018
1071,Revenue,CAHD,Bed Purchasing - South,Permanent Residential,Fairview House,2148.68, 25-Sep-2018
1072,Revenue,CAHD,Bed Purchasing - South,Permanent Residential,Fairview House,2219.2, 25-Sep-2018
1073,Revenue,CAHD,Bed Purchasing - South,Permanent Residential,Fairview House,2148.68, 25-Sep-2018
1074,Revenue,CAHD,Bed Purchasing - South,Permanent Residential,Fairview House,2157.48, 25-Sep-2018
1075,Revenue,CAHD,Bed Purchasing - Southmead Hospital,Permanent Residential,Fairview House,2547.52, 25-Sep-2018
1076,Revenue,CAHD,Bed Purchasing - Southmead Hospital,Permanent Residential,Faith House,2740, 25-Sep-2018
1077,Revenue,CAHD,Bed Purchasing - North,Permanent Residential,Faith House,2792.08, 25-Sep-2018
1078,Revenue,CAHD,Bed Purchasing - South,Permanent Residential,Faith House,2740, 25-Sep-2018
1079,Revenue,CAHD,Post 16 High Needs Placements,Other Private Contractors,Farleigh FEC-Frome Priory,22312.65, 19-Sep-2018
1080,Revenue,CAHD,Discretionary Housing Payment,Other Supplies & Services,Farringtons Sales & Lettings,1375, 14-Sep-2018
1081,Revenue,CAHD,Homelessness Contingency,Other Supplies & Services,Farringtons Sales & Lettings,524, 20-Sep-2018
1082,Revenue,CAHD,Bed Purchasing - Southmead Hospital,Permanent Nursing,Festival House,2983.44, 25-Sep-2018
1083,Revenue,CAHD,Bed Purchasing - North,Permanent Nursing,Field House Care Home,2164.36, 25-Sep-2018
1084,Revenue,CAHD,Bed Purchasing - Southmead Hospital,Permanent Nursing,Field House Care Home,3440, 25-Sep-2018
1085,Revenue,CAHD,South Glos Users in South Glos Homes,Permanent Nursing,Field House Care Home,632.64, 25-Sep-2018
1086,Revenue,CAHD,Bed Purchasing - Southmead Hospital,Permanent Nursing,Field House Care Home,3440, 25-Sep-2018
1087,Revenue,CAHD,Bed Purchasing - Southmead Hospital,Permanent Nursing,Field House Care Home,3323.84, 25-Sep-2018
1088,Revenue,CAHD,Bed Purchasing - North,Permanent Nursing,Field House Care Home,3505.36, 25-Sep-2018
1089,Revenue,CAHD,Bed Purchasing - Southmead Hospital,Permanent Nursing,Field House Care Home,3342.32, 25-Sep-2018
1090,Revenue,CAHD,Bed Purchasing - Southmead Hospital,Respite Planned - Nursing,Field House Care Home,3342.32, 25-Sep-2018
1091,Revenue,CAHD,Bed Purchasing - North,Permanent Nursing,Field House Care Home,3342.32, 25-Sep-2018
1092,Revenue,CAHD,Bed Purchasing - North,Permanent Nursing,Field House Care Home,2164.36, 25-Sep-2018
1093,Revenue,CAHD,South Glos Users in South Glos Homes,Permanent Nursing,Field House Care Home,632.64, 25-Sep-2018
1094,Revenue,CAHD,Bed Purchasing - North,Permanent Nursing,Field House Care Home,2164.36, 25-Sep-2018
1095,Revenue,CAHD,Bed Purchasing - Southmead Hospital,Permanent Nursing,Field House Care Home,3423.84, 25-Sep-2018
1096,Revenue,CAHD,Bed Purchasing - North,Permanent Nursing,Field House Care Home,3423.84, 25-Sep-2018
1097,Revenue,CAHD,Bed Purchasing - Central,Permanent Residential,Fieldview,3400, 25-Sep-2018
1098,Revenue,CAHD,Bed Purchasing - North,Permanent Residential,Fieldview,2890.28, 25-Sep-2018
1099,Revenue,CAHD,Bed Purchasing - North,Permanent Residential,Fieldview,3668.4, 25-Sep-2018
1100,Revenue,CAHD,MH Purchasing - Younger,Permanent Nursing,Fieldview,5367.68, 25-Sep-2018
1101,Revenue,CAHD,Bed Purchasing - South,Permanent Residential,Fig House,2890.28, 25-Sep-2018
1102,Revenue,CAHD,Statemented Support Payments to OLAs,Other L.A.'s - General,Filton Avenue Primary School,1131.2, 26-Sep-2018
1103,Revenue,CAHD,ASSIST - Health Promotion in Schools,Other Small Contracts,Foster & Brown Research LTD,8741.25, 07-Sep-2018
1104,Revenue,CAHD,CSC - Asylum Seekers - Unaccompanied,Foster Parent Allowances,Foster Care Associates Limited,2406.22, 03-Sep-2018
1105,Revenue,CAHD,CSC - Agency Fostering,Foster Parent Allowances,Foster Care Associates Limited,3998.4, 11-Sep-2018
1106,Revenue,CAHD,CSC - Asylum Seekers - Unaccompanied,Foster Parent Allowances,Foster Care Associates Limited,2328.6, 11-Sep-2018
1107,Revenue,CAHD,Health Inequalities,Other Small Contracts,Four Towns & Vale Link Comm Transport,880, 07-Sep-2018
1108,Revenue,CAHD,Home Care - Elderly - South,Other Small Contracts,Fourways Care Limited,2649.9, 11-Sep-2018
1109,Revenue,CAHD,Home Care - Elderly - North,Other Small Contracts,Fourways Care Limited,6745.2, 11-Sep-2018
1110,Revenue,CAHD,Home Care - Elderly - South,Other Small Contracts,Fourways Care Limited,2658.66, 18-Sep-2018
1111,Revenue,CAHD,Home Care - Elderly - North,Other Small Contracts,Fourways Care Limited,6705.78, 18-Sep-2018
1112,Revenue,CAHD,Home Care - Elderly - South,Other Small Contracts,Fourways Care Limited,2663.04, 18-Sep-2018
1113,Revenue,CAHD,Home Care - Elderly - North,Other Small Contracts,Fourways Care Limited,6504.3, 18-Sep-2018
1114,Revenue,CAHD,Home Care - Elderly - South,Other Small Contracts,Fourways Care Limited,2628, 28-Sep-2018
1115,Revenue,CAHD,Home Care - Elderly - North,Other Small Contracts,Fourways Care Limited,6697.02, 28-Sep-2018
1116,Revenue,CAHD,Freeways,Permanent Residential,Freeways Trust Limited,3748.6, 28-Sep-2018
1117,Revenue,CAHD,Freeways,Permanent Residential,Freeways Trust Limited,2410.8, 28-Sep-2018
1118,Revenue,CAHD,Freeways,Permanent Residential,Freeways Trust Limited,2410.8, 28-Sep-2018
1119,Revenue,CAHD,Freeways,Permanent Residential,Freeways Trust Limited,3507.76, 28-Sep-2018
1120,Revenue,CAHD,Freeways,Permanent Residential,Freeways Trust Limited,2410.8, 28-Sep-2018
1121,Revenue,CAHD,Freeways,Permanent Residential,Freeways Trust Limited,3553.44, 28-Sep-2018
1122,Revenue,CAHD,Freeways,Permanent Residential,Freeways Trust Limited,2674.68, 28-Sep-2018
1123,Revenue,CAHD,Freeways,Permanent Residential,Freeways Trust Limited,3719.68, 28-Sep-2018
1124,Revenue,CAHD,Freeways,Permanent Residential,Freeways Trust Limited,2267.4, 28-Sep-2018
1125,Revenue,CAHD,Freeways,Permanent Residential,Freeways Trust Limited,2847.12, 28-Sep-2018
1126,Revenue,CAHD,Freeways,Permanent Residential,Freeways Trust Limited,2819.8, 28-Sep-2018
1127,Revenue,CAHD,Freeways,Permanent Residential,Freeways Trust Limited,3183.32, 28-Sep-2018
1128,Revenue,CAHD,Freeways,Permanent Residential,Freeways Trust Limited,2410.8, 28-Sep-2018
1129,Revenue,CAHD,Freeways,Respite Planned - Residential,Freeways Trust Limited,1832.29, 28-Sep-2018
1130,Revenue,CAHD,Freeways,Respite Planned - Residential,Freeways Trust Limited,2107.13, 28-Sep-2018
1131,Revenue,CAHD,Freeways,Respite Planned - Residential,Freeways Trust Limited,3165.2, 28-Sep-2018
1132,Revenue,CAHD,Freeways,Respite Planned - Residential,Freeways Trust Limited,3278.24, 28-Sep-2018
1133,Revenue,CAHD,Home Care - Elderly - North,Other Small Contracts,Freeways Trust Limited,733.2, 28-Sep-2018
1134,Revenue,CAHD,Home Care - Elderly - North,Supported Living,Freeways Trust Ltd,825.8, 25-Sep-2018
1135,Revenue,CAHD,Bed purchasing - S28A Under 65 - South,Permanent Residential,Freeways Trust Ltd,3795.56, 25-Sep-2018
1136,Revenue,CAHD,Bed Purchasing - North,Permanent Residential,Freeways Trust Ltd,3675.2, 25-Sep-2018
1137,Revenue,CAHD,Bed Purchasing - South,Permanent Residential,Freeways Trust Ltd,3897.84, 25-Sep-2018
1138,Revenue,CAHD,Bed Purchasing - North,Permanent Residential,Freeways Trust Ltd,2943.2, 25-Sep-2018
1139,Revenue,CAHD,Bed Purchasing - South,Permanent Residential,Freeways Trust Ltd,3101.48, 25-Sep-2018
1140,Revenue,CAHD,Bed Purchasing - North,Permanent Residential,Freeways Trust Ltd,3250.6, 25-Sep-2018
1141,Revenue,CAHD,Bed Purchasing - North,Permanent Residential,Freeways Trust Ltd,3890.76, 25-Sep-2018
1142,Revenue,CAHD,18-25 Year Olds,Permanent Residential,Freeways Trust Ltd,3594.2, 25-Sep-2018
1143,Revenue,CAHD,Section 117 Placements MH Younger,Permanent Residential,Freeways Trust Ltd,1600, 25-Sep-2018
1144,Revenue,CAHD,Section 117 Placements MH Younger,Permanent Residential,Freeways Trust Ltd,1630.4, 25-Sep-2018
1145,Revenue,CAHD,Home Care - Elderly - South,Day Care / Social Activities,Frenchay Beckspool Building,801.44, 25-Sep-2018
1146,Revenue,CAHD,Home Care - Elderly - North,Day Care / Social Activities,Frenchay Beckspool Building,1851.36, 25-Sep-2018
1147,Revenue,CAHD,Home Care - Elderly - South,Day Care / Social Activities,Frenchay Beckspool Building,880.4, 25-Sep-2018
1148,Revenue,CAHD,Home Care - Elderly - South,Day Care / Social Activities,Frenchay Beckspool Building,625.12, 25-Sep-2018
1149,Revenue,CAHD,Pathway 3 - (Complex Beds),Permanent Nursing,Frenchay House,3264, 25-Sep-2018
1150,Revenue,CAHD,Bed Purchasing - Southmead Hospital,Permanent Nursing,Frenchay Park Nursing Home,3400, 25-Sep-2018
1151,Revenue,CAHD,Bed Purchasing - Southmead Hospital,Permanent Nursing,Frenchay Park Nursing Home,3260.8, 25-Sep-2018
1152,Revenue,CAHD,CSC - Residential Placements,Permanent Residential,Friends Therapeutic Community Trust,15500, 17-Sep-2018
1153,Revenue,CAHD,CSC - Social Work Team - NORTH,Agency Staff (Admin/Support Staff) Pay,Frontline Staffing Ltd,1731.23, 03-Sep-2018
1154,Revenue,CAHD,CSC - Social Work Team - NORTH,Agency Staff (Admin/Support Staff) Pay,Frontline Staffing Ltd,1731.23, 04-Sep-2018
1155,Revenue,CAHD,CSC - Social Work Team - NORTH,Agency Staff (Admin/Support Staff) Pay,Frontline Staffing Ltd,1731.23, 20-Sep-2018
1156,Revenue,CAHD,CSC - Social Work Team - NORTH,Agency Staff (Admin/Support Staff) Pay,Frontline Staffing Ltd,1731.23, 26-Sep-2018
1157,Revenue,CAHD,South Glos Users in South Glos Homes,Permanent Nursing,Fshc  1St Floor,632.64, 25-Sep-2018
1158,Revenue,CAHD,Bed Purchasing - South,Permanent Nursing,Fshc  1St Floor,2670.96, 25-Sep-2018
1159,Revenue,CAHD,South Glos Users in South Glos Homes,Permanent Nursing,Fshc  1St Floor,632.64, 25-Sep-2018
1160,Revenue,CAHD,Bed Purchasing - Southmead Hospital,Permanent Nursing,Fshc  1St Floor,2324.64, 25-Sep-2018
1161,Revenue,CAHD,Bed Purchasing - South,Permanent Nursing,Fshc  1St Floor,2310.44, 25-Sep-2018
1162,Revenue,CAHD,South Glos Users in South Glos Homes,Permanent Nursing,Fshc  1St Floor,632.64, 25-Sep-2018
1163,Revenue,CAHD,Bed Purchasing - Southmead Hospital,Permanent Nursing,Fshc  1St Floor,2310.44, 25-Sep-2018
1164,Revenue,CAHD,South Glos Users in South Glos Homes,Permanent Nursing,Fshc  1St Floor,632.64, 25-Sep-2018
1165,Revenue,CAHD,Bed Purchasing - South,Permanent Residential,Fshc  1St Floor,2404.84, 25-Sep-2018
1166,Revenue,CAHD,Bed Purchasing - Southmead Hospital,Permanent Nursing,Fshc  1St Floor,2560, 25-Sep-2018
1167,Revenue,CAHD,Bed Purchasing - South,Permanent Nursing,Fshc  1St Floor,3200, 25-Sep-2018
1168,Revenue,CAHD,South Glos Users in South Glos Homes,Permanent Nursing,Fshc  1St Floor,632.64, 25-Sep-2018
1169,Revenue,CAHD,South Glos Users in South Glos Homes,Permanent Nursing,Fshc  1St Floor,632.64, 25-Sep-2018
1170,Revenue,CAHD,Bed Purchasing - Southmead Hospital,Permanent Nursing,Fshc  1St Floor,2310.44, 25-Sep-2018
1171,Revenue,CAHD,Bed Purchasing - North,Respite Planned - Nursing,Fshc  1St Floor,3480, 25-Sep-2018
1172,Revenue,CAHD,Bed Purchasing - North,Respite Planned - Nursing,Fshc  1St Floor,2040, 25-Sep-2018
1173,Revenue,CAHD,Bed Purchasing - South,Permanent Nursing,Fshc  1St Floor,4135.14, 25-Sep-2018
1174,Revenue,CAHD,Bed Purchasing - South,Permanent Nursing,Fshc  1St Floor,2824, 25-Sep-2018
1175,Revenue,CAHD,Bed Purchasing - South,Fees & Charges Income - General,Fshc  1St Floor,789.14, 25-Sep-2018
1176,Revenue,CAHD,Bed Purchasing - Southmead Hospital,Permanent Nursing,Fshc  1St Floor,2404.84, 25-Sep-2018
1177,Revenue,CAHD,South Glos Users in South Glos Homes,Permanent Nursing,Fshc  1St Floor,632.64, 25-Sep-2018
1178,Revenue,CAHD,Bed Purchasing - South,Permanent Nursing,Fshc  1St Floor,2560, 25-Sep-2018
1179,Revenue,CAHD,South Glos Users in South Glos Homes,Permanent Nursing,Fshc  1St Floor,632.64, 25-Sep-2018
1180,Revenue,CAHD,Bed Purchasing - South,Permanent Nursing,Fshc  1St Floor,2663.2, 25-Sep-2018
1181,Revenue,CAHD,South Glos Users in South Glos Homes,Permanent Nursing,Fshc  1St Floor,632.64, 25-Sep-2018
1182,Revenue,CAHD,Bed Purchasing - South,Respite Planned - Nursing,Fshc  1St Floor,960, 25-Sep-2018
1183,Revenue,CAHD,South Glos Users in South Glos Homes,Permanent Nursing,Fshc  1St Floor,632.64, 25-Sep-2018
1184,Revenue,CAHD,South Glos Users in South Glos Homes,Permanent Nursing,Fshc  1St Floor,632.64, 25-Sep-2018
1185,Revenue,CAHD,Bed Purchasing - South,Fees & Charges Income - General,Fshc  1St Floor,2584.44, 25-Sep-2018
1186,Revenue,CAHD,South Glos Users in South Glos Homes,Permanent Nursing,Fshc  1St Floor,632.64, 25-Sep-2018
1187,Revenue,CAHD,South Glos Users in South Glos Homes,Permanent Nursing,Fshc  1St Floor,632.64, 25-Sep-2018
1188,Revenue,CAHD,South Glos Users in South Glos Homes,Permanent Nursing,Fshc  1St Floor,632.64, 25-Sep-2018
1189,Revenue,CAHD,Bed Purchasing - South,Permanent Nursing,Fshc  1St Floor,2800, 25-Sep-2018
1190,Revenue,CAHD,Bed Purchasing - South,Fees & Charges Income - General,Fshc  1St Floor,670.77, 25-Sep-2018
1191,Revenue,CAHD,Bed Purchasing - Southmead Hospital,Permanent Nursing,Fshc  1St Floor,2324.64, 25-Sep-2018
1192,Revenue,CAHD,South Glos Users in South Glos Homes,Permanent Nursing,Fshc  1St Floor,632.64, 25-Sep-2018
1193,Revenue,CAHD,Bed Purchasing - Southmead Hospital,Permanent Nursing,Fshc  1St Floor,2404.84, 25-Sep-2018
1194,Revenue,CAHD,South Glos Users in South Glos Homes,Permanent Nursing,Fshc  1St Floor,632.64, 25-Sep-2018
1195,Revenue,CAHD,Bed Purchasing - South,Permanent Nursing,Fshc  1St Floor,2310.44, 25-Sep-2018
1196,Revenue,CAHD,South Glos Users in South Glos Homes,Permanent Nursing,Fshc  1St Floor,632.64, 25-Sep-2018
1197,Revenue,CAHD,Bed Purchasing - Southmead Hospital,Permanent Nursing,Fshc  1St Floor,2310.44, 25-Sep-2018
1198,Revenue,CAHD,South Glos Users in South Glos Homes,Permanent Nursing,Fshc  1St Floor,632.64, 25-Sep-2018
1199,Revenue,CAHD,Bed Purchasing - South,Permanent Nursing,Fshc  1St Floor,2310.44, 25-Sep-2018
1200,Revenue,CAHD,South Glos Users in South Glos Homes,Permanent Nursing,Fshc  1St Floor,632.64, 25-Sep-2018
1201,Revenue,CAHD,Bed Purchasing - South,Permanent Nursing,Fshc  1St Floor,5487.42, 25-Sep-2018
1202,Revenue,CAHD,Bed Purchasing - South,Permanent Nursing,Fshc  1St Floor,1974.86, 25-Sep-2018
1203,Revenue,CAHD,Bed Purchasing - South,Permanent Nursing,Fshc  1St Floor,1097.14, 25-Sep-2018
1204,Revenue,CAHD,Bed Purchasing - South,Permanent Nursing,Fshc  1St Floor,2324.64, 25-Sep-2018
1205,Revenue,CAHD,South Glos Users in South Glos Homes,Permanent Nursing,Fshc  1St Floor,632.64, 25-Sep-2018
1206,Revenue,CAHD,Bed Purchasing - Southmead Hospital,Permanent Nursing,Fshc  1St Floor,3200, 25-Sep-2018
1207,Revenue,CAHD,South Glos Users in South Glos Homes,Permanent Nursing,Fshc  1St Floor,632.64, 25-Sep-2018
1208,Revenue,CAHD,Bed Purchasing - South,Permanent Nursing,Fshc  1St Floor,2600, 25-Sep-2018
1209,Revenue,CAHD,South Glos Users in South Glos Homes,Permanent Nursing,Fshc  1St Floor,632.64, 25-Sep-2018
1210,Revenue,CAHD,Bed Purchasing - Southmead Hospital,Permanent Nursing,Fshc  1St Floor,2445.6, 25-Sep-2018
1211,Revenue,CAHD,Bed Purchasing - South,Permanent Nursing,Fshc  1St Floor,3097.76, 25-Sep-2018
1212,Revenue,CAHD,South Glos Users in South Glos Homes,Permanent Nursing,Fshc  1St Floor,632.64, 25-Sep-2018
1213,Revenue,CAHD,Bed Purchasing - South,Permanent Nursing,Fshc  1St Floor,2404.84, 25-Sep-2018
1214,Revenue,CAHD,South Glos Users in South Glos Homes,Permanent Nursing,Fshc  1St Floor,632.64, 25-Sep-2018
1215,Revenue,CAHD,Bed Purchasing - Southmead Hospital,Permanent Nursing,Fshc  1St Floor,2864.24, 25-Sep-2018
1216,Revenue,CAHD,Bed Purchasing - North,Permanent Residential,Fshc  1St Floor,2824, 25-Sep-2018
1217,Revenue,CAHD,Bed Purchasing - North,Permanent Residential,Fshc  1St Floor,3126.57, 25-Sep-2018
1218,Revenue,CAHD,Bed Purchasing - Southmead Hospital,Permanent Nursing,Fshc  1St Floor,2310.44, 25-Sep-2018
1219,Revenue,CAHD,South Glos Users in South Glos Homes,Permanent Nursing,Fshc  1St Floor,632.64, 25-Sep-2018
1220,Revenue,CAHD,Bed Purchasing - Southmead Hospital,Permanent Nursing,Fshc  1St Floor,2339.64, 25-Sep-2018
1221,Revenue,CAHD,South Glos Users in South Glos Homes,Permanent Nursing,Fshc  1St Floor,632.64, 25-Sep-2018
1222,Revenue,CAHD,Bed Purchasing - North,Permanent Nursing,Fshc  1St Floor,2339.64, 25-Sep-2018
1223,Revenue,CAHD,South Glos Users in South Glos Homes,Permanent Nursing,Fshc  1St Floor,632.64, 25-Sep-2018
1224,Revenue,CAHD,Bed Purchasing - Southmead Hospital,Permanent Nursing,Fshc  1St Floor,2339.64, 25-Sep-2018
1225,Revenue,CAHD,South Glos Users in South Glos Homes,Permanent Nursing,Fshc  1St Floor,632.64, 25-Sep-2018
1226,Revenue,CAHD,South Glos Users in South Glos Homes,Permanent Nursing,Fshc  1St Floor,632.64, 25-Sep-2018
1227,Revenue,CAHD,Bed Purchasing - Central,Permanent Residential,Fshc  1St Floor,2700, 25-Sep-2018
1228,Revenue,CAHD,Bed Purchasing - Central,Permanent Residential,Fshc  1St Floor,867.86, 25-Sep-2018
1229,Revenue,CAHD,Bed Purchasing - Central,Permanent Residential,Fshc  1St Floor,2700, 25-Sep-2018
1230,Revenue,CAHD,Bed Purchasing - Central,Permanent Residential,Fshc  1St Floor,867.86, 25-Sep-2018
1231,Revenue,CAHD,Bed Purchasing - Southmead Hospital,Permanent Nursing,Fshc  1St Floor,2310.44, 25-Sep-2018
1232,Revenue,CAHD,South Glos Users in South Glos Homes,Permanent Nursing,Fshc  1St Floor,632.64, 25-Sep-2018
1233,Revenue,CAHD,Bed Purchasing - Southmead Hospital,Permanent Residential,Fshc  1St Floor,2148.68, 25-Sep-2018
1234,Revenue,CAHD,South Glos Users in South Glos Homes,Permanent Nursing,Fshc  1St Floor,632.64, 25-Sep-2018
1235,Revenue,CAHD,South Glos Users in South Glos Homes,Permanent Nursing,Fshc  1St Floor,632.64, 25-Sep-2018
1236,Revenue,CAHD,Bed Purchasing - North,Permanent Residential,Fshc  1St Floor,2832.84, 25-Sep-2018
1237,Revenue,CAHD,Bed Purchasing - South,Permanent Residential,Fshc  1St Floor,2751.32, 25-Sep-2018
1238,Revenue,CAHD,Bed Purchasing - North,Permanent Nursing,Fshc  1St Floor,2339.64, 25-Sep-2018
1239,Revenue,CAHD,South Glos Users in South Glos Homes,Permanent Nursing,Fshc  1St Floor,632.64, 25-Sep-2018
1240,Revenue,CAHD,South Glos Users in South Glos Homes,Permanent Nursing,Fshc  1St Floor,632.64, 25-Sep-2018
1241,Revenue,CAHD,Bed Purchasing - Southmead Hospital,Permanent Nursing,Fshc  1St Floor,2311.2, 25-Sep-2018
1242,Revenue,CAHD,South Glos Users in South Glos Homes,Permanent Nursing,Fshc  1St Floor,632.64, 25-Sep-2018
1243,Revenue,CAHD,Bed Purchasing - Southmead Hospital,Permanent Nursing,Fshc  1St Floor,2310.44, 25-Sep-2018
1244,Revenue,CAHD,South Glos Users in South Glos Homes,Permanent Nursing,Fshc  1St Floor,632.64, 25-Sep-2018
1245,Revenue,CAHD,Bed Purchasing - North,Permanent Nursing,Fshc  1St Floor,2310.44, 25-Sep-2018
1246,Revenue,CAHD,South Glos Users in South Glos Homes,Permanent Nursing,Fshc  1St Floor,632.64, 25-Sep-2018
1247,Revenue,CAHD,Bed Purchasing - North,Permanent Nursing,Fshc  1St Floor,2310.44, 25-Sep-2018
1248,Revenue,CAHD,South Glos Users in South Glos Homes,Permanent Nursing,Fshc  1St Floor,632.64, 25-Sep-2018
1249,Revenue,CAHD,Bed Purchasing - Southmead Hospital,Permanent Residential,Fshc  1St Floor,2700, 25-Sep-2018
1250,Revenue,CAHD,Bed Purchasing - North,Permanent Nursing,Fshc  1St Floor,2339.64, 25-Sep-2018
1251,Revenue,CAHD,South Glos Users in South Glos Homes,Permanent Nursing,Fshc  1St Floor,632.64, 25-Sep-2018
1252,Revenue,CAHD,Bed Purchasing - North,Permanent Nursing,Fshc  1St Floor,2339.64, 25-Sep-2018
1253,Revenue,CAHD,South Glos Users in South Glos Homes,Permanent Nursing,Fshc  1St Floor,632.64, 25-Sep-2018
1254,Revenue,CAHD,Bed Purchasing - North,Permanent Nursing,Fshc  1St Floor,2310.44, 25-Sep-2018
1255,Revenue,CAHD,South Glos Users in South Glos Homes,Permanent Nursing,Fshc  1St Floor,632.64, 25-Sep-2018
1256,Revenue,CAHD,South Glos Users in South Glos Homes,Permanent Nursing,Fshc  1St Floor,632.64, 25-Sep-2018
1257,Revenue,CAHD,South Glos Users in South Glos Homes,Permanent Nursing,Fshc  1St Floor,632.64, 25-Sep-2018
1258,Revenue,CAHD,Bed Purchasing - North,Permanent Nursing,Fshc  1St Floor,2382, 25-Sep-2018
1259,Revenue,CAHD,Bed Purchasing - North,Permanent Residential,Fshc  1St Floor,2751.32, 25-Sep-2018
1260,Revenue,CAHD,Bed Purchasing - North,Permanent Nursing,Fshc  1St Floor,2310.44, 25-Sep-2018
1261,Revenue,CAHD,South Glos Users in South Glos Homes,Permanent Nursing,Fshc  1St Floor,632.64, 25-Sep-2018
1262,Revenue,CAHD,Bed Purchasing - North,Respite Planned - Nursing,Fshc  1St Floor,990.51, 25-Sep-2018
1263,Revenue,CAHD,South Glos Users in South Glos Homes,Permanent Nursing,Fshc  1St Floor,632.64, 25-Sep-2018
1264,Revenue,CAHD,Bed Purchasing - Southmead Hospital,Permanent Nursing,Fshc  1St Floor,2310.44, 25-Sep-2018
1265,Revenue,CAHD,South Glos Users in South Glos Homes,Permanent Nursing,Fshc  1St Floor,632.64, 25-Sep-2018
1266,Revenue,CAHD,South Glos Users in South Glos Homes,Permanent Nursing,Fshc  1St Floor,632.64, 25-Sep-2018
1267,Revenue,CAHD,Bed Purchasing - Central,Permanent Nursing,Fshc  1St Floor,3342, 25-Sep-2018
1268,Revenue,CAHD,South Glos Users in South Glos Homes,Permanent Nursing,Fshc  1St Floor,632.64, 25-Sep-2018
1269,Revenue,CAHD,Bed Purchasing - North,Permanent Nursing,Fshc  1St Floor,2310.44, 25-Sep-2018
1270,Revenue,CAHD,Bed Purchasing - Central,Permanent Residential,Fshc  1St Floor,2780, 25-Sep-2018
1271,Revenue,CAHD,South Glos Users in South Glos Homes,Permanent Nursing,Fshc  1St Floor,632.64, 25-Sep-2018
1272,Revenue,CAHD,South Glos Users in South Glos Homes,Permanent Nursing,Fshc  1St Floor,632.64, 25-Sep-2018
1273,Revenue,CAHD,South Glos Users in South Glos Homes,Permanent Nursing,Fshc  1St Floor,632.64, 25-Sep-2018
1274,Revenue,CAHD,Bed Purchasing - Central,Permanent Nursing,Fshc  1St Floor,3400, 25-Sep-2018
1275,Revenue,CAHD,Bed Purchasing - Central,Permanent Nursing,Fshc  1St Floor,2380, 25-Sep-2018
1276,Revenue,CAHD,South Glos Users in South Glos Homes,Permanent Nursing,Fshc  1St Floor,632.64, 25-Sep-2018
1277,Revenue,CAHD,South Glos Users in South Glos Homes,Permanent Nursing,Fshc  1St Floor,632.64, 25-Sep-2018
1278,Revenue,CAHD,Bed Purchasing - North,Permanent Nursing,Fshc  1St Floor,2310.44, 25-Sep-2018
1279,Revenue,CAHD,South Glos Users in South Glos Homes,Permanent Nursing,Fshc  1St Floor,632.64, 25-Sep-2018
1280,Revenue,CAHD,Bed Purchasing - North,Permanent Nursing,Fshc  1St Floor,2310.44, 25-Sep-2018
1281,Revenue,CAHD,South Glos Users in South Glos Homes,Permanent Nursing,Fshc  1St Floor,632.64, 25-Sep-2018
1282,Revenue,CAHD,Bed Purchasing - North,Permanent Nursing,Fshc  1St Floor,2310.44, 25-Sep-2018
1283,Revenue,CAHD,South Glos Users in South Glos Homes,Permanent Nursing,Fshc  1St Floor,632.64, 25-Sep-2018
1284,Revenue,CAHD,South Glos Users in South Glos Homes,Permanent Nursing,Fshc  1St Floor,632.64, 25-Sep-2018
1285,Revenue,CAHD,Bed Purchasing - Southmead Hospital,Permanent Nursing,Fshc  1St Floor,2310.44, 25-Sep-2018
1286,Revenue,CAHD,South Glos Users in South Glos Homes,Permanent Nursing,Fshc  1St Floor,632.64, 25-Sep-2018
1287,Revenue,CAHD,Bed Purchasing - North,Permanent Nursing,Fshc  1St Floor,2380.96, 25-Sep-2018
1288,Revenue,CAHD,South Glos Users in South Glos Homes,Permanent Nursing,Fshc  1St Floor,632.64, 25-Sep-2018
1289,Revenue,CAHD,South Glos Users in South Glos Homes,Permanent Nursing,Fshc  1St Floor,632.64, 25-Sep-2018
1290,Revenue,CAHD,Bed Purchasing - North,Permanent Nursing,Fshc  1St Floor,2270.32, 25-Sep-2018
1291,Revenue,CAHD,South Glos Users in South Glos Homes,Permanent Nursing,Fshc  1St Floor,632.64, 25-Sep-2018
1292,Revenue,CAHD,Bed Purchasing - North,Permanent Nursing,Fshc  1St Floor,2380.96, 25-Sep-2018
1293,Revenue,CAHD,South Glos Users in South Glos Homes,Permanent Nursing,Fshc  1St Floor,632.64, 25-Sep-2018
1294,Revenue,CAHD,Bed Purchasing - Southmead Hospital,Permanent Nursing,Fshc  1St Floor,2427.84, 25-Sep-2018
1295,Revenue,CAHD,South Glos Users in South Glos Homes,Permanent Nursing,Fshc  1St Floor,632.64, 25-Sep-2018
1296,Revenue,CAHD,South Glos Users in South Glos Homes,Permanent Nursing,Fshc  1St Floor,632.64, 25-Sep-2018
1297,Revenue,CAHD,Bed Purchasing - North,Permanent Nursing,Fshc  1St Floor,2310.44, 25-Sep-2018
1298,Revenue,CAHD,South Glos Users in South Glos Homes,Permanent Nursing,Fshc  1St Floor,632.64, 25-Sep-2018
1299,Revenue,CAHD,Bed Purchasing - North,Permanent Nursing,Fshc  1St Floor,2310.44, 25-Sep-2018
1300,Revenue,CAHD,South Glos Users in South Glos Homes,Permanent Nursing,Fshc  1St Floor,632.64, 25-Sep-2018
1301,Revenue,CAHD,Bed Purchasing - Southmead Hospital,Permanent Nursing,Fshc  1St Floor,3158.92, 25-Sep-2018
1302,Revenue,CAHD,South Glos Users in South Glos Homes,Permanent Nursing,Fshc  1St Floor,632.64, 25-Sep-2018
1303,Revenue,CAHD,South Glos Users in South Glos Homes,Permanent Nursing,Fshc  1St Floor,632.64, 25-Sep-2018
1304,Revenue,CAHD,South Glos Users in South Glos Homes,Permanent Nursing,Fshc  1St Floor,632.64, 25-Sep-2018
1305,Revenue,CAHD,South Glos Users in South Glos Homes,Permanent Nursing,Fshc  1St Floor,632.64, 25-Sep-2018
1306,Revenue,CAHD,Bed Purchasing - North,Permanent Nursing,Fshc  1St Floor,8877.64, 25-Sep-2018
1307,Revenue,CAHD,Bed Purchasing - North,Permanent Nursing,Fshc  1St Floor,2323.12, 25-Sep-2018
1308,Revenue,CAHD,South Glos Users in South Glos Homes,Permanent Nursing,Fshc  1St Floor,632.64, 25-Sep-2018
1309,Revenue,CAHD,Bed Purchasing - North,Fees & Charges Income - General,Fshc  1St Floor,4361.14, 25-Sep-2018
1310,Revenue,CAHD,South Glos Users in South Glos Homes,Permanent Nursing,Fshc  1St Floor,632.64, 25-Sep-2018
1311,Revenue,CAHD,South Glos Users in South Glos Homes,Permanent Nursing,Fshc  1St Floor,632.64, 25-Sep-2018
1312,Revenue,CAHD,South Glos Users in South Glos Homes,Permanent Nursing,Fshc  1St Floor,632.64, 25-Sep-2018
1313,Revenue,CAHD,Bed Purchasing - Central,Permanent Nursing,Fshc  1St Floor,2667.36, 25-Sep-2018
1314,Revenue,CAHD,South Glos Users in South Glos Homes,Permanent Nursing,Fshc  1St Floor,632.64, 25-Sep-2018
1315,Revenue,CAHD,Bed Purchasing - Central,Respite Emergency - Nursing,Fshc  1St Floor,1843.3, 25-Sep-2018
1316,Revenue,CAHD,Bed Purchasing - Central,Respite Emergency - Residential,Fshc  1St Floor,4608.26, 25-Sep-2018
1317,Revenue,CAHD,Bed Purchasing - Central,Permanent Nursing,Fshc  1St Floor,2927.36, 25-Sep-2018
1318,Revenue,CAHD,South Glos Users in South Glos Homes,Permanent Nursing,Fshc  1St Floor,632.64, 25-Sep-2018
1319,Revenue,CAHD,South Glos Users in South Glos Homes,Permanent Nursing,Fshc  1St Floor,632.64, 25-Sep-2018
1320,Revenue,CAHD,Bed Purchasing - North,Permanent Nursing,Fshc  1St Floor,2323.12, 25-Sep-2018
1321,Revenue,CAHD,South Glos Users in South Glos Homes,Permanent Nursing,Fshc  1St Floor,632.64, 25-Sep-2018
1322,Revenue,CAHD,South Glos Users in South Glos Homes,Permanent Nursing,Fshc  1St Floor,632.64, 25-Sep-2018
1323,Revenue,CAHD,Bed Purchasing - North,Respite Planned - Nursing,Fshc  1St Floor,2526.92, 25-Sep-2018
1324,Revenue,CAHD,South Glos Users in South Glos Homes,Permanent Nursing,Fshc  1St Floor,632.64, 25-Sep-2018
1325,Revenue,CAHD,Bed Purchasing - Southmead Hospital,Permanent Nursing,Fshc  1St Floor,2451.6, 25-Sep-2018
1326,Revenue,CAHD,South Glos Users in South Glos Homes,Permanent Nursing,Fshc  1St Floor,632.64, 25-Sep-2018
1327,Revenue,CAHD,South Glos Users in South Glos Homes,Permanent Nursing,Fshc  1St Floor,632.64, 25-Sep-2018
1328,Revenue,CAHD,Bed Purchasing - Southmead Hospital,Permanent Nursing,Fshc  1St Floor,2547.52, 25-Sep-2018
1329,Revenue,CAHD,South Glos Users in South Glos Homes,Permanent Nursing,Fshc  1St Floor,632.64, 25-Sep-2018
1330,Revenue,CAHD,South Glos Users in South Glos Homes,Permanent Nursing,Fshc  1St Floor,632.64, 25-Sep-2018
1331,Revenue,CAHD,South Glos Users in South Glos Homes,Permanent Nursing,Fshc  1St Floor,632.64, 25-Sep-2018
1332,Revenue,CAHD,Bed Purchasing - North,Permanent Nursing,Fshc  1St Floor,2380.96, 25-Sep-2018
1333,Revenue,CAHD,South Glos Users in South Glos Homes,Permanent Nursing,Fshc  1St Floor,632.64, 25-Sep-2018
1334,Revenue,CAHD,Bed Purchasing - Southmead Hospital,Permanent Nursing,Fshc  1St Floor,2967.36, 25-Sep-2018
1335,Revenue,CAHD,Bed Purchasing - Central,Respite Planned - Nursing,Fshc  1St Floor,4477.35, 25-Sep-2018
1336,Revenue,CAHD,Bed Purchasing - Central,Respite Planned - Nursing,Fshc  1St Floor,2667.36, 25-Sep-2018
1337,Revenue,CAHD,South Glos Users in South Glos Homes,Permanent Nursing,Fshc  1St Floor,632.64, 25-Sep-2018
1338,Revenue,CAHD,South Glos Users in South Glos Homes,Permanent Nursing,Fshc  1St Floor,632.64, 25-Sep-2018
1339,Revenue,CAHD,South Glos Users in South Glos Homes,Permanent Nursing,Fshc  1St Floor,632.64, 25-Sep-2018
1340,Revenue,CAHD,Bed Purchasing - Southmead Hospital,Permanent Nursing,Fshc  1St Floor,3158.92, 25-Sep-2018
1341,Revenue,CAHD,South Glos Users in South Glos Homes,Permanent Nursing,Fshc  1St Floor,632.64, 25-Sep-2018
1342,Revenue,CAHD,South Glos Users in South Glos Homes,Permanent Nursing,Fshc  1St Floor,632.64, 25-Sep-2018
1343,Revenue,CAHD,Bed Purchasing - North,Permanent Nursing,Fshc  1St Floor,2456.52, 25-Sep-2018
1344,Revenue,CAHD,South Glos Users in South Glos Homes,Permanent Nursing,Fshc  1St Floor,632.64, 25-Sep-2018
1345,Revenue,CAHD,South Glos Users in South Glos Homes,Permanent Nursing,Fshc  1St Floor,632.64, 25-Sep-2018
1346,Revenue,CAHD,Bed Purchasing - South,Permanent Nursing,Fshc  1St Floor,2554.8, 25-Sep-2018
1347,Revenue,CAHD,South Glos Users in South Glos Homes,Permanent Nursing,Fshc  1St Floor,632.64, 25-Sep-2018
1348,Revenue,CAHD,Bed Purchasing - Southmead Hospital,Permanent Nursing,Fshc  1St Floor,2380.96, 25-Sep-2018
1349,Revenue,CAHD,South Glos Users in South Glos Homes,Permanent Nursing,Fshc  1St Floor,632.64, 25-Sep-2018
1350,Revenue,CAHD,Bed Purchasing - South,Permanent Nursing,Fshc  1St Floor,2477.4, 25-Sep-2018
1351,Revenue,CAHD,South Glos Users in South Glos Homes,Permanent Nursing,Fshc  1St Floor,632.64, 25-Sep-2018
1352,Revenue,CAHD,South Glos Users in South Glos Homes,Permanent Nursing,Fshc  1St Floor,632.64, 25-Sep-2018
1353,Revenue,CAHD,Bed Purchasing - South,Permanent Nursing,Fshc  1St Floor,2547.52, 25-Sep-2018
1354,Revenue,CAHD,South Glos Users in South Glos Homes,Permanent Nursing,Fshc  1St Floor,632.64, 25-Sep-2018
1355,Revenue,CAHD,Bed Purchasing - Southmead Hospital,Permanent Nursing,Fshc  1St Floor,2310.44, 25-Sep-2018
1356,Revenue,CAHD,South Glos Users in South Glos Homes,Permanent Nursing,Fshc  1St Floor,632.64, 25-Sep-2018
1357,Revenue,CAHD,South Glos Users in South Glos Homes,Permanent Nursing,Fshc  1St Floor,632.64, 25-Sep-2018
1358,Revenue,CAHD,Bed Purchasing - South,Fees & Charges Income - General,Fshc  1St Floor,1075.34, 25-Sep-2018
1359,Revenue,CAHD,South Glos Users in South Glos Homes,Permanent Nursing,Fshc  1St Floor,632.64, 25-Sep-2018
1360,Revenue,CAHD,Bed Purchasing - Southmead Hospital,Permanent Nursing,Fshc  1St Floor,2445.6, 25-Sep-2018
1361,Revenue,CAHD,South Glos Users in South Glos Homes,Permanent Nursing,Fshc  1St Floor,632.64, 25-Sep-2018
1362,Revenue,CAHD,South Glos Users in South Glos Homes,Permanent Nursing,Fshc  1St Floor,632.64, 25-Sep-2018
1363,Revenue,CAHD,Bed Purchasing - Southmead Hospital,Permanent Nursing,Fshc  1St Floor,2311.2, 25-Sep-2018
1364,Revenue,CAHD,South Glos Users in South Glos Homes,Permanent Nursing,Fshc  1St Floor,632.64, 25-Sep-2018
1365,Revenue,CAHD,South Glos Users in South Glos Homes,Permanent Nursing,Fshc  1St Floor,632.64, 25-Sep-2018
1366,Revenue,CAHD,South Glos Users in South Glos Homes,Permanent Nursing,Fshc  1St Floor,632.64, 25-Sep-2018
1367,Revenue,CAHD,Bed Purchasing - Southmead Hospital,Permanent Residential,Fshc  1St Floor,2343.72, 25-Sep-2018
1368,Revenue,CAHD,South Glos Users in South Glos Homes,Permanent Nursing,Fshc  1St Floor,632.64, 25-Sep-2018
1369,Revenue,CAHD,Bed Purchasing - Southmead Hospital,Permanent Residential,Fshc  1St Floor,2400, 25-Sep-2018
1370,Revenue,CAHD,South Glos Users in South Glos Homes,Permanent Nursing,Fshc  1St Floor,632.64, 25-Sep-2018
1371,Revenue,CAHD,Bed Purchasing - South,Permanent Residential,Fshc  1St Floor,2180.68, 25-Sep-2018
1372,Revenue,CAHD,Bed Purchasing - Southmead Hospital,Permanent Nursing,Fshc  1St Floor,2380.96, 25-Sep-2018
1373,Revenue,CAHD,South Glos Users in South Glos Homes,Permanent Nursing,Fshc  1St Floor,632.64, 25-Sep-2018
1374,Revenue,CAHD,Bed Purchasing - Southmead Hospital,Permanent Nursing,Fshc  1St Floor,2310.44, 25-Sep-2018
1375,Revenue,CAHD,South Glos Users in South Glos Homes,Permanent Nursing,Fshc  1St Floor,632.64, 25-Sep-2018
1376,Revenue,CAHD,Bed Purchasing - South,Permanent Nursing,Fshc  1St Floor,2683.84, 25-Sep-2018
1377,Revenue,CAHD,South Glos Users in South Glos Homes,Permanent Nursing,Fshc  1St Floor,632.64, 25-Sep-2018
1378,Revenue,CAHD,Bed Purchasing - South,Fees & Charges Income - General,Fshc  1St Floor,2225.52, 25-Sep-2018
1379,Revenue,CAHD,Bed Purchasing - South,Permanent Nursing,Fshc  1St Floor,2310.44, 25-Sep-2018
1380,Revenue,CAHD,South Glos Users in South Glos Homes,Permanent Nursing,Fshc  1St Floor,632.64, 25-Sep-2018
1381,Revenue,CAHD,Bed Purchasing - South,Permanent Residential,Fshc  1St Floor,2223.84, 25-Sep-2018
1382,Revenue,CAHD,Bed Purchasing - South,Permanent Nursing,Fshc  1St Floor,2233.76, 25-Sep-2018
1383,Revenue,CAHD,Bed purchasing - Elderly S117 - South,Permanent Nursing,Fshc  1St Floor,2233.76, 25-Sep-2018
1384,Revenue,CAHD,Bed Purchasing - South,Permanent Nursing,Fshc  1St Floor,3509.64, 25-Sep-2018
1385,Revenue,CAHD,Bed Purchasing - Southmead Hospital,Permanent Nursing,Fshc  1St Floor,2233.76, 25-Sep-2018
1386,Revenue,CAHD,Bed Purchasing - Southmead Hospital,Fees & Charges Income - General,Fshc  1St Floor,3853.2, 25-Sep-2018
1387,Revenue,CAHD,Bed Purchasing - Southmead Hospital,Fees & Charges Income - General,Fshc  1St Floor,2489.27, 25-Sep-2018
1388,Revenue,CAHD,Bed Purchasing - Southmead Hospital,Permanent Nursing,Fshc  1St Floor,3668.4, 25-Sep-2018
1389,Revenue,CAHD,Bed Purchasing - Southmead Hospital,Permanent Nursing,Fshc  1St Floor,3158.92, 25-Sep-2018
1390,Revenue,CAHD,Bed Purchasing - Southmead Hospital,Permanent Nursing,Fshc  1St Floor,2233.76, 25-Sep-2018
1391,Revenue,CAHD,Bed Purchasing - South,Permanent Nursing,Fshc  1St Floor,2233.76, 25-Sep-2018
1392,Revenue,CAHD,Bed Purchasing - South,Permanent Residential,Fshc  1St Floor,3656.28, 25-Sep-2018
1393,Revenue,CAHD,Bed Purchasing - North,Permanent Nursing,Fshc  1St Floor,2235.88, 25-Sep-2018
1394,Revenue,CAHD,Bed Purchasing - Central,Respite Planned - Nursing,Fshc  1St Floor,586.39, 25-Sep-2018
1395,Revenue,CAHD,Bed Purchasing - Southmead Hospital,Permanent Nursing,Fshc  1St Floor,4076, 25-Sep-2018
1396,Revenue,CAHD,Bed Purchasing - North,Permanent Nursing,Fshc  1St Floor,2264.96, 25-Sep-2018
1397,Revenue,CAHD,Bed Purchasing - North,Permanent Nursing,Fshc  1St Floor,2309.04, 25-Sep-2018
1398,Revenue,CAHD,Bed Purchasing - North,Permanent Residential,Fshc  1St Floor,1890.36, 25-Sep-2018
1399,Revenue,CAHD,CSC - Corporate Parenting Manager,Agency Staff (Admin/Support Staff) Pay,Gatenby Sanderson Limited,1595, 18-Sep-2018
1400,Revenue,CAHD,CSC - Corporate Parenting Manager,Agency Staff (Admin/Support Staff) Pay,Gatenby Sanderson Limited,2900, 18-Sep-2018
1401,Revenue,CAHD,CSC - Corporate Parenting Manager,Agency Staff (Admin/Support Staff) Pay,Gatenby Sanderson Limited,2900, 18-Sep-2018
1402,Revenue,CAHD,CSC - Corporate Parenting Manager,Agency Staff (Admin/Support Staff) Pay,Gatenby Sanderson Limited,5800, 25-Sep-2018
1403,Revenue,CAHD,CSC - Corporate Parenting Manager,Agency Staff (Admin/Support Staff) Pay,Gatenby Sanderson Limited,4060, 18-Sep-2018
1404,Revenue,CAHD,CSC - Corporate Parenting Manager,Agency Staff (Admin/Support Staff) Pay,Gatenby Sanderson Limited,2900, 20-Sep-2018
1405,Revenue,CAHD,CSC - Corporate Parenting Manager,Agency Staff (Admin/Support Staff) Pay,Gatenby Sanderson Limited,2900, 27-Sep-2018
1406,Revenue,CAHD,Bed Purchasing - North,Permanent Residential,Gladstone House,2907.43, 25-Sep-2018
1407,Revenue,CAHD,Bed Purchasing - North,Permanent Residential,Gladstone House,19010.42, 25-Sep-2018
1408,Revenue,CAHD,Bed Purchasing - North,Fees & Charges Income - General,Gladstone House,528.77, 25-Sep-2018
1409,Revenue,CAHD,Bed Purchasing - North,Permanent Residential,Gladstone House,3456.44, 25-Sep-2018
1410,Revenue,CAHD,Bed Purchasing - North,Fees & Charges Income - General,Gladstone House,4937.77, 25-Sep-2018
1411,Revenue,CAHD,Bed Purchasing - South,Permanent Residential,Gladstone House,5859.2, 25-Sep-2018
1412,Revenue,CAHD,Jointly Funded H&SC Packages,Permanent Residential,Gladstone House,2105.4, 25-Sep-2018
1413,Revenue,CAHD,MH Purchasing - Younger,Permanent Residential,Gladstone House,8421.6, 25-Sep-2018
1414,Revenue,CAHD,Jointly Funded H&SC Packages,Permanent Residential,Gladstone House,765.6, 25-Sep-2018
1415,Revenue,CAHD,MH Purchasing - Younger,Permanent Residential,Gladstone House,3062.4, 25-Sep-2018
1416,Revenue,CAHD,Bed Purchasing - North,Permanent Residential,Glan Y Felin,6643.96, 25-Sep-2018
1417,Revenue,CAHD,Bed Purchasing - South,Permanent Residential,Glasallt Fawr,5219.16, 25-Sep-2018
1418,Revenue,CAHD,Bed Purchasing - North,Permanent Nursing,Glebe House Nursing Home,3578.28, 25-Sep-2018
1419,Revenue,CAHD,South Glos Users in South Glos Homes,Permanent Nursing,Glebe House Nursing Home,632.64, 25-Sep-2018
1420,Revenue,CAHD,South Glos Users in South Glos Homes,Permanent Nursing,Glebe House Nursing Home,632.64, 25-Sep-2018
1421,Revenue,CAHD,Bed Purchasing - North,Permanent Nursing,Glebe House Nursing Home,3789.28, 25-Sep-2018
1422,Revenue,CAHD,South Glos Users in South Glos Homes,Permanent Nursing,Glebe House Nursing Home,632.64, 25-Sep-2018
1423,Revenue,CAHD,South Glos Users in South Glos Homes,Permanent Nursing,Glebe House Nursing Home,632.64, 25-Sep-2018
1424,Revenue,CAHD,South Glos Users in South Glos Homes,Permanent Nursing,Glebe House Nursing Home,632.64, 25-Sep-2018
1425,Revenue,CAHD,South Glos Users in South Glos Homes,Permanent Nursing,Glebe House Nursing Home,632.64, 25-Sep-2018
1426,Revenue,CAHD,Bed Purchasing - North,Permanent Residential,Glebe House Nursing Home,3696.32, 25-Sep-2018
1427,Revenue,CAHD,Bed Purchasing - North,Permanent Residential,Glebe House Nursing Home,3744, 25-Sep-2018
1428,Revenue,CAHD,South Glos Users in South Glos Homes,Permanent Nursing,Glebe House Nursing Home,632.64, 25-Sep-2018
1429,Revenue,CAHD,South Glos Users in South Glos Homes,Permanent Nursing,Glebe House Nursing Home,632.64, 25-Sep-2018
1430,Revenue,CAHD,South Glos Users in South Glos Homes,Permanent Nursing,Glebe House Nursing Home,632.64, 25-Sep-2018
1431,Revenue,CAHD,South Glos Users in South Glos Homes,Permanent Nursing,Glebe House Nursing Home,632.64, 25-Sep-2018
1432,Revenue,CAHD,South Glos Users in South Glos Homes,Permanent Nursing,Glebe House Nursing Home,632.64, 25-Sep-2018
1433,Revenue,CAHD,Bed Purchasing - North,Permanent Nursing,Glebe House Nursing Home,3867.36, 25-Sep-2018
1434,Revenue,CAHD,South Glos Users in South Glos Homes,Permanent Nursing,Glebe House Nursing Home,632.64, 25-Sep-2018
1435,Revenue,CAHD,South Glos Users in South Glos Homes,Permanent Nursing,Glebe House Nursing Home,632.64, 25-Sep-2018
1436,Revenue,CAHD,Bed Purchasing - North,Permanent Nursing,Glebe House Nursing Home,3420, 25-Sep-2018
1437,Revenue,CAHD,South Glos Users in South Glos Homes,Permanent Nursing,Glebe House Nursing Home,632.64, 25-Sep-2018
1438,Revenue,CAHD,Bed Purchasing - South,Permanent Nursing,Glenview,3900, 25-Sep-2018
1439,Revenue,CAHD,Bed Purchasing - South,Permanent Residential,Goldcare House,4625.52, 25-Sep-2018
1440,Revenue,CAHD,Bed Purchasing - Southmead Hospital,Permanent Residential,Gordena Care Home,3925.68, 25-Sep-2018
1441,Revenue,CAHD,Bed Purchasing - South,Permanent Residential,Gordena Care Home,2635.96, 25-Sep-2018
1442,Revenue,CAHD,Bed Purchasing - South,Permanent Residential,Gordena Care Home,3752.8, 25-Sep-2018
1443,Revenue,CAHD,Bed Purchasing - South,Permanent Residential,Gordena Care Home,3764.24, 25-Sep-2018
1444,Revenue,CAHD,Bed Purchasing - South,Permanent Residential,Gordena Care Limited,4918.6, 25-Sep-2018
1445,Revenue,CAHD,Bed Purchasing - South,Permanent Residential,Gordena Care Limited,20031.54, 25-Sep-2018
1446,Revenue,CAHD,Jointly Funded H&SC Packages,Permanent Residential,Gordena Care Limited,7873.6, 25-Sep-2018
1447,Revenue,CAHD,Bed purchasing - S28A Under 65 - South,Permanent Residential,Gordena Care Limited,4783.6, 25-Sep-2018
1448,Revenue,CAHD,Bed Purchasing - North,Permanent Residential,Gordena Care Limited,4985.6, 25-Sep-2018
1449,Revenue,CAHD,South Glos Users in South Glos Homes,Permanent Nursing,Gracefields Nursing Home,632.64, 25-Sep-2018
1450,Revenue,CAHD,South Glos Users in South Glos Homes,Permanent Nursing,Gracefields Nursing Home,632.64, 25-Sep-2018
1451,Revenue,CAHD,Bed Purchasing - South,Permanent Nursing,Gracefields Nursing Home,3707.36, 25-Sep-2018
1452,Revenue,CAHD,South Glos Users in South Glos Homes,Permanent Nursing,Gracefields Nursing Home,632.64, 25-Sep-2018
1453,Revenue,CAHD,South Glos Users in South Glos Homes,Permanent Nursing,Gracefields Nursing Home,632.64, 25-Sep-2018
1454,Revenue,CAHD,Bed Purchasing - Southmead Hospital,Permanent Nursing,Gracefields Nursing Home,3566.52, 25-Sep-2018
1455,Revenue,CAHD,South Glos Users in South Glos Homes,Permanent Nursing,Gracefields Nursing Home,632.64, 25-Sep-2018
1456,Revenue,CAHD,South Glos Users in South Glos Homes,Permanent Nursing,Gracefields Nursing Home,632.64, 25-Sep-2018
1457,Revenue,CAHD,Bed purchasing - Elderly S117 - South,Permanent Nursing,Gracefields Nursing Home,2492.16, 25-Sep-2018
1458,Revenue,CAHD,South Glos Users in South Glos Homes,Permanent Nursing,Gracefields Nursing Home,632.64, 25-Sep-2018
1459,Revenue,CAHD,Bed Purchasing - South,Permanent Nursing,Gracefields Nursing Home,3668.4, 25-Sep-2018
1460,Revenue,CAHD,South Glos Users in South Glos Homes,Permanent Nursing,Gracefields Nursing Home,632.64, 25-Sep-2018
1461,Revenue,CAHD,Bed Purchasing - South,Permanent Nursing,Gracefields Nursing Home,3153.52, 25-Sep-2018
1462,Revenue,CAHD,South Glos Users in South Glos Homes,Permanent Nursing,Gracefields Nursing Home,632.64, 25-Sep-2018
1463,Revenue,CAHD,South Glos Users in South Glos Homes,Permanent Nursing,Gracefields Nursing Home,632.64, 25-Sep-2018
1464,Revenue,CAHD,Bed Purchasing - South,Permanent Nursing,Gracefields Nursing Home,3464.6, 25-Sep-2018
1465,Revenue,CAHD,South Glos Users in South Glos Homes,Permanent Nursing,Gracefields Nursing Home,632.64, 25-Sep-2018
1466,Revenue,CAHD,Bed Purchasing - Southmead Hospital,Permanent Nursing,Gracefields Nursing Home,3464.6, 25-Sep-2018
1467,Revenue,CAHD,South Glos Users in South Glos Homes,Permanent Nursing,Gracefields Nursing Home,632.64, 25-Sep-2018
1468,Revenue,CAHD,South Glos Users in South Glos Homes,Permanent Nursing,Gracefields Nursing Home,632.64, 25-Sep-2018
1469,Revenue,CAHD,South Glos Users in South Glos Homes,Permanent Nursing,Gracefields Nursing Home,632.64, 25-Sep-2018
1470,Revenue,CAHD,Bed Purchasing - Southmead Hospital,Permanent Nursing,Gracefields Nursing Home,4459.2, 25-Sep-2018
1471,Revenue,CAHD,Bed Purchasing - Southmead Hospital,Permanent Nursing,Gracefields Nursing Home,3567.36, 25-Sep-2018
1472,Revenue,CAHD,Bed Purchasing - Southmead Hospital,Fees & Charges Income - General,Gracefields Nursing Home,670.77, 25-Sep-2018
1473,Revenue,CAHD,South Glos Users in South Glos Homes,Permanent Nursing,Gracefields Nursing Home,632.64, 25-Sep-2018
1474,Revenue,CAHD,Bed Purchasing - South,Permanent Nursing,Gracefields Nursing Home,3567.36, 25-Sep-2018
1475,Revenue,CAHD,South Glos Users in South Glos Homes,Permanent Nursing,Gracefields Nursing Home,632.64, 25-Sep-2018
1476,Revenue,CAHD,South Glos Users in South Glos Homes,Permanent Nursing,Gracefields Nursing Home,632.64, 25-Sep-2018
1477,Revenue,CAHD,Bed Purchasing - Southmead Hospital,Permanent Nursing,Gracefields Nursing Home,3566.52, 25-Sep-2018
1478,Revenue,CAHD,Bed Purchasing - South,Permanent Nursing,Gracefields Nursing Home,3487.36, 25-Sep-2018
1479,Revenue,CAHD,South Glos Users in South Glos Homes,Permanent Nursing,Gracefields Nursing Home,632.64, 25-Sep-2018
1480,Revenue,CAHD,Bed Purchasing - South,Permanent Nursing,Gracefields Nursing Home,3129.76, 25-Sep-2018
1481,Revenue,CAHD,South Glos Users in South Glos Homes,Permanent Nursing,Gracefields Nursing Home,632.64, 25-Sep-2018
1482,Revenue,CAHD,South Glos Users in South Glos Homes,Permanent Nursing,Gracefields Nursing Home,632.64, 25-Sep-2018
1483,Revenue,CAHD,South Glos Users in South Glos Homes,Permanent Nursing,Gracefields Nursing Home,632.64, 25-Sep-2018
1484,Revenue,CAHD,South Glos Users in South Glos Homes,Permanent Nursing,Gracefields Nursing Home,632.64, 25-Sep-2018
1485,Revenue,CAHD,Bed Purchasing - Southmead Hospital,Permanent Nursing,Gracefields Nursing Home,3153.52, 25-Sep-2018
1486,Revenue,CAHD,South Glos Users in South Glos Homes,Permanent Nursing,Gracefields Nursing Home,632.64, 25-Sep-2018
1487,Revenue,CAHD,Bed Purchasing - South,Permanent Nursing,Gracefields Nursing Home,3026.56, 25-Sep-2018
1488,Revenue,CAHD,South Glos Users in South Glos Homes,Permanent Nursing,Gracefields Nursing Home,632.64, 25-Sep-2018
1489,Revenue,CAHD,South Glos Users in South Glos Homes,Permanent Nursing,Gracefields Nursing Home,632.64, 25-Sep-2018
1490,Revenue,CAHD,South Glos Users in South Glos Homes,Permanent Nursing,Gracefields Nursing Home,632.64, 25-Sep-2018
1491,Revenue,CAHD,South Glos Users in South Glos Homes,Permanent Nursing,Gracefields Nursing Home,632.64, 25-Sep-2018
1492,Revenue,CAHD,South Glos Users in South Glos Homes,Permanent Nursing,Gracefields Nursing Home,632.64, 25-Sep-2018
1493,Revenue,CAHD,South Glos Users in South Glos Homes,Permanent Nursing,Gracefields Nursing Home,632.64, 25-Sep-2018
1494,Revenue,CAHD,Bed Purchasing - Southmead Hospital,Permanent Nursing,Gracefields Nursing Home,3400, 25-Sep-2018
1495,Revenue,CAHD,South Glos Users in South Glos Homes,Permanent Nursing,Gracefields Nursing Home,632.64, 25-Sep-2018
1496,Revenue,CAHD,Bed Purchasing - South,Permanent Residential,Gracefields Nursing Home,7134.72, 25-Sep-2018
1497,Revenue,CAHD,Bed Purchasing - South,Permanent Residential,Gracefields Nursing Home,3567.36, 25-Sep-2018
1498,Revenue,CAHD,Bed Purchasing - South,Fees & Charges Income - General,Gracefields Nursing Home,1022.32, 25-Sep-2018
1499,Revenue,CAHD,Bed Purchasing - South,Permanent Nursing,Gracefields Nursing Home,2492.16, 25-Sep-2018
1500,Revenue,CAHD,South Glos Users in South Glos Homes,Permanent Nursing,Gracefields Nursing Home,632.64, 25-Sep-2018
1501,Revenue,CAHD,Bed Purchasing - South,Permanent Nursing,Gracefields Nursing Home,3464.6, 25-Sep-2018
1502,Revenue,CAHD,South Glos Users in South Glos Homes,Permanent Nursing,Gracefields Nursing Home,632.64, 25-Sep-2018
1503,Revenue,CAHD,South Glos Users in South Glos Homes,Permanent Nursing,Gracefields Nursing Home,632.64, 25-Sep-2018
1504,Revenue,CAHD,Bed Purchasing - South,Permanent Nursing,Gracefields Nursing Home,3567.36, 25-Sep-2018
1505,Revenue,CAHD,Bed Purchasing - South,Permanent Nursing,Gracefields Nursing Home,2420.71, 25-Sep-2018
1506,Revenue,CAHD,South Glos Users in South Glos Homes,Permanent Nursing,Gracefields Nursing Home,632.64, 25-Sep-2018
1507,Revenue,CAHD,Bed Purchasing - Southmead Hospital,Permanent Nursing,Gracefields Nursing Home,3336.2, 25-Sep-2018
1508,Revenue,CAHD,South Glos Users in South Glos Homes,Permanent Nursing,Gracefields Nursing Home,632.64, 25-Sep-2018
1509,Revenue,CAHD,CSC - Residential Placements,Permanent Residential,Greenfields Adolecent Development Limited,4422.73, 11-Sep-2018
1510,Revenue,CAHD,CSC - Residential Placements,Permanent Residential,Greenfields Adolecent Development Limited,35084.29, 17-Sep-2018
1511,Revenue,CAHD,CSC - Residential Placements,Permanent Residential,Greenfields Adolecent Development Limited,26527.14, 17-Sep-2018
1512,Revenue,CAHD,CSC - Residential Placements,Permanent Residential,Greenfields Adolecent Development Limited,26527.14, 28-Sep-2018
1513,Revenue,CAHD,Academy Resource Base Funding,Other Public Bodies,Greenshaw Learning Trust T/A Yate Academy,1491.12, 25-Sep-2018
1514,Revenue,CAHD,Academy Resource Base Funding,Other Public Bodies,Greenshaw Learning Trust T/A Yate Academy,981.04, 25-Sep-2018
1515,Revenue,CAHD,Academy Resource Base Funding,Other Public Bodies,Greenshaw Learning Trust T/A Yate Academy,981.04, 25-Sep-2018
1516,Revenue,CAHD,Academy Resource Base Funding,Other Public Bodies,Greenshaw Learning Trust T/A Yate Academy,627.78, 25-Sep-2018
1517,Revenue,CAHD,Academy Resource Base Funding,Other Public Bodies,Greenshaw Learning Trust T/A Yate Academy,1491.12, 25-Sep-2018
1518,Revenue,CAHD,Academy Resource Base Funding,Other Public Bodies,Greenshaw Learning Trust T/A Yate Academy,1137.95, 25-Sep-2018
1519,Revenue,CAHD,Academy Resource Base Funding,Other Public Bodies,Greenshaw Learning Trust T/A Yate Academy,1648.03, 25-Sep-2018
1520,Revenue,CAHD,Statemented Support Academies,Schools Funding,Greenshaw Learning Trust T/A Yate Academy,694.91, 26-Sep-2018
1521,Revenue,CAHD,Statemented Support Academies,Schools Funding,Greenshaw Learning Trust T/A Yate Academy,1213.74, 26-Sep-2018
1522,Revenue,CAHD,Statemented Support Academies,Schools Funding,Greenshaw Learning Trust T/A Yate Academy,848.2, 26-Sep-2018
1523,Revenue,CAHD,Statemented Support Academies,Schools Funding,Greenshaw Learning Trust T/A Yate Academy,1461.37, 26-Sep-2018
1524,Revenue,CAHD,Statemented Support Academies,Schools Funding,Greenshaw Learning Trust T/A Yate Academy,1461.37, 26-Sep-2018
1525,Revenue,CAHD,Statemented Support Academies,Schools Funding,Greenshaw Learning Trust T/A Yate Academy,1213.74, 26-Sep-2018
1526,Revenue,CAHD,Statemented Support Academies,Schools Funding,Greenshaw Learning Trust T/A Yate Academy,1213.74, 26-Sep-2018
1527,Revenue,CAHD,Statemented Support Academies,Schools Funding,Greenshaw Learning Trust T/A Yate Academy,977.91, 26-Sep-2018
1528,Revenue,CAHD,Statemented Support Academies,Schools Funding,Greenshaw Learning Trust T/A Yate Academy,942.53, 26-Sep-2018
1529,Revenue,CAHD,Statemented Support Academies,Schools Funding,Greenshaw Learning Trust T/A Yate Academy,883.58, 26-Sep-2018
1530,Revenue,CAHD,Statemented Support Academies,Schools Funding,Greenshaw Learning Trust T/A Yate Academy,966.12, 26-Sep-2018
1531,Revenue,CAHD,Statemented Support Academies,Schools Funding,Greenshaw Learning Trust T/A Yate Academy,765.66, 26-Sep-2018
1532,Revenue,CAHD,Statemented Support Academies,Schools Funding,Greenshaw Learning Trust T/A Yate Academy,694.91, 26-Sep-2018
1533,Revenue,CAHD,Bed Purchasing - North,Permanent Residential,Greensleeves,2075.4, 25-Sep-2018
1534,Revenue,CAHD,Bed Purchasing - South,Permanent Residential,Gwendoline House,2613.96, 25-Sep-2018
1535,Revenue,CAHD,Bed Purchasing - South,Permanent Residential,Gwendoline House,2425.24, 25-Sep-2018
1536,Revenue,CAHD,Bed Purchasing - South,Permanent Residential,Gwendoline House,2415.44, 25-Sep-2018
1537,Revenue,CAHD,Bed Purchasing - South,Permanent Residential,Gwendoline House,2425.24, 25-Sep-2018
1538,Revenue,CAHD,Bed Purchasing - Southmead Hospital,Permanent Residential,Gwendoline House,2144.76, 25-Sep-2018
1539,Revenue,CAHD,CSC - Vinney Green Secure Unit,R & M by Departments,HAG Shutters & Grilles Limited,2172, 21-Sep-2018
1540,Revenue,CAHD,Social Lettings Agency,Fees - General,Individual,13.13, 27-Sep-2018
1541,Revenue,CAHD,Social Lettings Agency,Other Supplies & Services,Individual,577.72, 27-Sep-2018
1542,Revenue,CAHD,CSC - Residential Placements,Permanent Residential,Hampshire County Council,26000, 20-Sep-2018
1543,Revenue,CAHD,CSC - Residential Placements,Permanent Residential,Hampshire County Council,31000, 20-Sep-2018
1544,Revenue,CAHD,Home Care - Elderly - North,Other Supplies & Services,HAS Technology Limited T/A CM2000,9481.2, 27-Sep-2018
1545,Revenue,CAHD,Home Care - Elderly - South,Other Supplies & Services,HAS Technology Limited T/A CM2000,5264.64, 27-Sep-2018
1546,Revenue,CAHD,Home Care - Elderly - North,Other Supplies & Services,HAS Technology Limited T/A CM2000,5264.63, 27-Sep-2018
1547,Revenue,CAHD,Bed Purchasing - Southmead Hospital,Permanent Nursing,Hazelwood Gardens Nursing Home,2658.04, 25-Sep-2018
1548,Revenue,CAHD,Bed Purchasing - Southmead Hospital,Permanent Nursing,Hazelwood Gardens Nursing Home,2288.56, 25-Sep-2018
1549,Revenue,CAHD,Bed Purchasing - Southmead Hospital,Permanent Residential,Hc-One Ltd,2181, 25-Sep-2018
1550,Revenue,CAHD,Bed Purchasing - Southmead Hospital,Permanent Nursing,Hc-One Ltd,2816.28, 25-Sep-2018
1551,Revenue,CAHD,Bed Purchasing - North,Permanent Nursing,Hc-One Ltd,2156.56, 25-Sep-2018
1552,Revenue,CAHD,Bed Purchasing - Central,Respite Planned - Residential,Hc-One Ltd,2313.72, 25-Sep-2018
1553,Revenue,CAHD,Bed Purchasing - Central,Respite Planned - Residential,Hc-One Ltd,1487.39, 25-Sep-2018
1554,Revenue,CAHD,Bed Purchasing - Central,Permanent Nursing,Hc-One Ltd,2267.32, 25-Sep-2018
1555,Revenue,CAHD,Bed Purchasing - Central,Permanent Nursing,Hc-One Ltd,1538.54, 25-Sep-2018
1556,Revenue,CAHD,South Glos Users in South Glos Homes,Permanent Nursing,Hc-One Ltd,632.64, 25-Sep-2018
1557,Revenue,CAHD,Bed Purchasing - North,Permanent Nursing,Hc-One Ltd,2171.08, 25-Sep-2018
1558,Revenue,CAHD,Bed Purchasing - Central,Permanent Residential,Hc-One Ltd,2224.52, 25-Sep-2018
1559,Revenue,CAHD,Bed Purchasing - Central,Permanent Residential,Hc-One Ltd,2224.52, 25-Sep-2018
1560,Revenue,CAHD,Bed Purchasing - Southmead Hospital,Permanent Nursing,Hc-One Ltd,2609.44, 25-Sep-2018
1561,Revenue,CAHD,Bed Purchasing - Southmead Hospital,Permanent Nursing,Head Office,2412.88, 25-Sep-2018
1562,Revenue,CAHD,Home Care - Elderly - North,Day Care / Social Activities,Head Office,563.52, 25-Sep-2018
1563,Revenue,CAHD,Home Care - Elderly - North,Day Care / Social Activities,Head Office,845.28, 25-Sep-2018
1564,Revenue,CAHD,CSC - Residential Placements,Permanent Residential,Headway Adolescent Resources Limited,13600, 07-Sep-2018
1565,Revenue,CAHD,CSC - Residential Placements,Permanent Residential,Headway Adolescent Resources Limited,13600, 07-Sep-2018
1566,Revenue,CAHD,Home Care - Elderly - South,Day Care / Social Activities,Headway Bristol,330.6, 03-Sep-2018
1567,Revenue,CAHD,Home Care - Elderly - South,Other Small Contracts,Headway Bristol,198.36, 03-Sep-2018
1568,Revenue,CAHD,Home Care - Elderly - North,Day Care / Social Activities,Headway Bristol,793.44, 03-Sep-2018
1569,Revenue,CAHD,Home Care - Elderly - North,Other Small Contracts,Headway Bristol,462.84, 03-Sep-2018
1570,Revenue,CAHD,Younger MH non-res purchasing,Day Care / Social Activities,Headway Bristol,88.16, 03-Sep-2018
1571,Revenue,CAHD,Home Care - Elderly - South,Day Care / Social Activities,Headway Bristol,396.72, 21-Sep-2018
1572,Revenue,CAHD,Home Care - Elderly - South,Other Small Contracts,Headway Bristol,264.48, 21-Sep-2018
1573,Revenue,CAHD,Home Care - Elderly - North,Day Care / Social Activities,Headway Bristol,859.56, 21-Sep-2018
1574,Revenue,CAHD,Home Care - Elderly - North,Other Small Contracts,Headway Bristol,396.72, 21-Sep-2018
1575,Revenue,CAHD,Younger MH non-res purchasing,Day Care / Social Activities,Headway Bristol,88.16, 21-Sep-2018
1576,Revenue,CAHD,Home Care - Elderly - South,Day Care / Social Activities,Headway Bristol,330.6, 25-Sep-2018
1577,Revenue,CAHD,Home Care - Elderly - South,Other Small Contracts,Headway Bristol,132.24, 25-Sep-2018
1578,Revenue,CAHD,Home Care - Elderly - North,Day Care / Social Activities,Headway Bristol,749.36, 25-Sep-2018
1579,Revenue,CAHD,Home Care - Elderly - North,Other Small Contracts,Headway Bristol,462.84, 25-Sep-2018
1580,Revenue,CAHD,Younger MH non-res purchasing,Day Care / Social Activities,Headway Bristol,44.08, 25-Sep-2018
1581,Revenue,CAHD,Home Care - Elderly - South,Other Small Contracts,Helping Hands Homecare,763.19, 21-Sep-2018
1582,Revenue,CAHD,Home Care - Elderly - North,Other Small Contracts,Helping Hands Homecare,3440.45, 21-Sep-2018
1583,Revenue,CAHD,Home Care - Elderly - South,Other Small Contracts,Helping Hands Homecare,616.95, 21-Sep-2018
1584,Revenue,CAHD,Home Care - Elderly - North,Other Small Contracts,Helping Hands Homecare,3340.08, 21-Sep-2018
1585,Revenue,CAHD,Home Care - Elderly - South,Other Small Contracts,Helping Hands Homecare,726.63, 25-Sep-2018
1586,Revenue,CAHD,Home Care - Elderly - North,Other Small Contracts,Helping Hands Homecare,3336.39, 25-Sep-2018
1587,Revenue,CAHD,S117 Placements PCT,Permanent Residential,Hesley Hall,19258.12, 25-Sep-2018
1588,Revenue,CAHD,Bed Purchasing - Central,Permanent Residential,High Border Lodge,2092, 25-Sep-2018
1589,Revenue,CAHD,Bed Purchasing - North,Permanent Residential,High Border Lodge,2039.72, 25-Sep-2018
1590,Revenue,CAHD,Home Care - Elderly - North,Supported Living,Hillcairnie House,4857.56, 25-Sep-2018
1591,Revenue,CAHD,Home Care - Elderly - South,Supported Living,Hillcairnie House,2517.76, 25-Sep-2018
1592,Revenue,CAHD,Home Care - Elderly - North,Supported Living,Hillcairnie House,2517.76, 25-Sep-2018
1593,Revenue,CAHD,Home Care - Elderly - South,Supported Living,Hillcairnie House,4309.76, 25-Sep-2018
1594,Revenue,CAHD,Home Care - Elderly - South,Supported Living,Hillcairnie House,2924.48, 25-Sep-2018
1595,Revenue,CAHD,Home Care - Elderly - South,Supported Living,Hillcairnie House,2517.76, 25-Sep-2018
1596,Revenue,CAHD,18-25 Year Olds,Permanent Residential,Hilltop Residential Home,8603.72, 25-Sep-2018
1597,Revenue,CAHD,Jointly Funded H&SC Packages,Permanent Residential,Hilltop Residential Home,5463.12, 25-Sep-2018
1598,Revenue,CAHD,Bed Purchasing - North,Permanent Residential,Holly Tree Cottage,8331.28, 25-Sep-2018
1599,Revenue,CAHD,Jointly Funded H&SC Packages,Permanent Residential,Holly Tree Cottage,2517.28, 25-Sep-2018
1600,Revenue,CAHD,Bed Purchasing - Southmead Hospital,Permanent Nursing,Holly Villa,2102.68, 25-Sep-2018
1601,Revenue,CAHD,Bed Purchasing - North,Permanent Residential,Holmleigh Care Homes Ltd,4666.12, 25-Sep-2018
1602,Revenue,CAHD,Bed Purchasing - South,Permanent Residential,Holmleigh Care Homes Ltd,4457.24, 25-Sep-2018
1603,Revenue,CAHD,Jointly Funded H&SC Packages,Permanent Residential,Holmleigh Care Homes Ltd,1276.96, 25-Sep-2018
1604,Revenue,CAHD,Home Care - Elderly - North,Supported Living,Home Farm Trust Ltd  5-6 Brook Office Pa,2111.48, 25-Sep-2018
1605,Revenue,CAHD,Home Care - Elderly - South,Supported Living,Home Farm Trust Ltd  5-6 Brook Office Pa,4151.6, 25-Sep-2018
1606,Revenue,CAHD,18-25 Year Olds,Permanent Residential,Home From Home Care Ltd,11822.76, 25-Sep-2018
1607,Revenue,CAHD,18-25 Year Olds,Permanent Residential,Home From Home Care Ltd,64602.94, 25-Sep-2018
1608,Revenue,CAHD,Discretionary Housing Payment,Other Supplies & Services,Homes for You,2000, 28-Sep-2018
1609,Revenue,CAHD,Home Care - Elderly - North,Day Care / Social Activities,Housing & Care 21,1237.6, 21-Sep-2018
1610,Revenue,CAHD,Home Care - Elderly - North,Day Care / Social Activities,Housing & Care 21,1237.6, 24-Sep-2018
1611,Revenue,CAHD,Home Care - Elderly - North,Day Care / Social Activities,Housing & Care 21,1173.9, 11-Sep-2018
1612,Revenue,CAHD,Extra Care Housing,Private & Voluntary Home Care,Housing 21,37678.33, 14-Sep-2018
1613,Revenue,CAHD,Extra Care Housing,Private & Voluntary Home Care,Housing 21,34872.5, 06-Sep-2018
1614,Revenue,CAHD,Bed Purchasing - South,Permanent Nursing,Hydon Hill,17288.81, 25-Sep-2018
1615,Revenue,CAHD,Bed Purchasing - South,Permanent Nursing,Hydon Hill,6286.84, 25-Sep-2018
1616,Revenue,CAHD,SEN High Needs - Not at School Base,Other Private Contractors,Impact Mentoring,3000, 28-Sep-2018
1617,Revenue,CAHD,CSC - Vinney Green Secure Unit,Mechanical & Electrical Maintenance,Integral UK Limited,2301.53, 24-Sep-2018
1618,Revenue,CAHD,CSC - Vinney Green Secure Unit,Mechanical & Electrical Maintenance,Integral UK Limited,4300, 24-Sep-2018
1619,Revenue,CAHD,Family and Young People Support North,Medical Fees,Interchange,98, 04-Sep-2018
1620,Revenue,CAHD,Leadership and Business Support,Other Supplies & Services,Interchange,294, 04-Sep-2018
1621,Revenue,CAHD,CSC - Adoption Support Fund,Post Adoption,Intramosaic Counselling and Psychotherapy Limited,882, 14-Sep-2018
1622,Revenue,CAHD,Care Management Team - South,Agency Staff (Operational)/PCT Pay,IPE,7248, 03-Sep-2018
1623,Revenue,CAHD,Social Lettings Agency,Fees - General,Individual,12.22, 11-Sep-2018
1624,Revenue,CAHD,Social Lettings Agency,Other Supplies & Services,Individual,690.32, 11-Sep-2018
1625,Revenue,CAHD,CSC - Professional Fees Foster Carers,Respite Care,Individual,764.75, 07-Sep-2018
1626,Revenue,CAHD,CSC - Professional Fees Foster Carers,Respite Care,Individual,684.25, 26-Sep-2018
1627,Revenue,CAHD,CSC - Professional Fees Foster Carers,Respite Care,Individual,1347.14, 07-Sep-2018
1628,Revenue,CAHD,Direct Payments - Phys Dis -South,Fees & Charges Income - General,Individual,1617.44, 21-Sep-2018
1629,Revenue,CAHD,CSC - Ofsted Work,Consultants Fees,Jo Hope,800, 10-Sep-2018
1630,Revenue,CAHD,CSC - Ofsted Work,Consultants Fees,Jo Hope,600, 12-Sep-2018
1631,Revenue,CAHD,CSC - Ofsted Work,Consultants Fees,Jo Hope,1500, 26-Sep-2018
1632,Revenue,CAHD,Social Lettings Agency,Fees - General,Individual,12.93, 14-Sep-2018
1633,Revenue,CAHD,Social Lettings Agency,Other Supplies & Services,Individual,730.35, 14-Sep-2018
1634,Revenue,CAHD,Bed Purchasing - South,Permanent Residential,Jonen House,4226.52, 25-Sep-2018
1635,Revenue,CAHD,CSC - Section 17 Long Term Support,"Provisions (Food, etc)",Individual,650, 26-Sep-2018
1636,Revenue,CAHD,Post 16 High Needs Placements,Other Private Contractors,Julian & Shani Payne T/A Peopleton Brook Farm,1968, 04-Sep-2018
1637,Revenue,CAHD,Bed Purchasing - Elderly S117- North,Permanent Residential,Kahala Court,2853.2, 25-Sep-2018
1638,Revenue,CAHD,Adult Safeguarding Board,Complaints External Expenses,Kate Spreadbury,2500, 28-Sep-2018
1639,Revenue,CAHD,Statemented Support Payments to OLAs,Other L.A.'s - General,Katharine Lady Berkeley School,529.83, 26-Sep-2018
1640,Revenue,CAHD,Statemented Support Payments to OLAs,Other L.A.'s - General,Katharine Lady Berkeley School,647.74, 26-Sep-2018
1641,Revenue,CAHD,Statemented Support Payments to OLAs,Other L.A.'s - General,Katharine Lady Berkeley School,624.16, 26-Sep-2018
1642,Revenue,CAHD,CSC - Ofsted Work,Consultants Fees,Kathy O`Mahoney,5178.9, 28-Sep-2018
1643,Revenue,CAHD,Home Care - Elderly - South,Other Small Contracts,Kensington Community Care,1732.03, 06-Sep-2018
1644,Revenue,CAHD,Home Care - Elderly - North,Other Small Contracts,Kensington Community Care,2262.15, 06-Sep-2018
1645,Revenue,CAHD,Home Care - Elderly - South,Other Small Contracts,Kensington Community Care,1791.44, 03-Sep-2018
1646,Revenue,CAHD,Home Care - Elderly - North,Other Small Contracts,Kensington Community Care,2294.14, 03-Sep-2018
1647,Revenue,CAHD,Home Care - Elderly - South,Other Small Contracts,Kensington Community Care,1722.89, 06-Sep-2018
1648,Revenue,CAHD,Home Care - Elderly - North,Other Small Contracts,Kensington Community Care,1896.55, 06-Sep-2018
1649,Revenue,CAHD,Home Care - Elderly - South,Other Small Contracts,Kensington Community Care,1837.14, 18-Sep-2018
1650,Revenue,CAHD,Home Care - Elderly - North,Other Small Contracts,Kensington Community Care,2024.51, 18-Sep-2018
1651,Revenue,CAHD,Homecare - Central,Other Small Contracts,Kensington Community Care,2365.44, 11-Sep-2018
1652,Revenue,CAHD,Bed Purchasing - Southmead Hospital,Permanent Residential,Kenver House Residential Home,2291.68, 25-Sep-2018
1653,Revenue,CAHD,Bed Purchasing - South,Permanent Residential,Kenver House Residential Home,2294.84, 25-Sep-2018
1654,Revenue,CAHD,Bed Purchasing - South,Permanent Residential,Kenver House Residential Home,2509.88, 25-Sep-2018
1655,Revenue,CAHD,Bed Purchasing - Southmead Hospital,Respite Planned - Residential,Kenver House Residential Home,1645.71, 25-Sep-2018
1656,Revenue,CAHD,Bed Purchasing - South,Permanent Residential,Kenver House Residential Home,2663.2, 25-Sep-2018
1657,Revenue,CAHD,Bed Purchasing - South,Permanent Residential,Kenver House Residential Home,2509.88, 25-Sep-2018
1658,Revenue,CAHD,Bed Purchasing - North,Permanent Residential,Kenver House Residential Home,2934.72, 25-Sep-2018
1659,Revenue,CAHD,Bed Purchasing - South,Permanent Residential,Kenver House Residential Home,2509.88, 25-Sep-2018
1660,Revenue,CAHD,Bed Purchasing - Southmead Hospital,Permanent Residential,Kenver House Residential Home,2880, 25-Sep-2018
1661,Revenue,CAHD,Bed Purchasing - Southmead Hospital,Permanent Residential,Kenver House Residential Home,2880, 25-Sep-2018
1662,Revenue,CAHD,Bed Purchasing - Southmead Hospital,Permanent Residential,Kenver House Residential Home,2853.2, 25-Sep-2018
1663,Revenue,CAHD,Bed Purchasing - South,Permanent Residential,Kenver House Residential Home,2291.68, 25-Sep-2018
1664,Revenue,CAHD,Bed Purchasing - South,Permanent Residential,Kenver House Residential Home,3120, 25-Sep-2018
1665,Revenue,CAHD,CSC - Adoption Support Fund,Post Adoption,Individual,1911, 17-Sep-2018
1666,Revenue,CAHD,Learning Difficulties Development Fund,Other Supplies & Services,Kids,4869.5, 07-Sep-2018
1667,Revenue,CAHD,Bed Purchasing - North,Permanent Residential,Kilkhampton Lodge,18064.36, 25-Sep-2018
1668,Revenue,CAHD,Bed Purchasing - South,Permanent Nursing,Kingfisher Lodge Care Centre,4666.8, 25-Sep-2018
1669,Revenue,CAHD,Bed Purchasing - South,Permanent Residential,Kingfisher Lodge Care Centre,4800, 25-Sep-2018
1670,Revenue,CAHD,Bed Purchasing - South,Respite Planned - Residential,Kingfisher Lodge Care Centre,3990, 25-Sep-2018
1671,Revenue,CAHD,Bed Purchasing - Southmead Hospital,Permanent Residential,Kingfisher Lodge Care Centre,5560, 25-Sep-2018
1672,Revenue,CAHD,Tenancy Start Up Scheme,Other Supplies & Services,Kingswood Accommodation Limited,1500, 07-Sep-2018
1673,Revenue,CAHD,CSC - Adoption Support Fund,Post Adoption,Individual,560, 07-Sep-2018
1674,Revenue,CAHD,CSC - Adoption Support Fund,Post Adoption,Individual,560, 07-Sep-2018
1675,Revenue,CAHD,CSC - Adoption Support Fund,Post Adoption,Individual,560, 07-Sep-2018
1676,Revenue,CAHD,Bed Purchasing - North,Permanent Residential,Kisimul Group,12469, 25-Sep-2018
1677,Revenue,CAHD,Placements OLA Special Schools and RB,Other L.A.'s - General,Knowle DGE,2053.42, 27-Sep-2018
1678,Revenue,CAHD,Placements OLA Special Schools and RB,Other L.A.'s - General,Knowle DGE,1353.42, 27-Sep-2018
1679,Revenue,CAHD,Placements OLA Special Schools and RB,Other L.A.'s - General,Knowle DGE,886.75, 27-Sep-2018
1680,Revenue,CAHD,Placements OLA Special Schools and RB,Other L.A.'s - General,Knowle DGE,2722.5, 27-Sep-2018
1681,Revenue,CAHD,Placements OLA Special Schools and RB,Other L.A.'s - General,Knowle DGE,886.75, 27-Sep-2018
1682,Revenue,CAHD,Placements OLA Special Schools and RB,Other L.A.'s - General,Knowle DGE,1308.42, 27-Sep-2018
1683,Revenue,CAHD,Placements OLA Special Schools and RB,Other L.A.'s - General,Knowle DGE,2053.42, 27-Sep-2018
1684,Revenue,CAHD,Placements OLA Special Schools and RB,Other L.A.'s - General,Knowle DGE,886.75, 27-Sep-2018
1685,Revenue,CAHD,Placements OLA Special Schools and RB,Other L.A.'s - General,Knowle DGE,2722.5, 27-Sep-2018
1686,Revenue,CAHD,Home Care - Elderly - North,Other Small Contracts,KPW Newkey Ltd,857.12, 18-Sep-2018
1687,Revenue,CAHD,Home Care - Elderly - South,Other Small Contracts,Kumari Care Limited,735.13, 18-Sep-2018
1688,Revenue,CAHD,Home Care - Elderly - North,Other Small Contracts,Kumari Care Limited,1022.15, 18-Sep-2018
1689,Revenue,CAHD,Home Care - Elderly - South,Other Small Contracts,Kumari Care Limited,694.54, 18-Sep-2018
1690,Revenue,CAHD,Home Care - Elderly - North,Other Small Contracts,Kumari Care Limited,1022.15, 18-Sep-2018
1691,Revenue,CAHD,Home Care - Elderly - South,Other Small Contracts,Kumari Care Limited,487.08, 18-Sep-2018
1692,Revenue,CAHD,Home Care - Elderly - North,Other Small Contracts,Kumari Care Limited,1022.15, 18-Sep-2018
1693,Revenue,CAHD,Home Care - Elderly - North,Other Small Contracts,L D Awareness,1138.88, 12-Sep-2018
1694,Revenue,CAHD,Home Care - Elderly - North,Day Care / Social Activities,L D Awareness,2571.36, 05-Sep-2018
1695,Revenue,CAHD,Home Care - Elderly - North,Day Care / Social Activities,L D Awareness,2450.55, 17-Sep-2018
1696,Revenue,CAHD,Home Care - Elderly - North,Day Care / Social Activities,L D Awareness,2337.6, 05-Sep-2018
1697,Revenue,CAHD,Home Care - Elderly - North,Other Small Contracts,L D Awareness,467.52, 07-Sep-2018
1698,Revenue,CAHD,18-25 Year Olds,Day Care / Social Activities,L D Awareness,623.36, 17-Sep-2018
1699,Revenue,CAHD,Home Care - Elderly - South,Other Small Contracts,L D Awareness,1285.68, 07-Sep-2018
1700,Revenue,CAHD,Learning Difficulties Development Fund,Other Supplies & Services,L D Awareness,1641, 07-Sep-2018
1701,Revenue,CAHD,Bed Purchasing - North,Respite Planned - Residential,Langley House Trust Ltd,5706.8, 25-Sep-2018
1702,Revenue,CAHD,Bed Purchasing - North,Permanent Nursing,Larchfield Care Home,3126.64, 25-Sep-2018
1703,Revenue,CAHD,Early Years Inclusion Fund,Other Public Bodies,Leaping Lambs Nursery,850, 21-Sep-2018
1704,Revenue,CAHD,Bed Purchasing - North,Permanent Residential,Leonard Cheshire  National Account Centr,5258.16, 25-Sep-2018
1705,Revenue,CAHD,Bed Purchasing - Central,Permanent Residential,Leonard Cheshire  National Account Centr,3877.48, 25-Sep-2018
1706,Revenue,CAHD,Bed Purchasing - South,Permanent Residential,Leonard Cheshire  National Account Centr,3963.56, 25-Sep-2018
1707,Revenue,CAHD,Bed Purchasing - North,Permanent Nursing,Leonard Cheshire  National Account Centr,4160.28, 25-Sep-2018
1708,Revenue,CAHD,Bed Purchasing - North,Permanent Nursing,Leonard Cheshire  National Account Centr,3425.48, 25-Sep-2018
1709,Revenue,CAHD,18-25 Year Olds,Permanent Residential,Leonard Cheshire  National Account Centr,3893.44, 25-Sep-2018
1710,Revenue,CAHD,Bed Purchasing - North,Permanent Residential,Leonard Cheshire  National Account Centr,6640.44, 25-Sep-2018
1711,Revenue,CAHD,Bed Purchasing - North,Permanent Nursing,Leonard Cheshire  National Account Centr,5340.08, 25-Sep-2018
1712,Revenue,CAHD,Bed Purchasing - North,Permanent Nursing,Leonard Cheshire  National Account Centr,3467.44, 25-Sep-2018
1713,Revenue,CAHD,Bed Purchasing - Central,Permanent Nursing,Leonard Cheshire  National Account Centr,5228.72, 25-Sep-2018
1714,Revenue,CAHD,Bed Purchasing - North,Permanent Residential,Leonard Cheshire  National Account Centr,3523.28, 25-Sep-2018
1715,Revenue,CAHD,Bed Purchasing - North,Permanent Nursing,Leonard Cheshire  National Account Centr,3515.44, 25-Sep-2018
1716,Revenue,CAHD,Bed Purchasing - North,Permanent Nursing,Leonard Cheshire  National Account Centr,5978.44, 25-Sep-2018
1717,Revenue,CAHD,Bed Purchasing - South,Permanent Nursing,Leonard Cheshire  National Account Centr,16164.06, 25-Sep-2018
1718,Revenue,CAHD,Bed Purchasing - South,Fees & Charges Income - General,Leonard Cheshire  National Account Centr,1124.75, 25-Sep-2018
1719,Revenue,CAHD,Bed Purchasing - Southmead Hospital,Permanent Nursing,Leonard Cheshire  National Account Centr,3640.16, 25-Sep-2018
1720,Revenue,CAHD,Bed Purchasing - North,Permanent Nursing,Leonard Cheshire  National Account Centr,3984.8, 25-Sep-2018
1721,Revenue,CAHD,Mental Capacity Act / DOLS,Grants to Voluntary Bodies,Lincolnshire Partnership,539.61, 28-Sep-2018
1722,Revenue,CAHD,CSC - Ofsted Work,Consultants Fees,Linda Fraser,3171.6, 24-Sep-2018
1723,Revenue,CAHD,18-25 Year Olds,Permanent Residential,Linden House,9830.48, 25-Sep-2018
1724,Revenue,CAHD,Bed Purchasing - South,Respite Emergency - Residential,Linden House,8426.38, 25-Sep-2018
1725,Revenue,CAHD,Bed Purchasing - South,Respite Emergency - Nursing,Linden House,4476.51, 25-Sep-2018
1726,Revenue,CAHD,Bed Purchasing - North,Permanent Residential,Linden House,8367.68, 25-Sep-2018
1727,Revenue,CAHD,Bed Purchasing - South,Permanent Residential,Linden House,8595.96, 25-Sep-2018
1728,Revenue,CAHD,Bed purchasing - S28A Under 65 - South,Permanent Residential,Linden House,12375.92, 25-Sep-2018
1729,Revenue,CAHD,Bed Purchasing - South,Permanent Residential,Little Croft,2149.6, 25-Sep-2018
1730,Revenue,CAHD,Bed Purchasing - North,Permanent Residential,Little Croft,2149.6, 25-Sep-2018
1731,Revenue,CAHD,Bed Purchasing - Southmead Hospital,Permanent Residential,Little Croft,2301.84, 25-Sep-2018
1732,Revenue,CAHD,Bed Purchasing - South,Permanent Residential,Little Croft,2292.75, 25-Sep-2018
1733,Revenue,CAHD,Bed Purchasing - Southmead Hospital,Permanent Residential,Little Croft,3000, 25-Sep-2018
1734,Revenue,CAHD,Bed Purchasing - South,Permanent Residential,Little Croft,2374.2, 25-Sep-2018
1735,Revenue,CAHD,Bed Purchasing - Southmead Hospital,Permanent Residential,Little Croft,3057, 25-Sep-2018
1736,Revenue,CAHD,Bed Purchasing - Southmead Hospital,Permanent Residential,Little Croft,2787.08, 25-Sep-2018
1737,Revenue,CAHD,Bed Purchasing - South,Permanent Residential,Little Croft,2220, 25-Sep-2018
1738,Revenue,CAHD,Bed Purchasing - Southmead Hospital,Permanent Residential,Little Croft,2787.08, 25-Sep-2018
1739,Revenue,CAHD,Bed Purchasing - Southmead Hospital,Permanent Residential,Little Croft,2418.72, 25-Sep-2018
1740,Revenue,CAHD,Bed Purchasing - Southmead Hospital,Permanent Residential,Little Croft,2149.6, 25-Sep-2018
1741,Revenue,CAHD,Bed Purchasing - Southmead Hospital,Permanent Residential,Little Croft,2149.6, 25-Sep-2018
1742,Revenue,CAHD,Bed Purchasing - Southmead Hospital,Permanent Residential,Little Croft,2787.08, 25-Sep-2018
1743,Revenue,CAHD,Bed Purchasing - Southmead Hospital,Permanent Residential,Little Croft,2149.6, 25-Sep-2018
1744,Revenue,CAHD,Bed Purchasing - South,Permanent Residential,Little Croft,2374.2, 25-Sep-2018
1745,Revenue,CAHD,Bed Purchasing - South,Permanent Residential,Little Croft,3057, 25-Sep-2018
1746,Revenue,CAHD,Bed Purchasing - Southmead Hospital,Permanent Residential,Little Croft,2787.08, 25-Sep-2018
1747,Revenue,CAHD,Bed Purchasing - South,Permanent Residential,Little Croft,9028.57, 25-Sep-2018
1748,Revenue,CAHD,Bed Purchasing - South,Permanent Residential,Little Croft,3200, 25-Sep-2018
1749,Revenue,CAHD,Bed Purchasing - Southmead Hospital,Permanent Residential,Little Croft,2149.6, 25-Sep-2018
1750,Revenue,CAHD,Bed Purchasing - North,Permanent Residential,Littlecroft Residential Homes  Longcroft,7192.28, 25-Sep-2018
1751,Revenue,CAHD,18-25 Year Olds,Day Care / Social Activities,Lloyds TSB Commercial Finance Limited,292.48, 03-Sep-2018
1752,Revenue,CAHD,18-25 Year Olds,Other Small Contracts,Lloyds TSB Commercial Finance Limited,4003.16, 03-Sep-2018
1753,Revenue,CAHD,18-25 Year Olds,Supported Living,Lloyds TSB Commercial Finance Limited,3480.96, 03-Sep-2018
1754,Revenue,CAHD,Home Care - Elderly - South,Day Care / Social Activities,Lloyds TSB Commercial Finance Limited,5781.05, 03-Sep-2018
1755,Revenue,CAHD,Home Care - Elderly - South,Other Small Contracts,Lloyds TSB Commercial Finance Limited,11618.94, 03-Sep-2018
1756,Revenue,CAHD,Home Care - Elderly - South,Supported Living,Lloyds TSB Commercial Finance Limited,5929.57, 03-Sep-2018
1757,Revenue,CAHD,Home Care - Elderly - North,Day Care / Social Activities,Lloyds TSB Commercial Finance Limited,219.36, 03-Sep-2018
1758,Revenue,CAHD,Home Care - Elderly - North,Supported Living,Lloyds TSB Commercial Finance Limited,1631.49, 03-Sep-2018
1759,Revenue,CAHD,Younger MH non-res purchasing,Other Small Contracts,Lloyds TSB Commercial Finance Limited,11123.5, 03-Sep-2018
1760,Revenue,CAHD,18-25 Year Olds,Day Care / Social Activities,Lloyds TSB Commercial Finance Limited,292.48, 03-Sep-2018
1761,Revenue,CAHD,18-25 Year Olds,Other Small Contracts,Lloyds TSB Commercial Finance Limited,3998.4, 03-Sep-2018
1762,Revenue,CAHD,18-25 Year Olds,Supported Living,Lloyds TSB Commercial Finance Limited,3480.96, 03-Sep-2018
1763,Revenue,CAHD,Home Care - Elderly - South,Day Care / Social Activities,Lloyds TSB Commercial Finance Limited,5758.2, 03-Sep-2018
1764,Revenue,CAHD,Home Care - Elderly - South,Other Small Contracts,Lloyds TSB Commercial Finance Limited,11648.95, 03-Sep-2018
1765,Revenue,CAHD,Home Care - Elderly - South,Supported Living,Lloyds TSB Commercial Finance Limited,5017.83, 03-Sep-2018
1766,Revenue,CAHD,Home Care - Elderly - North,Day Care / Social Activities,Lloyds TSB Commercial Finance Limited,219.36, 03-Sep-2018
1767,Revenue,CAHD,Home Care - Elderly - North,Supported Living,Lloyds TSB Commercial Finance Limited,1754.88, 03-Sep-2018
1768,Revenue,CAHD,Younger MH non-res purchasing,Other Small Contracts,Lloyds TSB Commercial Finance Limited,11118.09, 03-Sep-2018
1769,Revenue,CAHD,18-25 Year Olds,Day Care / Social Activities,Lloyds TSB Commercial Finance Limited,292.48, 06-Sep-2018
1770,Revenue,CAHD,18-25 Year Olds,Other Small Contracts,Lloyds TSB Commercial Finance Limited,547.4, 06-Sep-2018
1771,Revenue,CAHD,18-25 Year Olds,Supported Living,Lloyds TSB Commercial Finance Limited,2974.72, 06-Sep-2018
1772,Revenue,CAHD,Home Care - Elderly - South,Day Care / Social Activities,Lloyds TSB Commercial Finance Limited,5726.21, 06-Sep-2018
1773,Revenue,CAHD,Home Care - Elderly - South,Other Small Contracts,Lloyds TSB Commercial Finance Limited,11623.65, 06-Sep-2018
1774,Revenue,CAHD,Home Care - Elderly - South,Supported Living,Lloyds TSB Commercial Finance Limited,5634.88, 06-Sep-2018
1775,Revenue,CAHD,Home Care - Elderly - North,Day Care / Social Activities,Lloyds TSB Commercial Finance Limited,219.36, 06-Sep-2018
1776,Revenue,CAHD,Home Care - Elderly - North,Supported Living,Lloyds TSB Commercial Finance Limited,1631.49, 06-Sep-2018
1777,Revenue,CAHD,Younger MH non-res purchasing,Other Small Contracts,Lloyds TSB Commercial Finance Limited,11140.01, 06-Sep-2018
1778,Revenue,CAHD,18-25 Year Olds,Supported Living,Lloyds TSB Commercial Finance Limited,2974.72, 21-Sep-2018
1779,Revenue,CAHD,Home Care - Elderly - South,Day Care / Social Activities,Lloyds TSB Commercial Finance Limited,5726.21, 21-Sep-2018
1780,Revenue,CAHD,Home Care - Elderly - South,Other Small Contracts,Lloyds TSB Commercial Finance Limited,11618.65, 21-Sep-2018
1781,Revenue,CAHD,Home Care - Elderly - South,Supported Living,Lloyds TSB Commercial Finance Limited,5976.83, 21-Sep-2018
1782,Revenue,CAHD,Home Care - Elderly - North,Day Care / Social Activities,Lloyds TSB Commercial Finance Limited,219.36, 21-Sep-2018
1783,Revenue,CAHD,Home Care - Elderly - North,Supported Living,Lloyds TSB Commercial Finance Limited,2051.93, 21-Sep-2018
1784,Revenue,CAHD,Younger MH non-res purchasing,Other Small Contracts,Lloyds TSB Commercial Finance Limited,11112.57, 21-Sep-2018
1785,Revenue,CAHD,18-25 Year Olds,Day Care / Social Activities,Lloyds TSB Commercial Finance Limited,255.92, 21-Sep-2018
1786,Revenue,CAHD,18-25 Year Olds,Supported Living,Lloyds TSB Commercial Finance Limited,2974.72, 21-Sep-2018
1787,Revenue,CAHD,Home Care - Elderly - South,Day Care / Social Activities,Lloyds TSB Commercial Finance Limited,5680.51, 21-Sep-2018
1788,Revenue,CAHD,Home Care - Elderly - South,Other Small Contracts,Lloyds TSB Commercial Finance Limited,11639.19, 21-Sep-2018
1789,Revenue,CAHD,Home Care - Elderly - South,Supported Living,Lloyds TSB Commercial Finance Limited,5769.62, 21-Sep-2018
1790,Revenue,CAHD,Home Care - Elderly - North,Day Care / Social Activities,Lloyds TSB Commercial Finance Limited,219.36, 21-Sep-2018
1791,Revenue,CAHD,Home Care - Elderly - North,Supported Living,Lloyds TSB Commercial Finance Limited,1626.92, 21-Sep-2018
1792,Revenue,CAHD,Younger MH non-res purchasing,Other Small Contracts,Lloyds TSB Commercial Finance Limited,11112.51, 21-Sep-2018
1793,Revenue,CAHD,18-25 Year Olds,Day Care / Social Activities,Lloyds TSB Commercial Finance Limited,127.96, 21-Sep-2018
1794,Revenue,CAHD,18-25 Year Olds,Supported Living,Lloyds TSB Commercial Finance Limited,2974.72, 21-Sep-2018
1795,Revenue,CAHD,Home Care - Elderly - South,Day Care / Social Activities,Lloyds TSB Commercial Finance Limited,5930.32, 21-Sep-2018
1796,Revenue,CAHD,Home Care - Elderly - South,Other Small Contracts,Lloyds TSB Commercial Finance Limited,11616.88, 21-Sep-2018
1797,Revenue,CAHD,Home Care - Elderly - South,Supported Living,Lloyds TSB Commercial Finance Limited,5693.34, 21-Sep-2018
1798,Revenue,CAHD,Home Care - Elderly - North,Day Care / Social Activities,Lloyds TSB Commercial Finance Limited,219.36, 21-Sep-2018
1799,Revenue,CAHD,Home Care - Elderly - North,Supported Living,Lloyds TSB Commercial Finance Limited,2047.36, 21-Sep-2018
1800,Revenue,CAHD,Younger MH non-res purchasing,Other Small Contracts,Lloyds TSB Commercial Finance Limited,11118.13, 21-Sep-2018
1801,Revenue,CAHD,CSC - Adoption Support Fund,Post Adoption,Individual,500, 07-Sep-2018
1802,Revenue,CAHD,Bed Purchasing - North,Permanent Nursing,Lodge House,4067.84, 25-Sep-2018
1803,Revenue,CAHD,South Glos Users in South Glos Homes,Permanent Nursing,Lodge House,632.64, 25-Sep-2018
1804,Revenue,CAHD,South Glos Users in South Glos Homes,Permanent Nursing,Lodge House,632.64, 25-Sep-2018
1805,Revenue,CAHD,Bed Purchasing - South,Permanent Nursing,Lodge House,2311.2, 25-Sep-2018
1806,Revenue,CAHD,South Glos Users in South Glos Homes,Permanent Nursing,Lodge House,632.64, 25-Sep-2018
1807,Revenue,CAHD,Bed Purchasing - South,Permanent Nursing,Lodge House,3301.36, 25-Sep-2018
1808,Revenue,CAHD,South Glos Users in South Glos Homes,Permanent Nursing,Lodge House,632.64, 25-Sep-2018
1809,Revenue,CAHD,South Glos Users in South Glos Homes,Permanent Nursing,Lodge House,632.64, 25-Sep-2018
1810,Revenue,CAHD,Bed Purchasing - South,Permanent Nursing,Lodge House,2796.84, 25-Sep-2018
1811,Revenue,CAHD,South Glos Users in South Glos Homes,Permanent Nursing,Lodge House,632.64, 25-Sep-2018
1812,Revenue,CAHD,Bed Purchasing - Southmead Hospital,Fees & Charges Income - General,Lodge House,600.31, 25-Sep-2018
1813,Revenue,CAHD,South Glos Users in South Glos Homes,Permanent Nursing,Lodge House,632.64, 25-Sep-2018
1814,Revenue,CAHD,Bed Purchasing - South,Permanent Nursing,Lodge House,3169, 25-Sep-2018
1815,Revenue,CAHD,South Glos Users in South Glos Homes,Permanent Nursing,Lodge House,632.64, 25-Sep-2018
1816,Revenue,CAHD,Bed Purchasing - South,Permanent Nursing,Lodge House,4067.84, 25-Sep-2018
1817,Revenue,CAHD,South Glos Users in South Glos Homes,Permanent Nursing,Lodge House,632.64, 25-Sep-2018
1818,Revenue,CAHD,South Glos Users in South Glos Homes,Permanent Nursing,Lodge House,632.64, 25-Sep-2018
1819,Revenue,CAHD,Bed Purchasing - Southmead Hospital,Permanent Nursing,Lodge House,3169, 25-Sep-2018
1820,Revenue,CAHD,South Glos Users in South Glos Homes,Permanent Nursing,Lodge House,632.64, 25-Sep-2018
1821,Revenue,CAHD,South Glos Users in South Glos Homes,Permanent Nursing,Lodge House,632.64, 25-Sep-2018
1822,Revenue,CAHD,Bed Purchasing - Southmead Hospital,Permanent Nursing,Lodge House,3301.36, 25-Sep-2018
1823,Revenue,CAHD,South Glos Users in South Glos Homes,Permanent Nursing,Lodge House,632.64, 25-Sep-2018
1824,Revenue,CAHD,Bed Purchasing - North,Permanent Nursing,Lodge House,3044.6, 25-Sep-2018
1825,Revenue,CAHD,South Glos Users in South Glos Homes,Permanent Nursing,Lodge House,632.64, 25-Sep-2018
1826,Revenue,CAHD,Bed Purchasing - South,Permanent Nursing,Lodge House,3339.32, 25-Sep-2018
1827,Revenue,CAHD,South Glos Users in South Glos Homes,Permanent Nursing,Lodge House,632.64, 25-Sep-2018
1828,Revenue,CAHD,South Glos Users in South Glos Homes,Permanent Nursing,Lodge House,632.64, 25-Sep-2018
1829,Revenue,CAHD,Bed Purchasing - South,Permanent Nursing,Lodge House,3301.36, 25-Sep-2018
1830,Revenue,CAHD,South Glos Users in South Glos Homes,Permanent Nursing,Lodge House,632.64, 25-Sep-2018
1831,Revenue,CAHD,Bed Purchasing - Southmead Hospital,Permanent Nursing,Lodge House,4116.56, 25-Sep-2018
1832,Revenue,CAHD,Bed Purchasing - Southmead Hospital,Permanent Nursing,Lodge House,3528.48, 25-Sep-2018
1833,Revenue,CAHD,South Glos Users in South Glos Homes,Permanent Nursing,Lodge House,632.64, 25-Sep-2018
1834,Revenue,CAHD,South Glos Users in South Glos Homes,Permanent Nursing,Lodge House,632.64, 25-Sep-2018
1835,Revenue,CAHD,South Glos Users in South Glos Homes,Permanent Nursing,Lodge House,632.64, 25-Sep-2018
1836,Revenue,CAHD,South Glos Users in South Glos Homes,Permanent Nursing,Lodge House,632.64, 25-Sep-2018
1837,Revenue,CAHD,Bed Purchasing - South,Permanent Nursing,Lodge House,3339.32, 25-Sep-2018
1838,Revenue,CAHD,South Glos Users in South Glos Homes,Permanent Nursing,Lodge House,632.64, 25-Sep-2018
1839,Revenue,CAHD,Bed Purchasing - South,Permanent Nursing,Lodge House,4216.28, 25-Sep-2018
1840,Revenue,CAHD,Bed Purchasing - Southmead Hospital,Permanent Nursing,Lodge House,4256.24, 25-Sep-2018
1841,Revenue,CAHD,South Glos Users in South Glos Homes,Permanent Nursing,Lodge House,632.64, 25-Sep-2018
1842,Revenue,CAHD,South Glos Users in South Glos Homes,Permanent Nursing,Lodge House,632.64, 25-Sep-2018
1843,Revenue,CAHD,South Glos Users in South Glos Homes,Permanent Nursing,Lodge House,632.64, 25-Sep-2018
1844,Revenue,CAHD,South Glos Users in South Glos Homes,Permanent Nursing,Lodge House,632.64, 25-Sep-2018
1845,Revenue,CAHD,Bed Purchasing - South,Permanent Nursing,Lodge House,3434.28, 25-Sep-2018
1846,Revenue,CAHD,South Glos Users in South Glos Homes,Permanent Nursing,Lodge House,632.64, 25-Sep-2018
1847,Revenue,CAHD,South Glos Users in South Glos Homes,Permanent Nursing,Lodge House,632.64, 25-Sep-2018
1848,Revenue,CAHD,South Glos Users in South Glos Homes,Permanent Nursing,Lodge House,632.64, 25-Sep-2018
1849,Revenue,CAHD,Bed Purchasing - Southmead Hospital,Permanent Nursing,Lodge House,3493.12, 25-Sep-2018
1850,Revenue,CAHD,South Glos Users in South Glos Homes,Permanent Nursing,Lodge House,632.64, 25-Sep-2018
1851,Revenue,CAHD,Bed Purchasing - South,Permanent Nursing,Lodge House,4337.12, 25-Sep-2018
1852,Revenue,CAHD,South Glos Users in South Glos Homes,Permanent Nursing,Lodge House,632.64, 25-Sep-2018
1853,Revenue,CAHD,Bed Purchasing - South,Permanent Nursing,Lodge House,3475.56, 25-Sep-2018
1854,Revenue,CAHD,South Glos Users in South Glos Homes,Permanent Nursing,Lodge House,632.64, 25-Sep-2018
1855,Revenue,CAHD,South Glos Users in South Glos Homes,Permanent Nursing,Lodge House,632.64, 25-Sep-2018
1856,Revenue,CAHD,South Glos Users in South Glos Homes,Permanent Nursing,Lodge House,632.64, 25-Sep-2018
1857,Revenue,CAHD,Bed Purchasing - South,Permanent Nursing,Lodge House,4116.56, 25-Sep-2018
1858,Revenue,CAHD,South Glos Users in South Glos Homes,Permanent Nursing,Lodge House,632.64, 25-Sep-2018
